 Batch Number,Vendor Name,Invoice Number, Line,Line Amount,Account Description,Issue Date ,Total Amount Paid
902288,BANK OF SCOTLAND,593.485.01.10800/0613,1,"229,381.86",VEHICLES,03/06/13,"229,381.86"
902290,AMICALE DES POMPIERS DE NAMUR,AD5759,1,574.15,GENERAL,05/06/13,574.15
220513C,SUE HILL RECRUITMENT & SRV.LTD,00044841,1,"1,092.50",FRS STAFF AGENCY,06/06/13,"1,092.50"
140232,THAMES WATER UTILITIES LTD====,0310917269D,1,796.01,WATER & SEWERAGE RATES,06/06/13,796.01
140232,THAMES WATER UTILITIES LTD====,03247-35186E,1,271.95,WATER & SEWERAGE RATES,06/06/13,271.95
290513C,*PRINCIPAL CATERING CONSULTNTS,050700,1,139.20,REFRESHMENTS,06/06/13,931.75
290513C,*PRINCIPAL CATERING CONSULTNTS,050700,2,752.55,REFRESHMENTS,06/06/13,
290513C,*PRINCIPAL CATERING CONSULTNTS,050700,3,20.00,REFRESHMENTS,06/06/13,
290513C,*PRINCIPAL CATERING CONSULTNTS,050700,4,20.00,REFRESHMENTS,06/06/13,
300513C,AA WOODS,051627,1,"2,570.00",DEVELOPMENT  EXPENSES-CONTRACT,06/06/13,"2,570.00"
300513C,AA WOODS,052228,1,900.00,DEVELOPMENT  EXPENSES-CONTRACT,06/06/13,900.00
030613C,G WORRALL & SON LIMITED=======,099913,1,258.10,TACTICAL DAY TO DAY,06/06/13,258.10
290513C,HAYS ACCOUNTANCY & FINANCE====,1003205133,1,696.00,FRS STAFF AGENCY,06/06/13,696.00
310513E,IPMACT EPOS LTD,10040,1,725.00,OFFICE EQUIPMENT,06/06/13,725.00
310513E,IPMACT EPOS LTD,10053,1,945.00,OFFICE EQUIPMENT,06/06/13,"1,890.00"
310513E,IPMACT EPOS LTD,10053,2,945.00,OFFICE EQUIPMENT,06/06/13,
300513C,AFFINITY WATER,101021215,1,483.60,CURRENT HYDRANT COSTS,06/06/13,483.60
040613G,*SPRUE SAFETY PRODUCTS LTD====,1046460,1,884.80,FIRE DETECTORS,06/06/13,884.80
040613G,*SPRUE SAFETY PRODUCTS LTD====,1046461,1,379.20,FIRE DETECTORS,06/06/13,379.20
800020457,JAMES HUNTER (OUTFITTERS) LTD=,107034,1,315.02,CLOTHING,06/06/13,315.02
040613G,ACL ELECTRICAL LIMITED,10965,1,"3,607.60",DEVELOPMENT  EXPENSES-CONTRACT,06/06/13,"23,623.65"
040613G,ACL ELECTRICAL LIMITED,10965,2,"3,197.50",DEVELOPMENT  EXPENSES-CONTRACT,06/06/13,
040613G,ACL ELECTRICAL LIMITED,10965,3,"2,968.55",DEVELOPMENT  EXPENSES-CONTRACT,06/06/13,
040613G,ACL ELECTRICAL LIMITED,10965,4,"5,558.65",DEVELOPMENT  EXPENSES-CONTRACT,06/06/13,
040613G,ACL ELECTRICAL LIMITED,10965,5,"4,540.25",DEVELOPMENT  EXPENSES-CONTRACT,06/06/13,
040613G,ACL ELECTRICAL LIMITED,10965,6,"3,751.10",DEVELOPMENT  EXPENSES-CONTRACT,06/06/13,
290513C,ROYAL COLLEGE OF MUSIC========,11038459,1,370.00,PRESS OFFICE,06/06/13,370.00
300513C,BT GLOBAL SERVICES============,1125777,1,541.66,TELECOMMUNICATIONS,06/06/13,541.66
220513C,ACTION PLANNING,11370,1,"5,650.00",CONSULTANTS,06/06/13,"5,650.00"
310513E,KIER BUILDING SERV ENGINEERS==,12110175,1,"35,405.70",TACTICAL DAY TO DAY,06/06/13,"74,533.41"
310513E,KIER BUILDING SERV ENGINEERS==,12110175,2,523.33,TACTICAL DAY TO DAY,06/06/13,
310513E,KIER BUILDING SERV ENGINEERS==,12110175,3,"1,745.65",TACTICAL DAY TO DAY,06/06/13,
310513E,KIER BUILDING SERV ENGINEERS==,12110175,4,"1,882.77",TACTICAL DAY TO DAY,06/06/13,
310513E,KIER BUILDING SERV ENGINEERS==,12110175,5,"26,898.33",STRATEGIC (CYCLICAL),06/06/13,
310513E,KIER BUILDING SERV ENGINEERS==,12110175,6,808.13,STRATEGIC (CYCLICAL),06/06/13,
310513E,KIER BUILDING SERV ENGINEERS==,12110175,7,"1,488.35",STRATEGIC (CYCLICAL),06/06/13,
310513E,KIER BUILDING SERV ENGINEERS==,12110175,8,"5,781.15",STRATEGIC (CYCLICAL),06/06/13,
040613G,DALE CARNEGIE=================,12711,1,600.00,PROFESSIONAL DEVELOPMENT,06/06/13,600.00
140230,BGLOBAL METERING LTD==========,13011414,1,53.00,ELECTRICITY,06/06/13,"7,950.00"
140230,BGLOBAL METERING LTD==========,13011414,2,53.00,ELECTRICITY,06/06/13,
140230,BGLOBAL METERING LTD==========,13011414,3,53.00,ELECTRICITY,06/06/13,
140230,BGLOBAL METERING LTD==========,13011414,4,53.00,ELECTRICITY,06/06/13,
140230,BGLOBAL METERING LTD==========,13011414,5,53.00,ELECTRICITY,06/06/13,
140230,BGLOBAL METERING LTD==========,13011414,6,53.00,ELECTRICITY,06/06/13,
140230,BGLOBAL METERING LTD==========,13011414,7,53.00,ELECTRICITY,06/06/13,
140230,BGLOBAL METERING LTD==========,13011414,8,265.00,ELECTRICITY,06/06/13,
140230,BGLOBAL METERING LTD==========,13011414,9,106.00,ELECTRICITY,06/06/13,
140230,BGLOBAL METERING LTD==========,13011414,10,53.00,ELECTRICITY,06/06/13,
140230,BGLOBAL METERING LTD==========,13011414,11,53.00,ELECTRICITY,06/06/13,
140230,BGLOBAL METERING LTD==========,13011414,12,53.00,ELECTRICITY,06/06/13,
140230,BGLOBAL METERING LTD==========,13011414,13,53.00,ELECTRICITY,06/06/13,
140230,BGLOBAL METERING LTD==========,13011414,14,53.00,ELECTRICITY,06/06/13,
140230,BGLOBAL METERING LTD==========,13011414,15,53.00,ELECTRICITY,06/06/13,
140230,BGLOBAL METERING LTD==========,13011414,16,53.00,ELECTRICITY,06/06/13,
140230,BGLOBAL METERING LTD==========,13011414,17,53.00,ELECTRICITY,06/06/13,
140230,BGLOBAL METERING LTD==========,13011414,18,106.00,ELECTRICITY,06/06/13,
140230,BGLOBAL METERING LTD==========,13011414,19,53.00,ELECTRICITY,06/06/13,
140230,BGLOBAL METERING LTD==========,13011414,20,53.00,ELECTRICITY,06/06/13,
140230,BGLOBAL METERING LTD==========,13011414,21,53.00,ELECTRICITY,06/06/13,
140230,BGLOBAL METERING LTD==========,13011414,22,53.00,ELECTRICITY,06/06/13,
140230,BGLOBAL METERING LTD==========,13011414,23,53.00,ELECTRICITY,06/06/13,
140230,BGLOBAL METERING LTD==========,13011414,24,53.00,ELECTRICITY,06/06/13,
140230,BGLOBAL METERING LTD==========,13011414,25,53.00,ELECTRICITY,06/06/13,
140230,BGLOBAL METERING LTD==========,13011414,26,53.00,ELECTRICITY,06/06/13,
140230,BGLOBAL METERING LTD==========,13011414,27,53.00,ELECTRICITY,06/06/13,
140230,BGLOBAL METERING LTD==========,13011414,28,53.00,ELECTRICITY,06/06/13,
140230,BGLOBAL METERING LTD==========,13011414,29,53.00,ELECTRICITY,06/06/13,
140230,BGLOBAL METERING LTD==========,13011414,30,106.00,ELECTRICITY,06/06/13,
140230,BGLOBAL METERING LTD==========,13011414,31,53.00,ELECTRICITY,06/06/13,
140230,BGLOBAL METERING LTD==========,13011414,32,53.00,ELECTRICITY,06/06/13,
140230,BGLOBAL METERING LTD==========,13011414,33,53.00,ELECTRICITY,06/06/13,
140230,BGLOBAL METERING LTD==========,13011414,34,53.00,ELECTRICITY,06/06/13,
140230,BGLOBAL METERING LTD==========,13011414,35,53.00,ELECTRICITY,06/06/13,
140230,BGLOBAL METERING LTD==========,13011414,36,53.00,ELECTRICITY,06/06/13,
140230,BGLOBAL METERING LTD==========,13011414,37,53.00,ELECTRICITY,06/06/13,
140230,BGLOBAL METERING LTD==========,13011414,38,106.00,ELECTRICITY,06/06/13,
140230,BGLOBAL METERING LTD==========,13011414,39,53.00,ELECTRICITY,06/06/13,
140230,BGLOBAL METERING LTD==========,13011414,40,53.00,ELECTRICITY,06/06/13,
140230,BGLOBAL METERING LTD==========,13011414,41,53.00,ELECTRICITY,06/06/13,
140230,BGLOBAL METERING LTD==========,13011414,42,53.00,ELECTRICITY,06/06/13,
140230,BGLOBAL METERING LTD==========,13011414,43,212.00,ELECTRICITY,06/06/13,
140230,BGLOBAL METERING LTD==========,13011414,44,53.00,ELECTRICITY,06/06/13,
140230,BGLOBAL METERING LTD==========,13011414,45,53.00,ELECTRICITY,06/06/13,
140230,BGLOBAL METERING LTD==========,13011414,46,53.00,ELECTRICITY,06/06/13,
140230,BGLOBAL METERING LTD==========,13011414,47,53.00,ELECTRICITY,06/06/13,
140230,BGLOBAL METERING LTD==========,13011414,48,159.00,ELECTRICITY,06/06/13,
140230,BGLOBAL METERING LTD==========,13011414,49,53.00,ELECTRICITY,06/06/13,
140230,BGLOBAL METERING LTD==========,13011414,50,53.00,ELECTRICITY,06/06/13,
140230,BGLOBAL METERING LTD==========,13011414,51,159.00,ELECTRICITY,06/06/13,
140230,BGLOBAL METERING LTD==========,13011414,52,53.00,ELECTRICITY,06/06/13,
140230,BGLOBAL METERING LTD==========,13011414,53,53.00,ELECTRICITY,06/06/13,
140230,BGLOBAL METERING LTD==========,13011414,54,53.00,ELECTRICITY,06/06/13,
140230,BGLOBAL METERING LTD==========,13011414,55,53.00,ELECTRICITY,06/06/13,
140230,BGLOBAL METERING LTD==========,13011414,56,53.00,ELECTRICITY,06/06/13,
140230,BGLOBAL METERING LTD==========,13011414,57,53.00,ELECTRICITY,06/06/13,
140230,BGLOBAL METERING LTD==========,13011414,58,53.00,ELECTRICITY,06/06/13,
140230,BGLOBAL METERING LTD==========,13011414,59,53.00,ELECTRICITY,06/06/13,
140230,BGLOBAL METERING LTD==========,13011414,60,53.00,ELECTRICITY,06/06/13,
140230,BGLOBAL METERING LTD==========,13011414,61,53.00,ELECTRICITY,06/06/13,
140230,BGLOBAL METERING LTD==========,13011414,62,53.00,ELECTRICITY,06/06/13,
140230,BGLOBAL METERING LTD==========,13011414,63,53.00,ELECTRICITY,06/06/13,
140230,BGLOBAL METERING LTD==========,13011414,64,53.00,ELECTRICITY,06/06/13,
140230,BGLOBAL METERING LTD==========,13011414,65,53.00,ELECTRICITY,06/06/13,
140230,BGLOBAL METERING LTD==========,13011414,66,265.00,ELECTRICITY,06/06/13,
140230,BGLOBAL METERING LTD==========,13011414,67,53.00,ELECTRICITY,06/06/13,
140230,BGLOBAL METERING LTD==========,13011414,68,53.00,ELECTRICITY,06/06/13,
140230,BGLOBAL METERING LTD==========,13011414,69,53.00,ELECTRICITY,06/06/13,
140230,BGLOBAL METERING LTD==========,13011414,70,106.00,ELECTRICITY,06/06/13,
140230,BGLOBAL METERING LTD==========,13011414,71,53.00,ELECTRICITY,06/06/13,
140230,BGLOBAL METERING LTD==========,13011414,72,53.00,ELECTRICITY,06/06/13,
140230,BGLOBAL METERING LTD==========,13011414,73,53.00,ELECTRICITY,06/06/13,
140230,BGLOBAL METERING LTD==========,13011414,74,53.00,ELECTRICITY,06/06/13,
140230,BGLOBAL METERING LTD==========,13011414,75,53.00,ELECTRICITY,06/06/13,
140230,BGLOBAL METERING LTD==========,13011414,76,53.00,ELECTRICITY,06/06/13,
140230,BGLOBAL METERING LTD==========,13011414,77,53.00,ELECTRICITY,06/06/13,
140230,BGLOBAL METERING LTD==========,13011414,78,53.00,ELECTRICITY,06/06/13,
140230,BGLOBAL METERING LTD==========,13011414,79,53.00,ELECTRICITY,06/06/13,
140230,BGLOBAL METERING LTD==========,13011414,80,53.00,ELECTRICITY,06/06/13,
140230,BGLOBAL METERING LTD==========,13011414,81,53.00,ELECTRICITY,06/06/13,
140230,BGLOBAL METERING LTD==========,13011414,82,159.00,ELECTRICITY,06/06/13,
140230,BGLOBAL METERING LTD==========,13011414,83,53.00,ELECTRICITY,06/06/13,
140230,BGLOBAL METERING LTD==========,13011414,84,106.00,ELECTRICITY,06/06/13,
140230,BGLOBAL METERING LTD==========,13011414,85,53.00,ELECTRICITY,06/06/13,
140230,BGLOBAL METERING LTD==========,13011414,86,53.00,ELECTRICITY,06/06/13,
140230,BGLOBAL METERING LTD==========,13011414,87,53.00,ELECTRICITY,06/06/13,
140230,BGLOBAL METERING LTD==========,13011414,88,53.00,ELECTRICITY,06/06/13,
140230,BGLOBAL METERING LTD==========,13011414,89,53.00,ELECTRICITY,06/06/13,
140230,BGLOBAL METERING LTD==========,13011414,90,53.00,ELECTRICITY,06/06/13,
140230,BGLOBAL METERING LTD==========,13011414,91,53.00,ELECTRICITY,06/06/13,
140230,BGLOBAL METERING LTD==========,13011414,92,106.00,ELECTRICITY,06/06/13,
140230,BGLOBAL METERING LTD==========,13011414,93,159.00,ELECTRICITY,06/06/13,
140230,BGLOBAL METERING LTD==========,13011414,94,53.00,ELECTRICITY,06/06/13,
140230,BGLOBAL METERING LTD==========,13011414,95,53.00,ELECTRICITY,06/06/13,
140230,BGLOBAL METERING LTD==========,13011414,96,53.00,ELECTRICITY,06/06/13,
140230,BGLOBAL METERING LTD==========,13011414,97,53.00,ELECTRICITY,06/06/13,
140230,BGLOBAL METERING LTD==========,13011414,98,53.00,ELECTRICITY,06/06/13,
140230,BGLOBAL METERING LTD==========,13011414,99,53.00,ELECTRICITY,06/06/13,
140230,BGLOBAL METERING LTD==========,13011414,100,53.00,ELECTRICITY,06/06/13,
140230,BGLOBAL METERING LTD==========,13011414,101,53.00,ELECTRICITY,06/06/13,
140230,BGLOBAL METERING LTD==========,13011414,102,53.00,ELECTRICITY,06/06/13,
140230,BGLOBAL METERING LTD==========,13011414,103,53.00,ELECTRICITY,06/06/13,
140230,BGLOBAL METERING LTD==========,13011414,104,53.00,ELECTRICITY,06/06/13,
140230,BGLOBAL METERING LTD==========,13011414,105,53.00,ELECTRICITY,06/06/13,
140230,BGLOBAL METERING LTD==========,13011414,106,53.00,ELECTRICITY,06/06/13,
140230,BGLOBAL METERING LTD==========,13011414,107,212.00,ELECTRICITY,06/06/13,
140230,BGLOBAL METERING LTD==========,13011414,108,53.00,ELECTRICITY,06/06/13,
140230,BGLOBAL METERING LTD==========,13011414,109,106.00,ELECTRICITY,06/06/13,
140230,BGLOBAL METERING LTD==========,13011414,110,371.00,ELECTRICITY,06/06/13,
140230,BGLOBAL METERING LTD==========,13011414,111,106.00,ELECTRICITY,06/06/13,
140230,BGLOBAL METERING LTD==========,13011414,112,53.00,GAS,06/06/13,
140230,BGLOBAL METERING LTD==========,13011414,113,53.00,GAS,06/06/13,
030613C,CMT===========================,135116,1,381.80,OPERATIONAL EQUIP-PURCHASE,06/06/13,"2,141.45"
030613C,CMT===========================,135116,2,"1,714.65",OPERATIONAL EQUIP-PURCHASE,06/06/13,
030613C,CMT===========================,135116,3,45.00,OPERATIONAL EQUIP-PURCHASE,06/06/13,
300513C,DITTON ELECTRICAL CONTRACTS LT,13803,1,"69,281.87",PURCHASES-COMPUTER/EQUIPMENT,06/06/13,"69,281.87"
030613H,RESPIREX======================,142251,1,"13,500.00",PROTECTIVE EQUIPMENT,06/06/13,"13,500.00"
220513H,B NOKES CONTRACTS LTD,1754,1,365.00,TACTICAL DAY TO DAY,06/06/13,365.00
290513C,B NOKES CONTRACTS LTD,1771,1,267.50,DEVELOPMENT  EXPENSES-CONTRACT,06/06/13,267.50
290513C,COMMUNITIES & LOCAL GOVERNMENT,1800018715,1,"104,816.53",MAINTENANCE & SUPPORT,06/06/13,"112,511.29"
290513C,COMMUNITIES & LOCAL GOVERNMENT,1800018715,2,"7,694.76",MAINTENANCE & SUPPORT,06/06/13,
140232,AFFINITY WATER,2075273&Q,1,290.92,WATER & SEWERAGE RATES,06/06/13,290.92
220513C,SAFEGUARD PEST CON. & ENV.LTD,210236,1,473.00,PEST CONTROL,06/06/13,793.00
220513C,SAFEGUARD PEST CON. & ENV.LTD,210236,2,320.00,PEST CONTROL,06/06/13,
220513C,SAFEGUARD PEST CON. & ENV.LTD,210244,1,520.00,PEST CONTROL,06/06/13,520.00
030613C,C LAWSON======================,210513,1,418.20,BOOKS & JOURNALS,06/06/13,418.20
170513H,STORM TECHNOLOGIES============,223829,1,497.08,GOVERNMENT GRANTS,06/06/13,994.16
170513H,STORM TECHNOLOGIES============,223829,2,497.08,ACQUISITIONS,06/06/13,
300513C,ASBESTOS FIRST================,22391/R121130,1,"8,213.15",DEVELOPMENT  EXPENSES-CONTRACT,06/06/13,"8,213.15"
140234,MR STEPHEN WALSH,231907,1,"3,500.00",PROFESSIONAL FEES GENERAL,06/06/13,"3,500.00"
220513H,UNDERSTANDING RECRUITMENT=====,2403,1,"9,660.00",FRS STAFF AGENCY,06/06/13,"9,660.00"
210513E,UNDERSTANDING RECRUITMENT=====,2405,1,"4,155.00",FRS STAFF AGENCY,06/06/13,"4,155.00"
290513C,DRAIN CONTROL=================,25331,1,395.00,TACTICAL DAY TO DAY,06/06/13,395.00
290513C,ADECCO UK LIMITED=============,26410109,1,"11,250.00",FRS STAFF AGENCY,06/06/13,"11,250.00"
140232,THAMES WATER UTILITIES LTD====,29631-80521*,1,299.67,WATER & SEWERAGE RATES,06/06/13,299.67
290513C,*HOMEPACK LTD=================,36327,1,90.00,OPERATIONAL EQUIP-PURCHASE,06/06/13,270.00
290513C,*HOMEPACK LTD=================,36327,2,90.00,OPERATIONAL EQUIP-PURCHASE,06/06/13,
290513C,*HOMEPACK LTD=================,36327,3,90.00,OPERATIONAL EQUIP-PURCHASE,06/06/13,
300513C,COMPUTACENTRE================,3804720796,1,350.00,ACQUISITIONS,06/06/13,475.00
300513C,COMPUTACENTRE================,3804720796,2,125.00,ACQUISITIONS,06/06/13,
200513H,W & E DERRICK BLDG. CONT.=====,4038,1,605.00,STRATEGIC (NON CYCLICAL),06/06/13,605.00
230513E,W & E DERRICK BLDG. CONT.=====,4039,1,"4,150.00",STRATEGIC (NON CYCLICAL),06/06/13,"5,670.00"
230513E,W & E DERRICK BLDG. CONT.=====,4039,2,"1,520.00",STRATEGIC (NON CYCLICAL),06/06/13,
030613C,CIBSE=========================,40895,1,265.00,PROFESSIONAL DEVELOPMENT,06/06/13,265.00
140234,CENTRAL LAW TRAINING LTD======,4095890,1,"1,540.00",PROFESSIONAL DEVELOPMENT,06/06/13,"1,540.00"
030613C,CIBSE=========================,41203,1,285.00,PROFESSIONAL DEVELOPMENT,06/06/13,570.00
030613C,CIBSE=========================,41203,2,285.00,PROFESSIONAL DEVELOPMENT,06/06/13,
220513C,GLOBAL TO LOCAL LTD,437/8/AF175,1,450.00,CONSULTANTS,06/06/13,"2,197.05"
220513C,GLOBAL TO LOCAL LTD,437/8/AF175,2,"1,500.00",CONSULTANTS,06/06/13,
220513C,GLOBAL TO LOCAL LTD,437/8/AF175,3,247.05,CONSULTANTS,06/06/13,
300513C,SPORTSAFE UK LTD==============,444352,1,5.30,GYM EQUIPMENT,06/06/13,339.95
300513C,SPORTSAFE UK LTD==============,444352,2,20.14,GYM EQUIPMENT,06/06/13,
300513C,SPORTSAFE UK LTD==============,444352,3,10.07,GYM EQUIPMENT,06/06/13,
300513C,SPORTSAFE UK LTD==============,444352,4,184.00,GYM EQUIPMENT,06/06/13,
300513C,SPORTSAFE UK LTD==============,444352,5,51.44,GYM EQUIPMENT,06/06/13,
300513C,SPORTSAFE UK LTD==============,444352,6,69.00,GYM EQUIPMENT,06/06/13,
300513C,URS SCOTT WILSON LIMITED,518607,1,"1,363.00",STRATEGIC (NON CYCLICAL),06/06/13,"1,363.00"
300513C,URS SCOTT WILSON LIMITED,5529523,1,"1,371.67",PROF FEES-MISCELLANEOUS,06/06/13,"1,371.67"
140231,CORBETT & SONS LIMITED========,5591,1,"12,509.55",STRATEGIC (NON CYCLICAL),06/06/13,"18,238.90"
140231,CORBETT & SONS LIMITED========,5591,2,"5,729.35",STRATEGIC (NON CYCLICAL),06/06/13,
140232,LONDON PENSIONS FUND AUTHORITY,6362,1,"86,170.53",LOCAL GOVT PENSION SCHEME PAYM,06/06/13,"86,170.53"
300513C,VODAFONE LIMITED==============,67731569,1,"52,586.20",CELLULAR TELEPHONES,06/06/13,"52,586.20"
300513C,VODAFONE LIMITED==============,67731693,1,"1,092.03",CELLULAR TELEPHONES,06/06/13,"1,092.03"
290513C,SWEETT  UK LTD,7022713,1,"3,735.00",PROF FEES-MISCELLANEOUS,06/06/13,"3,735.00"
290513C,SWEETT  UK LTD,7023861,1,"2,304.87",PROF FEES-MISCELLANEOUS,06/06/13,"2,304.87"
300513C,A.R.C.S. ENVIRONMENTAL LTD====,7695,1,350.00,DEVELOPMENT  EXPENSES-CONTRACT,06/06/13,350.00
300513C,A.R.C.S. ENVIRONMENTAL LTD====,7696,1,520.00,DEVELOPMENT  EXPENSES-CONTRACT,06/06/13,520.00
310513E,A.R.C.S. ENVIRONMENTAL LTD====,7697,1,300.00,DEVELOPMENT  EXPENSES-CONTRACT,06/06/13,300.00
140234,MISS SABA NAQSHBANDI==========,7878/231907,1,595.00,PROFESSIONAL FEES GENERAL,06/06/13,595.00
140234,THOMPSONS=====================,8878,2,"1,450.00",CLAIMANT COSTS AGREED,06/06/13,"1,450.00"
030613H,DRAEGER SAFETY UK LIMITED=====,90412107,1,"4,475.00",PROTECTIVE EQUIPT - PARTS,06/06/13,"4,475.00"
030613H,DRAEGER SAFETY UK LIMITED=====,90412460,1,265.95,PROTECTIVE EQUIPT - PARTS,06/06/13,265.95
030613H,DRAEGER SAFETY UK LIMITED=====,90412601,1,608.00,PROTECTIVE EQUIPT - PARTS,06/06/13,608.00
030613H,DRAEGER SAFETY UK LIMITED=====,90413140,1,142.60,PROTECTIVE EQUIPT - PARTS,06/06/13,560.55
030613H,DRAEGER SAFETY UK LIMITED=====,90413140,2,341.75,PROTECTIVE EQUIPT - PARTS,06/06/13,
030613H,DRAEGER SAFETY UK LIMITED=====,90413140,3,76.20,PROTECTIVE EQUIPT - PARTS,06/06/13,
030613H,DRAEGER SAFETY UK LIMITED=====,90413255,1,255.00,PROTECTIVE EQUIPT - PARTS,06/06/13,255.00
030613H,DRAEGER SAFETY UK LIMITED=====,90413485,1,"1,108.00",PROTECTIVE EQUIPT - PARTS,06/06/13,"1,108.00"
030613H,DRAEGER SAFETY UK LIMITED=====,90413544,1,285.20,PROTECTIVE EQUIPT - PARTS,06/06/13,285.20
030613H,DRAEGER SAFETY UK LIMITED=====,90413680,1,318.60,PROTECTIVE EQUIPT - PARTS,06/06/13,318.60
030613H,DRAEGER SAFETY UK LIMITED=====,90413789,1,354.00,PROTECTIVE EQUIPT - PARTS,06/06/13,354.00
030613H,DRAEGER SAFETY UK LIMITED=====,90413790,1,760.40,PROTECTIVE EQUIPT - PARTS,06/06/13,760.40
030613H,TSI INSTRUMENTS LTD===========,90564469,1,435.00,REPAIR & MAINTENANCE,06/06/13,444.25
030613H,TSI INSTRUMENTS LTD===========,90564469,2,9.25,REPAIR & MAINTENANCE,06/06/13,
300513C,NORTHUMBRIAN WATER LTD========,912914130,1,893.00,CURRENT HYDRANT COSTS,06/06/13,893.00
300513C,NORTHUMBRIAN WATER LTD========,912914149,1,893.00,CURRENT HYDRANT COSTS,06/06/13,893.00
300513C,NORTHUMBRIAN WATER LTD========,912914165,1,301.00,CURRENT HYDRANT COSTS,06/06/13,301.00
220513C,SMITHS DETECTION WATFORD LTD.,92015308,1,"3,995.00",OPERATIONAL EQUIP-PURCHASE,06/06/13,"3,995.00"
300513C,FIRE SERVICE COLLEGE LTD======,92980813,1,"13,252.50",PROFESSIONAL DEVELOPMENT,06/06/13,"13,252.50"
280513H,*OFFICE DEPOT UK LTD,957497127,1,276.00,STATIONERY CONSUMABLES,06/06/13,276.00
140232,THAMES WATER UTILITIES LTD====,9612596790D,1,280.03,WATER & SEWERAGE RATES,06/06/13,280.03
300513C,MSA (BRITAIN) LIMITED=========,97007576,1,64.00,CLOTHING,06/06/13,252.24
300513C,MSA (BRITAIN) LIMITED=========,97007576,2,64.00,CLOTHING,06/06/13,
300513C,MSA (BRITAIN) LIMITED=========,97007576,3,62.12,CLOTHING,06/06/13,
300513C,MSA (BRITAIN) LIMITED=========,97007576,4,62.12,CLOTHING,06/06/13,
040613G,HVCA PUBLICATIONS=============,9762,1,400.00,BOOKS & JOURNALS,06/06/13,400.00
300513C,ASTEC SURVEYS LIMITED=========,ASL-13-076,1,395.00,DEVELOPMENT  EXPENSES-CONTRACT,06/06/13,395.00
040613G,LG BLAND ELECTRICAL & MECHANIC,B44371,1,"10,664.47",DEVELOPMENT  EXPENSES-CONTRACT,06/06/13,"18,905.19"
040613G,LG BLAND ELECTRICAL & MECHANIC,B44371,2,"8,240.72",DEVELOPMENT  EXPENSES-CONTRACT,06/06/13,
300513H,PITNEY BOWES PURCHASE POWER,BA611682,1,"5,345.22",POSTAL SERVICES,06/06/13,"5,345.22"
030613H,PITNEY BOWES PURCHASE POWER,BA611682*,1,277.35,POSTAL SERVICES,06/06/13,277.35
030613C,BOON EDAM LTD,C10481,1,"29,588.00",DEVELOPMENT  EXPENSES-CONTRACT,06/06/13,"41,953.00"
030613C,BOON EDAM LTD,C10481,2,"12,365.00",DAY TO DAY MINOR IMPS,06/06/13,
030613H,SURVITEC SERVICE &DISTRIBUTION,CD30738276,1,625.50,PROTECTIVE EQUIPT - PARTS,06/06/13,635.50
030613H,SURVITEC SERVICE &DISTRIBUTION,CD30738276,2,10.00,REPAIR & MAINTENANCE,06/06/13,
290513C,KIER BUILDING SERV ENGINEERS==,F00042333,1,"2,465.24",STRATEGIC (NON CYCLICAL),06/06/13,"2,465.24"
290513C,KIER BUILDING SERV ENGINEERS==,F00042359,1,"1,499.00",TACTICAL DAY TO DAY,06/06/13,"1,499.00"
290513C,KIER BUILDING SERV ENGINEERS==,F00042360,1,"2,279.00",TACTICAL DAY TO DAY,06/06/13,"2,279.00"
290513C,KIER BUILDING SERV ENGINEERS==,F0042361,1,"2,279.00",TACTICAL DAY TO DAY,06/06/13,"2,279.00"
290513C,REDACTIVE EVENTS LTD,KZN3NJTWMPP,1,580.00,PROFESSIONAL DEVELOPMENT,06/06/13,580.00
030613C,G4S TECHNOLOGY LIMITED========,MTN10746,1,"2,197.00",STRATEGIC (NON CYCLICAL),06/06/13,"2,197.00"
030613C,G4S TECHNOLOGY LIMITED========,MTN10774,1,592.00,STRATEGIC (NON CYCLICAL),06/06/13,592.00
290513C,RADIOCOMS SYSTEMS LIMITED=====,OP/I011169,1,677.40,RADIO,06/06/13,677.40
800020462,ALLSTAR BUSINESS SOLUTIONS LTD,P2000896609,1,9.67,FUEL,06/06/13,"20,975.21"
800020462,ALLSTAR BUSINESS SOLUTIONS LTD,P2000896609,2,10.46,FUEL,06/06/13,
800020462,ALLSTAR BUSINESS SOLUTIONS LTD,P2000896609,3,19.19,FUEL,06/06/13,
800020462,ALLSTAR BUSINESS SOLUTIONS LTD,P2000896609,4,22.47,FUEL,06/06/13,
800020462,ALLSTAR BUSINESS SOLUTIONS LTD,P2000896609,5,27.23,FUEL,06/06/13,
800020462,ALLSTAR BUSINESS SOLUTIONS LTD,P2000896609,6,27.37,FUEL,06/06/13,
800020462,ALLSTAR BUSINESS SOLUTIONS LTD,P2000896609,7,29.68,FUEL,06/06/13,
800020462,ALLSTAR BUSINESS SOLUTIONS LTD,P2000896609,8,33.87,FUEL,06/06/13,
800020462,ALLSTAR BUSINESS SOLUTIONS LTD,P2000896609,9,44.46,FUEL,06/06/13,
800020462,ALLSTAR BUSINESS SOLUTIONS LTD,P2000896609,10,53.29,FUEL,06/06/13,
800020462,ALLSTAR BUSINESS SOLUTIONS LTD,P2000896609,11,59.00,FUEL,06/06/13,
800020462,ALLSTAR BUSINESS SOLUTIONS LTD,P2000896609,12,61.07,FUEL,06/06/13,
800020462,ALLSTAR BUSINESS SOLUTIONS LTD,P2000896609,13,61.77,FUEL,06/06/13,
800020462,ALLSTAR BUSINESS SOLUTIONS LTD,P2000896609,14,67.17,FUEL,06/06/13,
800020462,ALLSTAR BUSINESS SOLUTIONS LTD,P2000896609,15,69.28,FUEL,06/06/13,
800020462,ALLSTAR BUSINESS SOLUTIONS LTD,P2000896609,16,74.10,FUEL,06/06/13,
800020462,ALLSTAR BUSINESS SOLUTIONS LTD,P2000896609,17,85.42,FUEL,06/06/13,
800020462,ALLSTAR BUSINESS SOLUTIONS LTD,P2000896609,18,85.48,FUEL,06/06/13,
800020462,ALLSTAR BUSINESS SOLUTIONS LTD,P2000896609,19,90.74,FUEL,06/06/13,
800020462,ALLSTAR BUSINESS SOLUTIONS LTD,P2000896609,20,92.12,FUEL,06/06/13,
800020462,ALLSTAR BUSINESS SOLUTIONS LTD,P2000896609,21,92.67,FUEL,06/06/13,
800020462,ALLSTAR BUSINESS SOLUTIONS LTD,P2000896609,22,93.75,FUEL,06/06/13,
800020462,ALLSTAR BUSINESS SOLUTIONS LTD,P2000896609,23,94.26,FUEL,06/06/13,
800020462,ALLSTAR BUSINESS SOLUTIONS LTD,P2000896609,24,94.44,FUEL,06/06/13,
800020462,ALLSTAR BUSINESS SOLUTIONS LTD,P2000896609,25,95.29,FUEL,06/06/13,
800020462,ALLSTAR BUSINESS SOLUTIONS LTD,P2000896609,26,96.48,FUEL,06/06/13,
800020462,ALLSTAR BUSINESS SOLUTIONS LTD,P2000896609,27,99.22,FUEL,06/06/13,
800020462,ALLSTAR BUSINESS SOLUTIONS LTD,P2000896609,28,99.36,FUEL,06/06/13,
800020462,ALLSTAR BUSINESS SOLUTIONS LTD,P2000896609,29,99.59,FUEL,06/06/13,
800020462,ALLSTAR BUSINESS SOLUTIONS LTD,P2000896609,30,103.59,FUEL,06/06/13,
800020462,ALLSTAR BUSINESS SOLUTIONS LTD,P2000896609,31,112.97,FUEL,06/06/13,
800020462,ALLSTAR BUSINESS SOLUTIONS LTD,P2000896609,32,113.41,FUEL,06/06/13,
800020462,ALLSTAR BUSINESS SOLUTIONS LTD,P2000896609,33,114.48,FUEL,06/06/13,
800020462,ALLSTAR BUSINESS SOLUTIONS LTD,P2000896609,34,114.66,FUEL,06/06/13,
800020462,ALLSTAR BUSINESS SOLUTIONS LTD,P2000896609,35,114.94,FUEL,06/06/13,
800020462,ALLSTAR BUSINESS SOLUTIONS LTD,P2000896609,36,115.22,FUEL,06/06/13,
800020462,ALLSTAR BUSINESS SOLUTIONS LTD,P2000896609,37,115.94,FUEL,06/06/13,
800020462,ALLSTAR BUSINESS SOLUTIONS LTD,P2000896609,38,116.59,FUEL,06/06/13,
800020462,ALLSTAR BUSINESS SOLUTIONS LTD,P2000896609,39,117.43,FUEL,06/06/13,
800020462,ALLSTAR BUSINESS SOLUTIONS LTD,P2000896609,40,119.53,FUEL,06/06/13,
800020462,ALLSTAR BUSINESS SOLUTIONS LTD,P2000896609,41,119.57,FUEL,06/06/13,
800020462,ALLSTAR BUSINESS SOLUTIONS LTD,P2000896609,42,120.20,FUEL,06/06/13,
800020462,ALLSTAR BUSINESS SOLUTIONS LTD,P2000896609,43,122.42,FUEL,06/06/13,
800020462,ALLSTAR BUSINESS SOLUTIONS LTD,P2000896609,44,124.84,FUEL,06/06/13,
800020462,ALLSTAR BUSINESS SOLUTIONS LTD,P2000896609,45,125.22,FUEL,06/06/13,
800020462,ALLSTAR BUSINESS SOLUTIONS LTD,P2000896609,46,126.54,FUEL,06/06/13,
800020462,ALLSTAR BUSINESS SOLUTIONS LTD,P2000896609,47,127.34,FUEL,06/06/13,
800020462,ALLSTAR BUSINESS SOLUTIONS LTD,P2000896609,48,140.29,FUEL,06/06/13,
800020462,ALLSTAR BUSINESS SOLUTIONS LTD,P2000896609,49,142.40,FUEL,06/06/13,
800020462,ALLSTAR BUSINESS SOLUTIONS LTD,P2000896609,50,153.39,FUEL,06/06/13,
800020462,ALLSTAR BUSINESS SOLUTIONS LTD,P2000896609,51,155.10,FUEL,06/06/13,
800020462,ALLSTAR BUSINESS SOLUTIONS LTD,P2000896609,52,155.64,FUEL,06/06/13,
800020462,ALLSTAR BUSINESS SOLUTIONS LTD,P2000896609,53,159.33,FUEL,06/06/13,
800020462,ALLSTAR BUSINESS SOLUTIONS LTD,P2000896609,54,162.97,FUEL,06/06/13,
800020462,ALLSTAR BUSINESS SOLUTIONS LTD,P2000896609,55,164.28,FUEL,06/06/13,
800020462,ALLSTAR BUSINESS SOLUTIONS LTD,P2000896609,56,165.26,FUEL,06/06/13,
800020462,ALLSTAR BUSINESS SOLUTIONS LTD,P2000896609,57,167.54,FUEL,06/06/13,
800020462,ALLSTAR BUSINESS SOLUTIONS LTD,P2000896609,58,168.33,FUEL,06/06/13,
800020462,ALLSTAR BUSINESS SOLUTIONS LTD,P2000896609,59,169.24,FUEL,06/06/13,
800020462,ALLSTAR BUSINESS SOLUTIONS LTD,P2000896609,60,169.25,FUEL,06/06/13,
800020462,ALLSTAR BUSINESS SOLUTIONS LTD,P2000896609,61,169.59,FUEL,06/06/13,
800020462,ALLSTAR BUSINESS SOLUTIONS LTD,P2000896609,62,174.68,FUEL,06/06/13,
800020462,ALLSTAR BUSINESS SOLUTIONS LTD,P2000896609,63,174.85,FUEL,06/06/13,
800020462,ALLSTAR BUSINESS SOLUTIONS LTD,P2000896609,64,176.37,FUEL,06/06/13,
800020462,ALLSTAR BUSINESS SOLUTIONS LTD,P2000896609,65,179.43,FUEL,06/06/13,
800020462,ALLSTAR BUSINESS SOLUTIONS LTD,P2000896609,66,181.62,FUEL,06/06/13,
800020462,ALLSTAR BUSINESS SOLUTIONS LTD,P2000896609,67,183.57,FUEL,06/06/13,
800020462,ALLSTAR BUSINESS SOLUTIONS LTD,P2000896609,68,183.93,FUEL,06/06/13,
800020462,ALLSTAR BUSINESS SOLUTIONS LTD,P2000896609,69,187.82,FUEL,06/06/13,
800020462,ALLSTAR BUSINESS SOLUTIONS LTD,P2000896609,70,190.26,FUEL,06/06/13,
800020462,ALLSTAR BUSINESS SOLUTIONS LTD,P2000896609,71,194.99,FUEL,06/06/13,
800020462,ALLSTAR BUSINESS SOLUTIONS LTD,P2000896609,72,199.10,FUEL,06/06/13,
800020462,ALLSTAR BUSINESS SOLUTIONS LTD,P2000896609,73,200.44,FUEL,06/06/13,
800020462,ALLSTAR BUSINESS SOLUTIONS LTD,P2000896609,74,202.38,FUEL,06/06/13,
800020462,ALLSTAR BUSINESS SOLUTIONS LTD,P2000896609,75,203.42,FUEL,06/06/13,
800020462,ALLSTAR BUSINESS SOLUTIONS LTD,P2000896609,76,203.57,FUEL,06/06/13,
800020462,ALLSTAR BUSINESS SOLUTIONS LTD,P2000896609,77,204.26,FUEL,06/06/13,
800020462,ALLSTAR BUSINESS SOLUTIONS LTD,P2000896609,78,218.53,FUEL,06/06/13,
800020462,ALLSTAR BUSINESS SOLUTIONS LTD,P2000896609,79,219.20,FUEL,06/06/13,
800020462,ALLSTAR BUSINESS SOLUTIONS LTD,P2000896609,80,225.65,FUEL,06/06/13,
800020462,ALLSTAR BUSINESS SOLUTIONS LTD,P2000896609,81,229.68,FUEL,06/06/13,
800020462,ALLSTAR BUSINESS SOLUTIONS LTD,P2000896609,82,231.40,FUEL,06/06/13,
800020462,ALLSTAR BUSINESS SOLUTIONS LTD,P2000896609,83,233.53,FUEL,06/06/13,
800020462,ALLSTAR BUSINESS SOLUTIONS LTD,P2000896609,84,235.76,FUEL,06/06/13,
800020462,ALLSTAR BUSINESS SOLUTIONS LTD,P2000896609,85,240.54,FUEL,06/06/13,
800020462,ALLSTAR BUSINESS SOLUTIONS LTD,P2000896609,86,242.82,FUEL,06/06/13,
800020462,ALLSTAR BUSINESS SOLUTIONS LTD,P2000896609,87,248.44,FUEL,06/06/13,
800020462,ALLSTAR BUSINESS SOLUTIONS LTD,P2000896609,88,252.41,FUEL,06/06/13,
800020462,ALLSTAR BUSINESS SOLUTIONS LTD,P2000896609,89,253.07,FUEL,06/06/13,
800020462,ALLSTAR BUSINESS SOLUTIONS LTD,P2000896609,90,253.63,FUEL,06/06/13,
800020462,ALLSTAR BUSINESS SOLUTIONS LTD,P2000896609,91,262.15,FUEL,06/06/13,
800020462,ALLSTAR BUSINESS SOLUTIONS LTD,P2000896609,92,270.59,FUEL,06/06/13,
800020462,ALLSTAR BUSINESS SOLUTIONS LTD,P2000896609,93,273.52,FUEL,06/06/13,
800020462,ALLSTAR BUSINESS SOLUTIONS LTD,P2000896609,94,278.58,FUEL,06/06/13,
800020462,ALLSTAR BUSINESS SOLUTIONS LTD,P2000896609,95,283.99,FUEL,06/06/13,
800020462,ALLSTAR BUSINESS SOLUTIONS LTD,P2000896609,96,298.71,FUEL,06/06/13,
800020462,ALLSTAR BUSINESS SOLUTIONS LTD,P2000896609,97,300.06,FUEL,06/06/13,
800020462,ALLSTAR BUSINESS SOLUTIONS LTD,P2000896609,98,307.01,FUEL,06/06/13,
800020462,ALLSTAR BUSINESS SOLUTIONS LTD,P2000896609,99,319.36,FUEL,06/06/13,
800020462,ALLSTAR BUSINESS SOLUTIONS LTD,P2000896609,100,326.69,FUEL,06/06/13,
800020462,ALLSTAR BUSINESS SOLUTIONS LTD,P2000896609,101,350.05,FUEL,06/06/13,
800020462,ALLSTAR BUSINESS SOLUTIONS LTD,P2000896609,102,368.39,FUEL,06/06/13,
800020462,ALLSTAR BUSINESS SOLUTIONS LTD,P2000896609,103,406.57,FUEL,06/06/13,
800020462,ALLSTAR BUSINESS SOLUTIONS LTD,P2000896609,104,415.61,FUEL,06/06/13,
800020462,ALLSTAR BUSINESS SOLUTIONS LTD,P2000896609,105,496.57,FUEL,06/06/13,
800020462,ALLSTAR BUSINESS SOLUTIONS LTD,P2000896609,106,503.89,FUEL,06/06/13,
800020462,ALLSTAR BUSINESS SOLUTIONS LTD,P2000896609,107,553.86,FUEL,06/06/13,
800020462,ALLSTAR BUSINESS SOLUTIONS LTD,P2000896609,108,556.57,FUEL,06/06/13,
800020462,ALLSTAR BUSINESS SOLUTIONS LTD,P2000896609,109,663.14,FUEL,06/06/13,
800020462,ALLSTAR BUSINESS SOLUTIONS LTD,P2000896609,110,"1,358.15",FUEL,06/06/13,
300513C,THE NATIONAL AUTISTIC SOCIETY=,PRP2144976,1,487.00,PROFESSIONAL DEVELOPMENT,06/06/13,487.00
300513C,DRON & WRIGHT=================,SED/AO/33008,1,"4,481.66",PROFESSIONAL SERVICES,06/06/13,"26,873.23"
300513C,DRON & WRIGHT=================,SED/AO/33008,2,"11,948.00",PROFESSIONAL SERVICES,06/06/13,
300513C,DRON & WRIGHT=================,SED/AO/33008,3,135.00,PROFESSIONAL SERVICES,06/06/13,
300513C,DRON & WRIGHT=================,SED/AO/33008,4,225.00,PROFESSIONAL SERVICES,06/06/13,
300513C,DRON & WRIGHT=================,SED/AO/33008,5,295.00,PROFESSIONAL SERVICES,06/06/13,
300513C,DRON & WRIGHT=================,SED/AO/33008,6,822.50,PROF FEES-MISCELLANEOUS,06/06/13,
300513C,DRON & WRIGHT=================,SED/AO/33008,7,"4,110.20",PROFESSIONAL SERVICES,06/06/13,
300513C,DRON & WRIGHT=================,SED/AO/33008,8,"2,125.00",PROFESSIONAL SERVICES,06/06/13,
300513C,DRON & WRIGHT=================,SED/AO/33008,9,416.67,PROFESSIONAL SERVICES,06/06/13,
300513C,DRON & WRIGHT=================,SED/AO/33008,10,175.00,DISPOSAL COSTS-ESTATES AGENTS,06/06/13,
300513C,DRON & WRIGHT=================,SED/AO/33008,11,70.00,PROF FEES-MISCELLANEOUS,06/06/13,
300513C,DRON & WRIGHT=================,SED/AO/33008,12,"1,400.00",PROF FEES-MISCELLANEOUS,06/06/13,
300513C,DRON & WRIGHT=================,SED/AO/33008,13,669.20,PROF FEES-MISCELLANEOUS,06/06/13,
230513E,SKYGUARD LTD,SI01124737,1,"1,870.00",GENERAL,06/06/13,"1,870.00"
230513E,GROUND CONTROL UMITED,SIN019234,1,13.00,GROUNDS MAINTENANCE,06/06/13,"1,047.10"
230513E,GROUND CONTROL UMITED,SIN019234,2,13.00,GROUNDS MAINTENANCE,06/06/13,
230513E,GROUND CONTROL UMITED,SIN019234,3,57.34,GROUNDS MAINTENANCE,06/06/13,
230513E,GROUND CONTROL UMITED,SIN019234,4,13.00,GROUNDS MAINTENANCE,06/06/13,
230513E,GROUND CONTROL UMITED,SIN019234,5,41.58,GROUNDS MAINTENANCE,06/06/13,
230513E,GROUND CONTROL UMITED,SIN019234,6,41.58,GROUNDS MAINTENANCE,06/06/13,
230513E,GROUND CONTROL UMITED,SIN019234,7,13.00,GROUNDS MAINTENANCE,06/06/13,
230513E,GROUND CONTROL UMITED,SIN019234,8,13.00,GROUNDS MAINTENANCE,06/06/13,
230513E,GROUND CONTROL UMITED,SIN019234,9,53.87,GROUNDS MAINTENANCE,06/06/13,
230513E,GROUND CONTROL UMITED,SIN019234,10,13.00,GROUNDS MAINTENANCE,06/06/13,
230513E,GROUND CONTROL UMITED,SIN019234,11,13.00,GROUNDS MAINTENANCE,06/06/13,
230513E,GROUND CONTROL UMITED,SIN019234,12,60.38,GROUNDS MAINTENANCE,06/06/13,
230513E,GROUND CONTROL UMITED,SIN019234,13,45.21,GROUNDS MAINTENANCE,06/06/13,
230513E,GROUND CONTROL UMITED,SIN019234,14,49.12,GROUNDS MAINTENANCE,06/06/13,
230513E,GROUND CONTROL UMITED,SIN019234,15,13.00,GROUNDS MAINTENANCE,06/06/13,
230513E,GROUND CONTROL UMITED,SIN019234,16,13.00,GROUNDS MAINTENANCE,06/06/13,
230513E,GROUND CONTROL UMITED,SIN019234,17,13.00,GROUNDS MAINTENANCE,06/06/13,
230513E,GROUND CONTROL UMITED,SIN019234,18,49.12,GROUNDS MAINTENANCE,06/06/13,
230513E,GROUND CONTROL UMITED,SIN019234,19,15.00,GROUNDS MAINTENANCE,06/06/13,
230513E,GROUND CONTROL UMITED,SIN019234,20,13.00,GROUNDS MAINTENANCE,06/06/13,
230513E,GROUND CONTROL UMITED,SIN019234,21,13.00,GROUNDS MAINTENANCE,06/06/13,
230513E,GROUND CONTROL UMITED,SIN019234,22,50.41,GROUNDS MAINTENANCE,06/06/13,
230513E,GROUND CONTROL UMITED,SIN019234,23,13.00,GROUNDS MAINTENANCE,06/06/13,
230513E,GROUND CONTROL UMITED,SIN019234,24,13.00,GROUNDS MAINTENANCE,06/06/13,
230513E,GROUND CONTROL UMITED,SIN019234,25,13.00,GROUNDS MAINTENANCE,06/06/13,
230513E,GROUND CONTROL UMITED,SIN019234,26,49.12,GROUNDS MAINTENANCE,06/06/13,
230513E,GROUND CONTROL UMITED,SIN019234,27,45.21,GROUNDS MAINTENANCE,06/06/13,
230513E,GROUND CONTROL UMITED,SIN019234,28,13.00,GROUNDS MAINTENANCE,06/06/13,
230513E,GROUND CONTROL UMITED,SIN019234,29,45.21,GROUNDS MAINTENANCE,06/06/13,
230513E,GROUND CONTROL UMITED,SIN019234,30,15.00,GROUNDS MAINTENANCE,06/06/13,
230513E,GROUND CONTROL UMITED,SIN019234,31,49.12,GROUNDS MAINTENANCE,06/06/13,
230513E,GROUND CONTROL UMITED,SIN019234,32,49.12,GROUNDS MAINTENANCE,06/06/13,
230513E,GROUND CONTROL UMITED,SIN019234,33,49.12,GROUNDS MAINTENANCE,06/06/13,
230513E,GROUND CONTROL UMITED,SIN019234,34,13.00,GROUNDS MAINTENANCE,06/06/13,
230513E,GROUND CONTROL UMITED,SIN019234,35,47.59,GROUNDS MAINTENANCE,06/06/13,
230513E,GROUND CONTROL UMITED,SIN019234,36,13.00,GROUNDS MAINTENANCE,06/06/13,
230513E,GROUND CONTROL UMITED,SIN019235,1,79.85,GROUNDS MAINTENANCE,06/06/13,844.30
230513E,GROUND CONTROL UMITED,SIN019235,2,13.00,GROUNDS MAINTENANCE,06/06/13,
230513E,GROUND CONTROL UMITED,SIN019235,3,13.00,GROUNDS MAINTENANCE,06/06/13,
230513E,GROUND CONTROL UMITED,SIN019235,4,49.46,GROUNDS MAINTENANCE,06/06/13,
230513E,GROUND CONTROL UMITED,SIN019235,5,9.88,GROUNDS MAINTENANCE,06/06/13,
230513E,GROUND CONTROL UMITED,SIN019235,6,34.55,GROUNDS MAINTENANCE,06/06/13,
230513E,GROUND CONTROL UMITED,SIN019235,7,14.29,GROUNDS MAINTENANCE,06/06/13,
230513E,GROUND CONTROL UMITED,SIN019235,8,14.29,GROUNDS MAINTENANCE,06/06/13,
230513E,GROUND CONTROL UMITED,SIN019235,9,41.30,GROUNDS MAINTENANCE,06/06/13,
230513E,GROUND CONTROL UMITED,SIN019235,10,41.30,GROUNDS MAINTENANCE,06/06/13,
230513E,GROUND CONTROL UMITED,SIN019235,11,13.00,GROUNDS MAINTENANCE,06/06/13,
230513E,GROUND CONTROL UMITED,SIN019235,12,13.00,GROUNDS MAINTENANCE,06/06/13,
230513E,GROUND CONTROL UMITED,SIN019235,13,45.21,GROUNDS MAINTENANCE,06/06/13,
230513E,GROUND CONTROL UMITED,SIN019235,14,41.30,GROUNDS MAINTENANCE,06/06/13,
230513E,GROUND CONTROL UMITED,SIN019235,15,13.00,GROUNDS MAINTENANCE,06/06/13,
230513E,GROUND CONTROL UMITED,SIN019235,16,13.00,GROUNDS MAINTENANCE,06/06/13,
230513E,GROUND CONTROL UMITED,SIN019235,17,13.00,GROUNDS MAINTENANCE,06/06/13,
230513E,GROUND CONTROL UMITED,SIN019235,18,13.00,GROUNDS MAINTENANCE,06/06/13,
230513E,GROUND CONTROL UMITED,SIN019235,19,13.00,GROUNDS MAINTENANCE,06/06/13,
230513E,GROUND CONTROL UMITED,SIN019235,20,13.00,GROUNDS MAINTENANCE,06/06/13,
230513E,GROUND CONTROL UMITED,SIN019235,21,13.00,GROUNDS MAINTENANCE,06/06/13,
230513E,GROUND CONTROL UMITED,SIN019235,22,13.00,GROUNDS MAINTENANCE,06/06/13,
230513E,GROUND CONTROL UMITED,SIN019235,23,64.69,GROUNDS MAINTENANCE,06/06/13,
230513E,GROUND CONTROL UMITED,SIN019235,24,13.00,GROUNDS MAINTENANCE,06/06/13,
230513E,GROUND CONTROL UMITED,SIN019235,25,13.00,GROUNDS MAINTENANCE,06/06/13,
230513E,GROUND CONTROL UMITED,SIN019235,26,13.00,GROUNDS MAINTENANCE,06/06/13,
230513E,GROUND CONTROL UMITED,SIN019235,27,34.55,GROUNDS MAINTENANCE,06/06/13,
230513E,GROUND CONTROL UMITED,SIN019235,28,13.00,GROUNDS MAINTENANCE,06/06/13,
230513E,GROUND CONTROL UMITED,SIN019235,29,34.55,GROUNDS MAINTENANCE,06/06/13,
230513E,GROUND CONTROL UMITED,SIN019235,30,38.46,GROUNDS MAINTENANCE,06/06/13,
230513E,GROUND CONTROL UMITED,SIN019235,31,38.46,GROUNDS MAINTENANCE,06/06/13,
230513E,GROUND CONTROL UMITED,SIN019235,32,13.00,GROUNDS MAINTENANCE,06/06/13,
230513E,GROUND CONTROL UMITED,SIN019235,33,13.00,GROUNDS MAINTENANCE,06/06/13,
230513E,GROUND CONTROL UMITED,SIN019235,34,13.00,GROUNDS MAINTENANCE,06/06/13,
230513E,GROUND CONTROL UMITED,SIN019235,35,6.50,GROUNDS MAINTENANCE,06/06/13,
230513E,GROUND CONTROL UMITED,SIN019235,36,8.66,GROUNDS MAINTENANCE,06/06/13,
030613H,KAPLAN FINANCIAL==============,SINV13_029845,1,"2,396.36",PROFESSIONAL DEVELOPMENT,06/06/13,"2,396.36"
290513C,SUNLIGHT SERVICE GROUP LTD====,SN1316504,1,"9,569.91",LAUNDRY,06/06/13,"9,569.91"
290513C,COLLINS (CONTRACTORS) LTD=====,SPAL695,1,402.00,STRATEGIC (NON CYCLICAL),06/06/13,402.00
290513C,COLLINS (CONTRACTORS) LTD=====,SPAM279,1,"2,208.00",STRATEGIC (NON CYCLICAL),06/06/13,"2,208.00"
290513C,COLLINS (CONTRACTORS) LTD=====,SPAM280,1,328.00,STRATEGIC (NON CYCLICAL),06/06/13,328.00
800020097,*XMA LTD,T092161,1,45.51,STATIONERY CONSUMABLES,06/06/13,266.63
800020097,*XMA LTD,T092161,2,110.56,STATIONERY CONSUMABLES,06/06/13,
800020097,*XMA LTD,T092161,3,110.56,STATIONERY CONSUMABLES,06/06/13,
800020098,*XMA LTD,T092166,1,19.96,STATIONERY CONSUMABLES,06/06/13,383.04
800020098,*XMA LTD,T092166,2,134.80,STATIONERY CONSUMABLES,06/06/13,
800020098,*XMA LTD,T092166,3,117.72,STATIONERY CONSUMABLES,06/06/13,
800020098,*XMA LTD,T092166,4,110.56,STATIONERY CONSUMABLES,06/06/13,
050613H,LATIS SCIENTIFIC,0014224,1,88.00,STRATEGIC (CYCLICAL),10/06/13,792.00
050613H,LATIS SCIENTIFIC,0014224,2,88.00,STRATEGIC (CYCLICAL),10/06/13,
050613H,LATIS SCIENTIFIC,0014224,3,88.00,STRATEGIC (CYCLICAL),10/06/13,
050613H,LATIS SCIENTIFIC,0014224,4,88.00,STRATEGIC (CYCLICAL),10/06/13,
050613H,LATIS SCIENTIFIC,0014224,5,88.00,STRATEGIC (CYCLICAL),10/06/13,
050613H,LATIS SCIENTIFIC,0014224,6,88.00,STRATEGIC (CYCLICAL),10/06/13,
050613H,LATIS SCIENTIFIC,0014224,7,88.00,STRATEGIC (CYCLICAL),10/06/13,
050613H,LATIS SCIENTIFIC,0014224,8,88.00,STRATEGIC (CYCLICAL),10/06/13,
050613H,LATIS SCIENTIFIC,0014224,9,88.00,STRATEGIC (CYCLICAL),10/06/13,
050613H,LATIS SCIENTIFIC,0015125,1,725.00,STRATEGIC (CYCLICAL),10/06/13,"7,655.00"
050613H,LATIS SCIENTIFIC,0015125,2,470.00,STRATEGIC (CYCLICAL),10/06/13,
050613H,LATIS SCIENTIFIC,0015125,3,470.00,STRATEGIC (CYCLICAL),10/06/13,
050613H,LATIS SCIENTIFIC,0015125,4,650.00,STRATEGIC (CYCLICAL),10/06/13,
050613H,LATIS SCIENTIFIC,0015125,5,470.00,STRATEGIC (CYCLICAL),10/06/13,
050613H,LATIS SCIENTIFIC,0015125,6,70.00,STRATEGIC (CYCLICAL),10/06/13,
050613H,LATIS SCIENTIFIC,0015125,7,500.00,STRATEGIC (CYCLICAL),10/06/13,
050613H,LATIS SCIENTIFIC,0015125,8,470.00,STRATEGIC (CYCLICAL),10/06/13,
050613H,LATIS SCIENTIFIC,0015125,9,530.00,STRATEGIC (CYCLICAL),10/06/13,
050613H,LATIS SCIENTIFIC,0015125,10,530.00,STRATEGIC (CYCLICAL),10/06/13,
050613H,LATIS SCIENTIFIC,0015125,11,470.00,STRATEGIC (CYCLICAL),10/06/13,
050613H,LATIS SCIENTIFIC,0015125,12,500.00,STRATEGIC (CYCLICAL),10/06/13,
050613H,LATIS SCIENTIFIC,0015125,13,500.00,STRATEGIC (CYCLICAL),10/06/13,
050613H,LATIS SCIENTIFIC,0015125,14,470.00,STRATEGIC (CYCLICAL),10/06/13,
050613H,LATIS SCIENTIFIC,0015125,15,60.00,STRATEGIC (CYCLICAL),10/06/13,
050613H,LATIS SCIENTIFIC,0015125,16,505.00,STRATEGIC (CYCLICAL),10/06/13,
050613H,LATIS SCIENTIFIC,0015125,17,265.00,STRATEGIC (CYCLICAL),10/06/13,
140241,OGILVIE FLEET LTD=============,0023299,1,428.42,LEASE CAR CHARGES,10/06/13,428.42
140241,OGILVIE FLEET LTD=============,0023299,2,-36.71,VAT CAR LEASING,10/06/13,
140241,OGILVIE FLEET LTD=============,0023299,3,36.71,LEASE CAR CHARGES,10/06/13,
140242,OGILVIE FLEET LTD=============,00238309,1,"4,810.60",LEASE CAR CHARGES,10/06/13,"5,814.14"
140242,OGILVIE FLEET LTD=============,00238309,2,"1,003.54",P/PAYMTS-CAR LEASG-RENTAL,10/06/13,
140242,OGILVIE FLEET LTD=============,00238309,3,-535.57,VAT CAR LEASING,10/06/13,
140242,OGILVIE FLEET LTD=============,00238309,4,535.57,LEASE CAR CHARGES,10/06/13,
140241,OGILVIE FLEET LTD=============,00239300,1,446.63,LEASE CAR CHARGES,10/06/13,446.63
140241,OGILVIE FLEET LTD=============,00239300,2,-38.53,VAT CAR LEASING,10/06/13,
140241,OGILVIE FLEET LTD=============,00239300,3,38.53,LEASE CAR CHARGES,10/06/13,
140241,OGILVIE FLEET LTD=============,00239301,1,379.46,LEASE CAR CHARGES,10/06/13,379.46
140241,OGILVIE FLEET LTD=============,00239301,2,-33.61,VAT CAR LEASING,10/06/13,
140241,OGILVIE FLEET LTD=============,00239301,3,33.61,LEASE CAR CHARGES,10/06/13,
140241,OGILVIE FLEET LTD=============,00239302,1,446.02,LEASE CAR CHARGES,10/06/13,446.02
140241,OGILVIE FLEET LTD=============,00239302,2,-39.74,VAT CAR LEASING,10/06/13,
140241,OGILVIE FLEET LTD=============,00239302,3,39.74,LEASE CAR CHARGES,10/06/13,
140241,OGILVIE FLEET LTD=============,00239303,1,516.37,LEASE CAR CHARGES,10/06/13,516.37
140241,OGILVIE FLEET LTD=============,00239303,2,-46.53,VAT CAR LEASING,10/06/13,
140241,OGILVIE FLEET LTD=============,00239303,3,46.53,LEASE CAR CHARGES,10/06/13,
140242,OGILVIE FLEET LTD=============,00240042,1,"2,594.17",LEASE CAR CHARGES,10/06/13,"3,265.08"
140242,OGILVIE FLEET LTD=============,00240042,2,670.91,P/PAYMTS-CAR LEASG-RENTAL,10/06/13,
140242,OGILVIE FLEET LTD=============,00240042,3,-273.97,VAT CAR LEASING,10/06/13,
140242,OGILVIE FLEET LTD=============,00240042,4,273.97,LEASE CAR CHARGES,10/06/13,
140242,OGILVIE FLEET LTD=============,00240043,1,"3,602.58",LEASE CAR CHARGES,10/06/13,"4,630.08"
140242,OGILVIE FLEET LTD=============,00240043,2,"1,027.50",P/PAYMTS-CAR LEASG-RENTAL,10/06/13,
140242,OGILVIE FLEET LTD=============,00240043,3,-406.58,VAT CAR LEASING,10/06/13,
140242,OGILVIE FLEET LTD=============,00240043,4,406.58,LEASE CAR CHARGES,10/06/13,
290513G,H-SQUARED ELECTRONICS LTD,00331536,1,344.00,OPERATIONAL EQUIP-PURCHASE,10/06/13,344.00
140241,AFFINITY WATER,101023138,1,"2,700.00",CURRENT HYDRANT COSTS,10/06/13,"2,700.00"
300513C,*SPRUE SAFETY PRODUCTS LTD====,1047558,1,"1,264.00",FIRE DETECTORS,10/06/13,"1,264.00"
300513C,*SPRUE SAFETY PRODUCTS LTD====,1047559,1,"6,320.00",FIRE DETECTORS,10/06/13,"6,320.00"
800020598,JAMES HUNTER (OUTFITTERS) LTD=,107053,1,224.16,CLOTHING,10/06/13,283.98
800020598,JAMES HUNTER (OUTFITTERS) LTD=,107053,2,59.82,CLOTHING,10/06/13,
800020554,*NPS (SHOES) LTD,11641,1,30.05,CLOTHING,10/06/13,"1,825.60"
800020554,*NPS (SHOES) LTD,11641,2,30.05,CLOTHING,10/06/13,
800020554,*NPS (SHOES) LTD,11641,3,30.05,CLOTHING,10/06/13,
800020554,*NPS (SHOES) LTD,11641,4,30.05,CLOTHING,10/06/13,
800020554,*NPS (SHOES) LTD,11641,5,30.05,CLOTHING,10/06/13,
800020554,*NPS (SHOES) LTD,11641,6,30.05,CLOTHING,10/06/13,
800020554,*NPS (SHOES) LTD,11641,7,29.45,CLOTHING,10/06/13,
800020554,*NPS (SHOES) LTD,11641,8,29.45,CLOTHING,10/06/13,
800020554,*NPS (SHOES) LTD,11641,9,29.45,CLOTHING,10/06/13,
800020554,*NPS (SHOES) LTD,11641,10,29.45,CLOTHING,10/06/13,
800020554,*NPS (SHOES) LTD,11641,11,29.45,CLOTHING,10/06/13,
800020554,*NPS (SHOES) LTD,11641,12,29.45,CLOTHING,10/06/13,
800020554,*NPS (SHOES) LTD,11641,13,29.45,CLOTHING,10/06/13,
800020554,*NPS (SHOES) LTD,11641,14,30.05,CLOTHING,10/06/13,
800020554,*NPS (SHOES) LTD,11641,15,30.05,CLOTHING,10/06/13,
800020554,*NPS (SHOES) LTD,11641,16,29.45,CLOTHING,10/06/13,
800020554,*NPS (SHOES) LTD,11641,17,29.45,CLOTHING,10/06/13,
800020554,*NPS (SHOES) LTD,11641,18,29.45,CLOTHING,10/06/13,
800020554,*NPS (SHOES) LTD,11641,19,29.45,CLOTHING,10/06/13,
800020554,*NPS (SHOES) LTD,11641,20,29.45,CLOTHING,10/06/13,
800020554,*NPS (SHOES) LTD,11641,21,29.45,CLOTHING,10/06/13,
800020554,*NPS (SHOES) LTD,11641,22,29.45,CLOTHING,10/06/13,
800020554,*NPS (SHOES) LTD,11641,23,29.45,CLOTHING,10/06/13,
800020554,*NPS (SHOES) LTD,11641,24,29.45,CLOTHING,10/06/13,
800020554,*NPS (SHOES) LTD,11641,25,29.45,CLOTHING,10/06/13,
800020554,*NPS (SHOES) LTD,11641,26,29.45,CLOTHING,10/06/13,
800020554,*NPS (SHOES) LTD,11641,27,29.45,CLOTHING,10/06/13,
800020554,*NPS (SHOES) LTD,11641,28,29.45,CLOTHING,10/06/13,
800020554,*NPS (SHOES) LTD,11641,29,29.45,CLOTHING,10/06/13,
800020554,*NPS (SHOES) LTD,11641,30,29.45,CLOTHING,10/06/13,
800020554,*NPS (SHOES) LTD,11641,31,30.05,CLOTHING,10/06/13,
800020554,*NPS (SHOES) LTD,11641,32,30.05,CLOTHING,10/06/13,
800020554,*NPS (SHOES) LTD,11641,33,30.05,CLOTHING,10/06/13,
800020554,*NPS (SHOES) LTD,11641,34,30.05,CLOTHING,10/06/13,
800020554,*NPS (SHOES) LTD,11641,35,30.05,CLOTHING,10/06/13,
800020554,*NPS (SHOES) LTD,11641,36,30.05,CLOTHING,10/06/13,
800020554,*NPS (SHOES) LTD,11641,37,30.05,CLOTHING,10/06/13,
800020554,*NPS (SHOES) LTD,11641,38,30.05,CLOTHING,10/06/13,
800020554,*NPS (SHOES) LTD,11641,39,30.05,CLOTHING,10/06/13,
800020554,*NPS (SHOES) LTD,11641,40,30.05,CLOTHING,10/06/13,
800020554,*NPS (SHOES) LTD,11641,41,30.05,CLOTHING,10/06/13,
800020554,*NPS (SHOES) LTD,11641,42,30.05,CLOTHING,10/06/13,
800020554,*NPS (SHOES) LTD,11641,43,29.45,CLOTHING,10/06/13,
800020554,*NPS (SHOES) LTD,11641,44,29.45,CLOTHING,10/06/13,
800020554,*NPS (SHOES) LTD,11641,45,29.45,CLOTHING,10/06/13,
800020554,*NPS (SHOES) LTD,11641,46,29.45,CLOTHING,10/06/13,
800020554,*NPS (SHOES) LTD,11641,47,29.45,CLOTHING,10/06/13,
800020554,*NPS (SHOES) LTD,11641,48,29.45,CLOTHING,10/06/13,
800020554,*NPS (SHOES) LTD,11641,49,29.45,CLOTHING,10/06/13,
800020554,*NPS (SHOES) LTD,11641,50,29.45,CLOTHING,10/06/13,
800020554,*NPS (SHOES) LTD,11641,51,29.45,CLOTHING,10/06/13,
800020554,*NPS (SHOES) LTD,11641,52,29.45,CLOTHING,10/06/13,
800020554,*NPS (SHOES) LTD,11641,53,29.45,CLOTHING,10/06/13,
800020554,*NPS (SHOES) LTD,11641,54,29.45,CLOTHING,10/06/13,
800020554,*NPS (SHOES) LTD,11641,55,29.45,CLOTHING,10/06/13,
800020554,*NPS (SHOES) LTD,11641,56,29.45,CLOTHING,10/06/13,
800020554,*NPS (SHOES) LTD,11641,57,41.10,CLOTHING,10/06/13,
800020554,*NPS (SHOES) LTD,11641,58,41.10,CLOTHING,10/06/13,
800020554,*NPS (SHOES) LTD,11641,59,41.10,CLOTHING,10/06/13,
800020554,*NPS (SHOES) LTD,11641,60,41.10,CLOTHING,10/06/13,
800020601,PRIMEPEACE LTD================,130502,1,"3,580.00",MAINTENANCE & SUPPORT,10/06/13,"18,330.00"
800020601,PRIMEPEACE LTD================,130502,2,"11,000.00",MAINTENANCE & SUPPORT,10/06/13,
800020601,PRIMEPEACE LTD================,130502,3,"1,500.00",MAINTENANCE & SUPPORT,10/06/13,
800020601,PRIMEPEACE LTD================,130502,4,950.00,MAINTENANCE & SUPPORT,10/06/13,
800020601,PRIMEPEACE LTD================,130502,5,250.00,MAINTENANCE & SUPPORT,10/06/13,
800020601,PRIMEPEACE LTD================,130502,6,"1,050.00",MAINTENANCE & SUPPORT,10/06/13,
050613H,RESPIREX======================,142283,1,474.04,REPAIR & MAINTENANCE,10/06/13,474.04
050613C,DRON & WRIGHT=================,16483,1,"3,099.50",PROFESSIONAL SERVICES,10/06/13,"3,099.50"
040613H,BRISTOL UNIFORMS LTD==========,181880,1,"3,454.00",CLOTHING,10/06/13,"3,454.00"
140241,AFFINITY WATER,19038249W,1,323.47,WATER & SEWERAGE RATES,10/06/13,323.47
140241,THAMES WATER UTILITIES LTD====,2049465181D,1,958.32,WATER & SEWERAGE RATES,10/06/13,958.32
300513C,SAFEGUARD PEST CON. & ENV.LTD,210296,1,"1,230.00",STRATEGIC (NON CYCLICAL),10/06/13,"1,230.00"
060613G,AUTOGLASS LIMITED=============,21333716,1,943.67,WINDSCREEN & TYRE CHARGES,10/06/13,943.67
060613G,AUTOGLASS LIMITED=============,21337444,1,611.78,WINDSCREEN & TYRE CHARGES,10/06/13,611.78
060613G,AUTOGLASS LIMITED=============,21385449,1,775.77,WINDSCREEN & TYRE CHARGES,10/06/13,775.77
060613G,AUTOGLASS LIMITED=============,21395071,1,798.56,WINDSCREEN & TYRE CHARGES,10/06/13,798.56
060613G,AUTOGLASS LIMITED=============,21397400,1,542.96,WINDSCREEN & TYRE CHARGES,10/06/13,542.96
140241,THAMES WATER UTILITIES LTD====,21679-37404G,1,525.56,WATER & SEWERAGE RATES,10/06/13,525.56
140242,MISS SARAH LE FEVRE===========,227833B,1,863.33,PROFESSIONAL FEES ENFORCEMENT,10/06/13,863.33
050613H,ARKAS LIMITED=================,23733,1,206.87,STRATEGIC (CYCLICAL),10/06/13,734.12
050613H,ARKAS LIMITED=================,23733,2,175.75,STRATEGIC (CYCLICAL),10/06/13,
050613H,ARKAS LIMITED=================,23733,3,161.50,STRATEGIC (CYCLICAL),10/06/13,
050613H,ARKAS LIMITED=================,23733,4,190.00,STRATEGIC (CYCLICAL),10/06/13,
050613H,ARKAS LIMITED=================,23810,1,339.62,STRATEGIC (CYCLICAL),10/06/13,"2,155.43"
050613H,ARKAS LIMITED=================,23810,2,982.30,TACTICAL DAY TO DAY,10/06/13,
050613H,ARKAS LIMITED=================,23810,3,586.51,STRATEGIC (CYCLICAL),10/06/13,
050613H,ARKAS LIMITED=================,23810,4,247.00,STRATEGIC (CYCLICAL),10/06/13,
050613H,ARKAS LIMITED=================,23811,1,247.00,TACTICAL DAY TO DAY,10/06/13,"1,566.19"
050613H,ARKAS LIMITED=================,23811,2,190.00,STRATEGIC (CYCLICAL),10/06/13,
050613H,ARKAS LIMITED=================,23811,3,"1,024.69",STRATEGIC (CYCLICAL),10/06/13,
050613H,ARKAS LIMITED=================,23811,4,104.50,TACTICAL DAY TO DAY,10/06/13,
050613H,ARKAS LIMITED=================,23812,1,190.00,STRATEGIC (CYCLICAL),10/06/13,760.00
050613H,ARKAS LIMITED=================,23812,2,204.25,STRATEGIC (CYCLICAL),10/06/13,
050613H,ARKAS LIMITED=================,23812,3,204.25,STRATEGIC (CYCLICAL),10/06/13,
050613H,ARKAS LIMITED=================,23812,4,161.50,STRATEGIC (CYCLICAL),10/06/13,
050613H,ARKAS LIMITED=================,23813,1,218.50,STRATEGIC (CYCLICAL),10/06/13,802.75
050613H,ARKAS LIMITED=================,23813,2,190.00,STRATEGIC (CYCLICAL),10/06/13,
050613H,ARKAS LIMITED=================,23813,3,190.00,STRATEGIC (CYCLICAL),10/06/13,
050613H,ARKAS LIMITED=================,23813,4,204.25,STRATEGIC (CYCLICAL),10/06/13,
050613H,ARKAS LIMITED=================,23814,1,161.50,TACTICAL DAY TO DAY,10/06/13,"1,088.33"
050613H,ARKAS LIMITED=================,23814,2,445.75,STRATEGIC (CYCLICAL),10/06/13,
050613H,ARKAS LIMITED=================,23814,3,234.08,STRATEGIC (CYCLICAL),10/06/13,
050613H,ARKAS LIMITED=================,23814,4,247.00,STRATEGIC (CYCLICAL),10/06/13,
050613H,ARKAS LIMITED=================,23815,1,275.50,STRATEGIC (CYCLICAL),10/06/13,888.25
050613H,ARKAS LIMITED=================,23815,2,147.25,STRATEGIC (CYCLICAL),10/06/13,
050613H,ARKAS LIMITED=================,23815,3,161.50,STRATEGIC (CYCLICAL),10/06/13,
050613H,ARKAS LIMITED=================,23815,4,304.00,STRATEGIC (CYCLICAL),10/06/13,
050613H,ARKAS LIMITED=================,23816,1,218.50,STRATEGIC (CYCLICAL),10/06/13,"1,922.06"
050613H,ARKAS LIMITED=================,23816,2,194.26,STRATEGIC (CYCLICAL),10/06/13,
050613H,ARKAS LIMITED=================,23816,3,318.25,STRATEGIC (CYCLICAL),10/06/13,
050613H,ARKAS LIMITED=================,23816,4,"1,191.05",STRATEGIC (CYCLICAL),10/06/13,
050613H,ARKAS LIMITED=================,23817,1,161.50,STRATEGIC (CYCLICAL),10/06/13,"1,455.43"
050613H,ARKAS LIMITED=================,23817,2,247.00,TACTICAL DAY TO DAY,10/06/13,
050613H,ARKAS LIMITED=================,23817,3,232.75,STRATEGIC (CYCLICAL),10/06/13,
050613H,ARKAS LIMITED=================,23817,4,814.18,STRATEGIC (CYCLICAL),10/06/13,
050613H,ARKAS LIMITED=================,23818,1,161.50,STRATEGIC (CYCLICAL),10/06/13,762.90
050613H,ARKAS LIMITED=================,23818,2,192.90,STRATEGIC (CYCLICAL),10/06/13,
050613H,ARKAS LIMITED=================,23818,3,161.50,STRATEGIC (CYCLICAL),10/06/13,
050613H,ARKAS LIMITED=================,23818,4,247.00,STRATEGIC (CYCLICAL),10/06/13,
050613H,ARKAS LIMITED=================,23859,1,"1,842.76",STRATEGIC (CYCLICAL),10/06/13,"1,842.76"
140241,THAMES WATER UTILITIES LTD====,2390102764B,1,541.04,WATER & SEWERAGE RATES,10/06/13,541.04
140241,THAMES WATER UTILITIES LTD====,26102-11537E,1,685.87,WATER & SEWERAGE RATES,10/06/13,685.87
800020329,ADECCO UK LIMITED=============,26424371,1,"1,075.50",FRS STAFF AGENCY,10/06/13,"1,075.50"
800020330,ADECCO UK LIMITED=============,26424372,1,956.00,FRS STAFF AGENCY,10/06/13,956.00
800020580,ADECCO UK LIMITED=============,26424863,1,"1,292.20",FRS STAFF AGENCY,10/06/13,"1,292.20"
800020581,ADECCO UK LIMITED=============,26424864,1,"1,292.20",FRS STAFF AGENCY,10/06/13,"1,292.20"
800020582,ADECCO UK LIMITED=============,26424867,1,904.96,FRS STAFF AGENCY,10/06/13,904.96
800020558,ADECCO UK LIMITED=============,26428628,1,"1,156.12",FRS STAFF AGENCY,10/06/13,"1,156.12"
800020559,ADECCO UK LIMITED=============,26428629,1,937.02,FRS STAFF AGENCY,10/06/13,937.02
800020560,ADECCO UK LIMITED=============,26428630,1,549.85,FRS STAFF AGENCY,10/06/13,549.85
800020561,ADECCO UK LIMITED=============,26428631,1,549.85,FRS STAFF AGENCY,10/06/13,549.85
800020564,ADECCO UK LIMITED=============,26428634,1,549.85,FRS STAFF AGENCY,10/06/13,549.85
800020565,ADECCO UK LIMITED=============,26428635,1,549.85,FRS STAFF AGENCY,10/06/13,549.85
800020568,ADECCO UK LIMITED=============,26428638,1,732.98,FRS STAFF AGENCY,10/06/13,732.98
800020569,ADECCO UK LIMITED=============,26428639,1,588.35,FRS STAFF AGENCY,10/06/13,588.35
800020570,ADECCO UK LIMITED=============,26428640,1,571.54,FRS STAFF AGENCY,10/06/13,571.54
800020571,ADECCO UK LIMITED=============,26428641,1,347.76,FRS STAFF AGENCY,10/06/13,347.76
800020572,ADECCO UK LIMITED=============,26428642,1,302.58,FRS STAFF AGENCY,10/06/13,302.58
800020574,ADECCO UK LIMITED=============,26428644,1,588.35,FRS STAFF AGENCY,10/06/13,588.35
800020575,ADECCO UK LIMITED=============,26428645,1,470.12,FRS STAFF AGENCY,10/06/13,470.12
800020576,ADECCO UK LIMITED=============,26428646,1,434.70,FRS STAFF AGENCY,10/06/13,434.70
800020577,ADECCO UK LIMITED=============,26428647,1,959.26,FRS STAFF AGENCY,10/06/13,959.26
800020578,ADECCO UK LIMITED=============,26428648,1,"1,874.25",FRS STAFF AGENCY,10/06/13,"1,874.25"
050613C,DRAIN CONTROL=================,28982,1,"1,275.00",STRATEGIC (NON CYCLICAL),10/06/13,"1,275.00"
050613C,KNIGHTON CLEANING SERVICES LTD,35241,1,"2,094.26",GENERAL CLEANS,10/06/13,"84,121.62"
050613C,KNIGHTON CLEANING SERVICES LTD,35241,2,"1,936.71",GENERAL CLEANS,10/06/13,
050613C,KNIGHTON CLEANING SERVICES LTD,35241,3,"1,367.56",GENERAL CLEANS,10/06/13,
050613C,KNIGHTON CLEANING SERVICES LTD,35241,4,942.59,GENERAL CLEANS,10/06/13,
050613C,KNIGHTON CLEANING SERVICES LTD,35241,5,"1,105.64",GENERAL CLEANS,10/06/13,
050613C,KNIGHTON CLEANING SERVICES LTD,35241,6,758.25,GENERAL CLEANS,10/06/13,
050613C,KNIGHTON CLEANING SERVICES LTD,35241,7,"1,157.41",GENERAL CLEANS,10/06/13,
050613C,KNIGHTON CLEANING SERVICES LTD,35241,8,"1,023.31",GENERAL CLEANS,10/06/13,
050613C,KNIGHTON CLEANING SERVICES LTD,35241,9,727.77,GENERAL CLEANS,10/06/13,
050613C,KNIGHTON CLEANING SERVICES LTD,35241,10,780.12,GENERAL CLEANS,10/06/13,
050613C,KNIGHTON CLEANING SERVICES LTD,35241,11,"1,878.21",GENERAL CLEANS,10/06/13,
050613C,KNIGHTON CLEANING SERVICES LTD,35241,12,"1,164.03",GENERAL CLEANS,10/06/13,
050613C,KNIGHTON CLEANING SERVICES LTD,35241,13,"1,210.36",GENERAL CLEANS,10/06/13,
050613C,KNIGHTON CLEANING SERVICES LTD,35241,14,"1,032.89",GENERAL CLEANS,10/06/13,
050613C,KNIGHTON CLEANING SERVICES LTD,35241,15,"1,819.69",GENERAL CLEANS,10/06/13,
050613C,KNIGHTON CLEANING SERVICES LTD,35241,16,"2,162.39",GENERAL CLEANS,10/06/13,
050613C,KNIGHTON CLEANING SERVICES LTD,35241,17,732.51,GENERAL CLEANS,10/06/13,
050613C,KNIGHTON CLEANING SERVICES LTD,35241,18,"1,386.93",GENERAL CLEANS,10/06/13,
050613C,KNIGHTON CLEANING SERVICES LTD,35241,19,731.93,GENERAL CLEANS,10/06/13,
050613C,KNIGHTON CLEANING SERVICES LTD,35241,20,"1,451.49",GENERAL CLEANS,10/06/13,
050613C,KNIGHTON CLEANING SERVICES LTD,35241,21,"1,678.00",GENERAL CLEANS,10/06/13,
050613C,KNIGHTON CLEANING SERVICES LTD,35241,22,746.62,GENERAL CLEANS,10/06/13,
050613C,KNIGHTON CLEANING SERVICES LTD,35241,23,"2,205.43",GENERAL CLEANS,10/06/13,
050613C,KNIGHTON CLEANING SERVICES LTD,35241,24,"1,748.10",GENERAL CLEANS,10/06/13,
050613C,KNIGHTON CLEANING SERVICES LTD,35241,25,892.80,GENERAL CLEANS,10/06/13,
050613C,KNIGHTON CLEANING SERVICES LTD,35241,26,894.02,GENERAL CLEANS,10/06/13,
050613C,KNIGHTON CLEANING SERVICES LTD,35241,27,"1,037.76",GENERAL CLEANS,10/06/13,
050613C,KNIGHTON CLEANING SERVICES LTD,35241,28,"1,693.32",GENERAL CLEANS,10/06/13,
050613C,KNIGHTON CLEANING SERVICES LTD,35241,29,"1,006.72",GENERAL CLEANS,10/06/13,
050613C,KNIGHTON CLEANING SERVICES LTD,35241,30,791.49,GENERAL CLEANS,10/06/13,
050613C,KNIGHTON CLEANING SERVICES LTD,35241,31,931.02,GENERAL CLEANS,10/06/13,
050613C,KNIGHTON CLEANING SERVICES LTD,35241,32,"1,279.56",GENERAL CLEANS,10/06/13,
050613C,KNIGHTON CLEANING SERVICES LTD,35241,33,740.25,GENERAL CLEANS,10/06/13,
050613C,KNIGHTON CLEANING SERVICES LTD,35241,34,"1,489.74",GENERAL CLEANS,10/06/13,
050613C,KNIGHTON CLEANING SERVICES LTD,35241,35,"1,219.68",GENERAL CLEANS,10/06/13,
050613C,KNIGHTON CLEANING SERVICES LTD,35241,36,"1,337.62",GENERAL CLEANS,10/06/13,
050613C,KNIGHTON CLEANING SERVICES LTD,35241,37,752.16,GENERAL CLEANS,10/06/13,
050613C,KNIGHTON CLEANING SERVICES LTD,35241,38,845.85,GENERAL CLEANS,10/06/13,
050613C,KNIGHTON CLEANING SERVICES LTD,35241,39,847.39,GENERAL CLEANS,10/06/13,
050613C,KNIGHTON CLEANING SERVICES LTD,35241,40,900.11,GENERAL CLEANS,10/06/13,
050613C,KNIGHTON CLEANING SERVICES LTD,35241,41,918.79,GENERAL CLEANS,10/06/13,
050613C,KNIGHTON CLEANING SERVICES LTD,35241,42,670.32,GENERAL CLEANS,10/06/13,
050613C,KNIGHTON CLEANING SERVICES LTD,35241,43,"1,449.70",GENERAL CLEANS,10/06/13,
050613C,KNIGHTON CLEANING SERVICES LTD,35241,44,"1,280.76",GENERAL CLEANS,10/06/13,
050613C,KNIGHTON CLEANING SERVICES LTD,35241,45,911.62,GENERAL CLEANS,10/06/13,
050613C,KNIGHTON CLEANING SERVICES LTD,35241,46,"2,676.91",GENERAL CLEANS,10/06/13,
050613C,KNIGHTON CLEANING SERVICES LTD,35241,47,991.09,GENERAL CLEANS,10/06/13,
050613C,KNIGHTON CLEANING SERVICES LTD,35241,48,551.25,GENERAL CLEANS,10/06/13,
050613C,KNIGHTON CLEANING SERVICES LTD,35241,49,"1,036.44",GENERAL CLEANS,10/06/13,
050613C,KNIGHTON CLEANING SERVICES LTD,35241,50,"1,002.55",GENERAL CLEANS,10/06/13,
050613C,KNIGHTON CLEANING SERVICES LTD,35241,51,910.22,GENERAL CLEANS,10/06/13,
050613C,KNIGHTON CLEANING SERVICES LTD,35241,52,"1,242.27",GENERAL CLEANS,10/06/13,
050613C,KNIGHTON CLEANING SERVICES LTD,35241,53,"2,187.12",GENERAL CLEANS,10/06/13,
050613C,KNIGHTON CLEANING SERVICES LTD,35241,54,843.69,GENERAL CLEANS,10/06/13,
050613C,KNIGHTON CLEANING SERVICES LTD,35241,55,"1,777.63",GENERAL CLEANS,10/06/13,
050613C,KNIGHTON CLEANING SERVICES LTD,35241,56,"1,000.36",GENERAL CLEANS,10/06/13,
050613C,KNIGHTON CLEANING SERVICES LTD,35241,57,661.36,GENERAL CLEANS,10/06/13,
050613C,KNIGHTON CLEANING SERVICES LTD,35241,58,653.05,GENERAL CLEANS,10/06/13,
050613C,KNIGHTON CLEANING SERVICES LTD,35241,59,758.83,GENERAL CLEANS,10/06/13,
050613C,KNIGHTON CLEANING SERVICES LTD,35241,60,"2,222.46",GENERAL CLEANS,10/06/13,
050613C,KNIGHTON CLEANING SERVICES LTD,35241,61,850.75,GENERAL CLEANS,10/06/13,
050613C,KNIGHTON CLEANING SERVICES LTD,35241,62,"1,526.45",GENERAL CLEANS,10/06/13,
050613C,KNIGHTON CLEANING SERVICES LTD,35241,63,"2,514.86",GENERAL CLEANS,10/06/13,
050613C,KNIGHTON CLEANING SERVICES LTD,35241,64,737.63,GENERAL CLEANS,10/06/13,
050613C,KNIGHTON CLEANING SERVICES LTD,35241,65,754.02,GENERAL CLEANS,10/06/13,
050613C,KNIGHTON CLEANING SERVICES LTD,35241,66,"1,448.45",GENERAL CLEANS,10/06/13,
050613C,KNIGHTON CLEANING SERVICES LTD,35241,67,"1,023.60",GENERAL CLEANS,10/06/13,
050613C,KNIGHTON CLEANING SERVICES LTD,35241,68,779.05,GENERAL CLEANS,10/06/13,
050613C,KNIGHTON CLEANING SERVICES LTD,35241,69,"1,011.57",GENERAL CLEANS,10/06/13,
050613C,KNIGHTON CLEANING SERVICES LTD,35241,70,"1,227.13",GENERAL CLEANS,10/06/13,
050613C,KNIGHTON CLEANING SERVICES LTD,35242,1,933.82,GENERAL CLEANS,10/06/13,"72,692.24"
050613C,KNIGHTON CLEANING SERVICES LTD,35242,2,"1,031.43",GENERAL CLEANS,10/06/13,
050613C,KNIGHTON CLEANING SERVICES LTD,35242,3,966.73,GENERAL CLEANS,10/06/13,
050613C,KNIGHTON CLEANING SERVICES LTD,35242,4,"1,172.14",GENERAL CLEANS,10/06/13,
050613C,KNIGHTON CLEANING SERVICES LTD,35242,5,566.57,GENERAL CLEANS,10/06/13,
050613C,KNIGHTON CLEANING SERVICES LTD,35242,6,"1,296.76",GENERAL CLEANS,10/06/13,
050613C,KNIGHTON CLEANING SERVICES LTD,35242,7,"1,879.68",GENERAL CLEANS,10/06/13,
050613C,KNIGHTON CLEANING SERVICES LTD,35242,8,"1,940.42",GENERAL CLEANS,10/06/13,
050613C,KNIGHTON CLEANING SERVICES LTD,35242,9,"3,036.27",GENERAL CLEANS,10/06/13,
050613C,KNIGHTON CLEANING SERVICES LTD,35242,10,956.12,GENERAL CLEANS,10/06/13,
050613C,KNIGHTON CLEANING SERVICES LTD,35242,11,847.09,GENERAL CLEANS,10/06/13,
050613C,KNIGHTON CLEANING SERVICES LTD,35242,12,"1,016.04",GENERAL CLEANS,10/06/13,
050613C,KNIGHTON CLEANING SERVICES LTD,35242,13,"1,159.92",GENERAL CLEANS,10/06/13,
050613C,KNIGHTON CLEANING SERVICES LTD,35242,14,963.56,GENERAL CLEANS,10/06/13,
050613C,KNIGHTON CLEANING SERVICES LTD,35242,15,"1,008.33",GENERAL CLEANS,10/06/13,
050613C,KNIGHTON CLEANING SERVICES LTD,35242,16,"1,029.98",GENERAL CLEANS,10/06/13,
050613C,KNIGHTON CLEANING SERVICES LTD,35242,17,"1,394.69",GENERAL CLEANS,10/06/13,
050613C,KNIGHTON CLEANING SERVICES LTD,35242,18,"1,174.82",GENERAL CLEANS,10/06/13,
050613C,KNIGHTON CLEANING SERVICES LTD,35242,19,561.20,GENERAL CLEANS,10/06/13,
050613C,KNIGHTON CLEANING SERVICES LTD,35242,20,"12,841.16",GENERAL CLEANS,10/06/13,
050613C,KNIGHTON CLEANING SERVICES LTD,35242,21,992.38,GENERAL CLEANS,10/06/13,
050613C,KNIGHTON CLEANING SERVICES LTD,35242,22,373.04,GENERAL CLEANS,10/06/13,
050613C,KNIGHTON CLEANING SERVICES LTD,35242,23,"1,415.64",GENERAL CLEANS,10/06/13,
050613C,KNIGHTON CLEANING SERVICES LTD,35242,24,"2,981.29",GENERAL CLEANS,10/06/13,
050613C,KNIGHTON CLEANING SERVICES LTD,35242,25,598.46,GENERAL CLEANS,10/06/13,
050613C,KNIGHTON CLEANING SERVICES LTD,35242,26,"1,626.72",GENERAL CLEANS,10/06/13,
050613C,KNIGHTON CLEANING SERVICES LTD,35242,27,805.76,GENERAL CLEANS,10/06/13,
050613C,KNIGHTON CLEANING SERVICES LTD,35242,28,"1,227.28",GENERAL CLEANS,10/06/13,
050613C,KNIGHTON CLEANING SERVICES LTD,35242,29,"1,245.35",GENERAL CLEANS,10/06/13,
050613C,KNIGHTON CLEANING SERVICES LTD,35242,30,824.56,GENERAL CLEANS,10/06/13,
050613C,KNIGHTON CLEANING SERVICES LTD,35242,31,"1,802.31",GENERAL CLEANS,10/06/13,
050613C,KNIGHTON CLEANING SERVICES LTD,35242,32,"1,169.83",GENERAL CLEANS,10/06/13,
050613C,KNIGHTON CLEANING SERVICES LTD,35242,33,847.24,GENERAL CLEANS,10/06/13,
050613C,KNIGHTON CLEANING SERVICES LTD,35242,34,"1,133.78",GENERAL CLEANS,10/06/13,
050613C,KNIGHTON CLEANING SERVICES LTD,35242,35,"1,154.80",GENERAL CLEANS,10/06/13,
050613C,KNIGHTON CLEANING SERVICES LTD,35242,36,"7,096.89",GENERAL CLEANS,10/06/13,
050613C,KNIGHTON CLEANING SERVICES LTD,35242,37,689.79,GENERAL CLEANS,10/06/13,
050613C,KNIGHTON CLEANING SERVICES LTD,35242,38,859.96,GENERAL CLEANS,10/06/13,
050613C,KNIGHTON CLEANING SERVICES LTD,35242,39,"1,731.72",GENERAL CLEANS,10/06/13,
050613C,KNIGHTON CLEANING SERVICES LTD,35242,40,"1,009.40",GENERAL CLEANS,10/06/13,
050613C,KNIGHTON CLEANING SERVICES LTD,35242,41,751.98,GENERAL CLEANS,10/06/13,
050613C,KNIGHTON CLEANING SERVICES LTD,35242,42,"1,523.31",GENERAL CLEANS,10/06/13,
050613C,KNIGHTON CLEANING SERVICES LTD,35242,43,"1,238.14",GENERAL CLEANS,10/06/13,
050613C,KNIGHTON CLEANING SERVICES LTD,35242,44,"1,233.08",GENERAL CLEANS,10/06/13,
050613C,KNIGHTON CLEANING SERVICES LTD,35242,45,"1,140.19",GENERAL CLEANS,10/06/13,
050613C,KNIGHTON CLEANING SERVICES LTD,35242,46,962.96,GENERAL CLEANS,10/06/13,
050613C,KNIGHTON CLEANING SERVICES LTD,35242,47,479.65,GENERAL CLEANS,10/06/13,
040613H,R J HOLLAND LTD===============,4752,1,"3,336.00",STRATEGIC (NON CYCLICAL),10/06/13,"3,946.00"
040613H,R J HOLLAND LTD===============,4752,2,610.00,STRATEGIC (NON CYCLICAL),10/06/13,
140235,BRITISH GAS BUSINESS==========,615460401,1,577.74,ELECTRICITY,10/06/13,"16,491.31"
140235,BRITISH GAS BUSINESS==========,615460401,2,369.91,ELECTRICITY,10/06/13,
140235,BRITISH GAS BUSINESS==========,615460401,3,451.14,ELECTRICITY,10/06/13,
140235,BRITISH GAS BUSINESS==========,615460401,4,640.38,ELECTRICITY,10/06/13,
140235,BRITISH GAS BUSINESS==========,615460401,5,695.32,ELECTRICITY,10/06/13,
140235,BRITISH GAS BUSINESS==========,615460401,6,955.78,ELECTRICITY,10/06/13,
140235,BRITISH GAS BUSINESS==========,615460401,7,"1,209.27",ELECTRICITY,10/06/13,
140235,BRITISH GAS BUSINESS==========,615460401,8,323.09,ELECTRICITY,10/06/13,
140235,BRITISH GAS BUSINESS==========,615460401,9,"1,015.12",ELECTRICITY,10/06/13,
140235,BRITISH GAS BUSINESS==========,615460401,10,743.41,ELECTRICITY,10/06/13,
140235,BRITISH GAS BUSINESS==========,615460401,11,365.36,ELECTRICITY,10/06/13,
140235,BRITISH GAS BUSINESS==========,615460401,12,424.52,ELECTRICITY,10/06/13,
140235,BRITISH GAS BUSINESS==========,615460401,13,416.85,ELECTRICITY,10/06/13,
140235,BRITISH GAS BUSINESS==========,615460401,14,"1,403.59",ELECTRICITY,10/06/13,
140235,BRITISH GAS BUSINESS==========,615460401,15,563.42,ELECTRICITY,10/06/13,
140235,BRITISH GAS BUSINESS==========,615460401,16,374.69,ELECTRICITY,10/06/13,
140235,BRITISH GAS BUSINESS==========,615460401,17,196.08,ELECTRICITY,10/06/13,
140235,BRITISH GAS BUSINESS==========,615460401,18,264.96,ELECTRICITY,10/06/13,
140235,BRITISH GAS BUSINESS==========,615460401,19,706.52,ELECTRICITY,10/06/13,
140235,BRITISH GAS BUSINESS==========,615460401,20,133.13,ELECTRICITY,10/06/13,
140235,BRITISH GAS BUSINESS==========,615460401,21,69.64,ELECTRICITY,10/06/13,
140235,BRITISH GAS BUSINESS==========,615460401,22,35.44,ELECTRICITY,10/06/13,
140235,BRITISH GAS BUSINESS==========,615460401,23,34.82,ELECTRICITY,10/06/13,
140235,BRITISH GAS BUSINESS==========,615460401,24,43.67,ELECTRICITY,10/06/13,
140235,BRITISH GAS BUSINESS==========,615460401,25,460.38,ELECTRICITY,10/06/13,
140235,BRITISH GAS BUSINESS==========,615460401,26,47.16,ELECTRICITY,10/06/13,
140235,BRITISH GAS BUSINESS==========,615460401,27,28.68,ELECTRICITY,10/06/13,
140235,BRITISH GAS BUSINESS==========,615460401,28,18.69,ELECTRICITY,10/06/13,
140235,BRITISH GAS BUSINESS==========,615460401,29,"1,263.60",ELECTRICITY,10/06/13,
140235,BRITISH GAS BUSINESS==========,615460401,30,995.42,GAS,10/06/13,
140235,BRITISH GAS BUSINESS==========,615460401,31,622.63,ELECTRICITY,10/06/13,
140235,BRITISH GAS BUSINESS==========,615460401,32,369.97,ELECTRICITY,10/06/13,
140235,BRITISH GAS BUSINESS==========,615460401,33,278.23,ELECTRICITY,10/06/13,
140235,BRITISH GAS BUSINESS==========,615460401,34,184.38,ELECTRICITY,10/06/13,
140235,BRITISH GAS BUSINESS==========,615460401,35,208.32,ELECTRICITY,10/06/13,
140236,BRITISH GAS BUSINESS==========,615460402,1,546.51,ELECTRICITY,10/06/13,"13,965.01"
140236,BRITISH GAS BUSINESS==========,615460402,2,449.16,ELECTRICITY,10/06/13,
140236,BRITISH GAS BUSINESS==========,615460402,3,53.51,ELECTRICITY,10/06/13,
140236,BRITISH GAS BUSINESS==========,615460402,4,17.54,ELECTRICITY,10/06/13,
140236,BRITISH GAS BUSINESS==========,615460402,5,327.13,ELECTRICITY,10/06/13,
140236,BRITISH GAS BUSINESS==========,615460402,6,414.63,ELECTRICITY,10/06/13,
140236,BRITISH GAS BUSINESS==========,615460402,7,396.95,ELECTRICITY,10/06/13,
140236,BRITISH GAS BUSINESS==========,615460402,8,18.34,ELECTRICITY,10/06/13,
140236,BRITISH GAS BUSINESS==========,615460402,9,16.93,ELECTRICITY,10/06/13,
140236,BRITISH GAS BUSINESS==========,615460402,10,574.58,ELECTRICITY,10/06/13,
140236,BRITISH GAS BUSINESS==========,615460402,11,139.07,ELECTRICITY,10/06/13,
140236,BRITISH GAS BUSINESS==========,615460402,12,753.58,ELECTRICITY,10/06/13,
140236,BRITISH GAS BUSINESS==========,615460402,13,18.51,ELECTRICITY,10/06/13,
140236,BRITISH GAS BUSINESS==========,615460402,14,390.73,ELECTRICITY,10/06/13,
140236,BRITISH GAS BUSINESS==========,615460402,15,551.37,ELECTRICITY,10/06/13,
140236,BRITISH GAS BUSINESS==========,615460402,16,485.45,ELECTRICITY,10/06/13,
140236,BRITISH GAS BUSINESS==========,615460402,17,246.09,ELECTRICITY,10/06/13,
140236,BRITISH GAS BUSINESS==========,615460402,18,576.77,ELECTRICITY,10/06/13,
140236,BRITISH GAS BUSINESS==========,615460402,19,289.77,ELECTRICITY,10/06/13,
140236,BRITISH GAS BUSINESS==========,615460402,20,"2,023.34",ELECTRICITY,10/06/13,
140236,BRITISH GAS BUSINESS==========,615460402,21,28.03,ELECTRICITY,10/06/13,
140236,BRITISH GAS BUSINESS==========,615460402,22,757.67,ELECTRICITY,10/06/13,
140236,BRITISH GAS BUSINESS==========,615460402,23,57.86,ELECTRICITY,10/06/13,
140236,BRITISH GAS BUSINESS==========,615460402,24,331.43,ELECTRICITY,10/06/13,
140236,BRITISH GAS BUSINESS==========,615460402,25,207.55,ELECTRICITY,10/06/13,
140236,BRITISH GAS BUSINESS==========,615460402,26,429.17,ELECTRICITY,10/06/13,
140236,BRITISH GAS BUSINESS==========,615460402,27,352.15,ELECTRICITY,10/06/13,
140236,BRITISH GAS BUSINESS==========,615460402,28,623.16,ELECTRICITY,10/06/13,
140236,BRITISH GAS BUSINESS==========,615460402,29,451.26,ELECTRICITY,10/06/13,
140236,BRITISH GAS BUSINESS==========,615460402,30,358.61,ELECTRICITY,10/06/13,
140236,BRITISH GAS BUSINESS==========,615460402,31,460.70,ELECTRICITY,10/06/13,
140236,BRITISH GAS BUSINESS==========,615460402,32,174.94,ELECTRICITY,10/06/13,
140236,BRITISH GAS BUSINESS==========,615460402,33,496.04,ELECTRICITY,10/06/13,
140236,BRITISH GAS BUSINESS==========,615460402,34,601.64,ELECTRICITY,10/06/13,
140236,BRITISH GAS BUSINESS==========,615460402,35,327.96,ELECTRICITY,10/06/13,
140236,BRITISH GAS BUSINESS==========,615460402,36,16.88,ELECTRICITY,10/06/13,
140237,BRITISH GAS BUSINESS==========,615460403,1,387.52,ELECTRICITY,10/06/13,"17,627.16"
140237,BRITISH GAS BUSINESS==========,615460403,2,223.42,ELECTRICITY,10/06/13,
140237,BRITISH GAS BUSINESS==========,615460403,3,41.88,ELECTRICITY,10/06/13,
140237,BRITISH GAS BUSINESS==========,615460403,4,28.65,ELECTRICITY,10/06/13,
140237,BRITISH GAS BUSINESS==========,615460403,5,625.35,ELECTRICITY,10/06/13,
140237,BRITISH GAS BUSINESS==========,615460403,6,645.70,ELECTRICITY,10/06/13,
140237,BRITISH GAS BUSINESS==========,615460403,7,651.84,ELECTRICITY,10/06/13,
140237,BRITISH GAS BUSINESS==========,615460403,8,630.92,ELECTRICITY,10/06/13,
140237,BRITISH GAS BUSINESS==========,615460403,9,651.96,ELECTRICITY,10/06/13,
140237,BRITISH GAS BUSINESS==========,615460403,10,588.82,ELECTRICITY,10/06/13,
140237,BRITISH GAS BUSINESS==========,615460403,11,870.29,ELECTRICITY,10/06/13,
140237,BRITISH GAS BUSINESS==========,615460403,12,617.79,ELECTRICITY,10/06/13,
140237,BRITISH GAS BUSINESS==========,615460403,13,310.39,ELECTRICITY,10/06/13,
140237,BRITISH GAS BUSINESS==========,615460403,14,43.46,ELECTRICITY,10/06/13,
140237,BRITISH GAS BUSINESS==========,615460403,15,460.23,ELECTRICITY,10/06/13,
140237,BRITISH GAS BUSINESS==========,615460403,16,953.41,ELECTRICITY,10/06/13,
140237,BRITISH GAS BUSINESS==========,615460403,17,646.15,ELECTRICITY,10/06/13,
140237,BRITISH GAS BUSINESS==========,615460403,18,441.78,ELECTRICITY,10/06/13,
140237,BRITISH GAS BUSINESS==========,615460403,19,216.78,ELECTRICITY,10/06/13,
140237,BRITISH GAS BUSINESS==========,615460403,20,"1,894.23",ELECTRICITY,10/06/13,
140237,BRITISH GAS BUSINESS==========,615460403,21,287.98,ELECTRICITY,10/06/13,
140237,BRITISH GAS BUSINESS==========,615460403,22,582.33,ELECTRICITY,10/06/13,
140237,BRITISH GAS BUSINESS==========,615460403,23,226.74,ELECTRICITY,10/06/13,
140237,BRITISH GAS BUSINESS==========,615460403,24,296.96,ELECTRICITY,10/06/13,
140237,BRITISH GAS BUSINESS==========,615460403,25,280.68,ELECTRICITY,10/06/13,
140237,BRITISH GAS BUSINESS==========,615460403,26,446.78,ELECTRICITY,10/06/13,
140237,BRITISH GAS BUSINESS==========,615460403,27,348.75,ELECTRICITY,10/06/13,
140237,BRITISH GAS BUSINESS==========,615460403,28,585.93,ELECTRICITY,10/06/13,
140237,BRITISH GAS BUSINESS==========,615460403,29,322.85,ELECTRICITY,10/06/13,
140237,BRITISH GAS BUSINESS==========,615460403,30,955.83,ELECTRICITY,10/06/13,
140237,BRITISH GAS BUSINESS==========,615460403,31,410.51,ELECTRICITY,10/06/13,
140237,BRITISH GAS BUSINESS==========,615460403,32,"1,075.18",ELECTRICITY,10/06/13,
140237,BRITISH GAS BUSINESS==========,615460403,33,566.00,ELECTRICITY,10/06/13,
140237,BRITISH GAS BUSINESS==========,615460403,34,310.07,ELECTRICITY,10/06/13,
140238,BRITISH GAS BUSINESS==========,615460404,1,814.39,ELECTRICITY,10/06/13,"16,021.60"
140238,BRITISH GAS BUSINESS==========,615460404,2,329.44,ELECTRICITY,10/06/13,
140238,BRITISH GAS BUSINESS==========,615460404,3,544.74,ELECTRICITY,10/06/13,
140238,BRITISH GAS BUSINESS==========,615460404,4,419.94,ELECTRICITY,10/06/13,
140238,BRITISH GAS BUSINESS==========,615460404,5,488.48,ELECTRICITY,10/06/13,
140238,BRITISH GAS BUSINESS==========,615460404,6,835.65,ELECTRICITY,10/06/13,
140238,BRITISH GAS BUSINESS==========,615460404,7,44.52,ELECTRICITY,10/06/13,
140238,BRITISH GAS BUSINESS==========,615460404,8,29.01,ELECTRICITY,10/06/13,
140238,BRITISH GAS BUSINESS==========,615460404,9,26.01,ELECTRICITY,10/06/13,
140238,BRITISH GAS BUSINESS==========,615460404,10,27.69,ELECTRICITY,10/06/13,
140238,BRITISH GAS BUSINESS==========,615460404,11,491.16,ELECTRICITY,10/06/13,
140238,BRITISH GAS BUSINESS==========,615460404,12,280.64,ELECTRICITY,10/06/13,
140238,BRITISH GAS BUSINESS==========,615460404,13,677.83,ELECTRICITY,10/06/13,
140238,BRITISH GAS BUSINESS==========,615460404,14,358.69,ELECTRICITY,10/06/13,
140238,BRITISH GAS BUSINESS==========,615460404,15,100.98,ELECTRICITY,10/06/13,
140238,BRITISH GAS BUSINESS==========,615460404,16,307.19,ELECTRICITY,10/06/13,
140238,BRITISH GAS BUSINESS==========,615460404,17,58.43,ELECTRICITY,10/06/13,
140238,BRITISH GAS BUSINESS==========,615460404,18,440.46,ELECTRICITY,10/06/13,
140238,BRITISH GAS BUSINESS==========,615460404,19,"2,623.31",ELECTRICITY,10/06/13,
140238,BRITISH GAS BUSINESS==========,615460404,20,621.90,ELECTRICITY,10/06/13,
140238,BRITISH GAS BUSINESS==========,615460404,21,281.33,ELECTRICITY,10/06/13,
140238,BRITISH GAS BUSINESS==========,615460404,22,20.39,ELECTRICITY,10/06/13,
140238,BRITISH GAS BUSINESS==========,615460404,23,540.25,ELECTRICITY,10/06/13,
140238,BRITISH GAS BUSINESS==========,615460404,24,451.56,ELECTRICITY,10/06/13,
140238,BRITISH GAS BUSINESS==========,615460404,25,636.83,ELECTRICITY,10/06/13,
140238,BRITISH GAS BUSINESS==========,615460404,26,450.08,ELECTRICITY,10/06/13,
140238,BRITISH GAS BUSINESS==========,615460404,27,896.69,ELECTRICITY,10/06/13,
140238,BRITISH GAS BUSINESS==========,615460404,28,595.91,ELECTRICITY,10/06/13,
140238,BRITISH GAS BUSINESS==========,615460404,29,"1,298.71",ELECTRICITY,10/06/13,
140238,BRITISH GAS BUSINESS==========,615460404,30,331.70,ELECTRICITY,10/06/13,
140238,BRITISH GAS BUSINESS==========,615460404,31,306.99,ELECTRICITY,10/06/13,
140238,BRITISH GAS BUSINESS==========,615460404,32,580.84,ELECTRICITY,10/06/13,
140238,BRITISH GAS BUSINESS==========,615460404,33,44.87,ELECTRICITY,10/06/13,
140238,BRITISH GAS BUSINESS==========,615460404,34,36.51,ELECTRICITY,10/06/13,
140238,BRITISH GAS BUSINESS==========,615460404,35,28.48,ELECTRICITY,10/06/13,
140239,BRITISH GAS BUSINESS==========,615460405,1,15.34,ELECTRICITY,10/06/13,"3,987.38"
140239,BRITISH GAS BUSINESS==========,615460405,2,363.96,ELECTRICITY,10/06/13,
140239,BRITISH GAS BUSINESS==========,615460405,3,395.63,ELECTRICITY,10/06/13,
140239,BRITISH GAS BUSINESS==========,615460405,4,275.81,ELECTRICITY,10/06/13,
140239,BRITISH GAS BUSINESS==========,615460405,5,269.74,ELECTRICITY,10/06/13,
140239,BRITISH GAS BUSINESS==========,615460405,6,299.43,ELECTRICITY,10/06/13,
140239,BRITISH GAS BUSINESS==========,615460405,7,"2,072.09",ELECTRICITY,10/06/13,
140239,BRITISH GAS BUSINESS==========,615460405,8,16.41,ELECTRICITY,10/06/13,
140239,BRITISH GAS BUSINESS==========,615460405,9,278.97,ELECTRICITY,10/06/13,
060613G,TWO SERVICES LTD==============,70591,1,90.00,CATERING EQUIPMENT,10/06/13,335.90
060613G,TWO SERVICES LTD==============,70591,2,245.90,CATERING EQUIPMENT,10/06/13,
140241,SUTTON & EAST SURREY WATER PLC,859060-9E,1,720.36,WATER & SEWERAGE RATES,10/06/13,720.36
140241,THAMES WATER UTILITIES LTD====,8643087547D,1,399.34,WATER & SEWERAGE RATES,10/06/13,399.34
140241,THAMES WATER UTILITIES LTD====,8920851250M,1,644.94,WATER & SEWERAGE RATES,10/06/13,644.94
050613H,DRAEGER SAFETY UK LIMITED=====,90413635,1,725.00,PROTECTIVE EQUIPT - PARTS,10/06/13,"1,939.53"
050613H,DRAEGER SAFETY UK LIMITED=====,90413635,2,"1,096.33",PROTECTIVE EQUIPT - PARTS,10/06/13,
050613H,DRAEGER SAFETY UK LIMITED=====,90413635,3,118.20,PROTECTIVE EQUIPT - PARTS,10/06/13,
050613H,CPL PETROLEUM=================,9586112,1,"1,765.69",FUEL,10/06/13,"1,765.69"
050613H,CPL PETROLEUM=================,9600729,1,"4,473.43",FUEL,10/06/13,"4,473.43"
040613H,CPL PETROLEUM=================,9642172,1,"3,295.80",FUEL,10/06/13,"3,295.80"
040613H,CPL PETROLEUM=================,9650763,1,"1,376.23",FUEL,10/06/13,"1,376.23"
060613G,CPL PETROLEUM=================,9670647,1,"3,309.90",FUEL,10/06/13,"3,309.90"
140241,THAMES WATER UTILITIES LTD====,98709-62314Z,1,503.80,WATER & SEWERAGE RATES,10/06/13,503.80
050613C,THAMES WATER UTILITIES LTD====,CBA1305486,1,"1,082.00",HYDRANTS,10/06/13,"1,082.00"
050613C,THAMES WATER UTILITIES LTD====,CBA1305639,1,"1,082.00",HYDRANTS,10/06/13,"1,082.00"
050613C,THAMES WATER UTILITIES LTD====,CBA1305641,1,511.50,HYDRANTS,10/06/13,511.50
050613C,THAMES WATER UTILITIES LTD====,CBA1305642,1,"1,082.00",CURRENT HYDRANT COSTS,10/06/13,"1,082.00"
050613C,THAMES WATER UTILITIES LTD====,CBA1305643,1,"1,082.00",CURRENT HYDRANT COSTS,10/06/13,"1,082.00"
050613C,THAMES WATER UTILITIES LTD====,CBA1305646,1,278.00,CURRENT HYDRANT COSTS,10/06/13,278.00
050613C,THAMES WATER UTILITIES LTD====,CBA1305647,1,"1,800.00",CURRENT HYDRANT COSTS,10/06/13,"1,800.00"
050613C,THAMES WATER UTILITIES LTD====,CBA1305649,1,"1,082.00",CURRENT HYDRANT COSTS,10/06/13,"1,082.00"
050613C,THAMES WATER UTILITIES LTD====,CBA1305651,1,"1,082.00",CURRENT HYDRANT COSTS,10/06/13,"1,082.00"
050613C,THAMES WATER UTILITIES LTD====,CBA1305652,1,"1,082.00",CURRENT HYDRANT COSTS,10/06/13,"1,082.00"
050613C,THAMES WATER UTILITIES LTD====,CBA1305660,1,"1,082.00",CURRENT HYDRANT COSTS,10/06/13,"1,082.00"
050613C,THAMES WATER UTILITIES LTD====,CBA1305673,1,"1,082.00",CURRENT HYDRANT COSTS,10/06/13,"1,082.00"
050613C,THAMES WATER UTILITIES LTD====,CBA1305683,1,"1,082.00",CURRENT HYDRANT COSTS,10/06/13,"1,082.00"
050613C,THAMES WATER UTILITIES LTD====,CBA1305688,1,"1,082.00",CURRENT HYDRANT COSTS,10/06/13,"1,082.00"
050613C,THAMES WATER UTILITIES LTD====,CBA1305689,1,"1,082.00",CURRENT HYDRANT COSTS,10/06/13,"1,082.00"
050613C,THAMES WATER UTILITIES LTD====,CBA1305696,1,"1,082.00",CURRENT HYDRANT COSTS,10/06/13,"1,082.00"
050613C,THAMES WATER UTILITIES LTD====,CBA1305697,1,436.00,CURRENT HYDRANT COSTS,10/06/13,436.00
050613C,THAMES WATER UTILITIES LTD====,CBA1305700,1,"1,185.00",CURRENT HYDRANT COSTS,10/06/13,"1,185.00"
050613C,THAMES WATER UTILITIES LTD====,CBA1305706,1,308.00,CURRENT HYDRANT COSTS,10/06/13,308.00
050613C,GEE CONSTRUCTION LTD==========,G1222,1,"14,678.64",DEVELOPMENT  EXPENSES-CONTRACT,10/06/13,"25,308.00"
050613C,GEE CONSTRUCTION LTD==========,G1222,2,"10,629.36",DEVELOPMENT  EXPENSES-CONTRACT,10/06/13,
140242,JCT600 CONTRACTS LIMITED======,INV00029554,1,186.38,LEASE CAR CHARGES,10/06/13,"6,803.01"
140242,JCT600 CONTRACTS LIMITED======,INV00029554,2,"6,616.63",LEASE CAR CHARGES,10/06/13,
140242,JCT600 CONTRACTS LIMITED======,INV00029554,3,-597.99,VAT CAR LEASING,10/06/13,
140242,JCT600 CONTRACTS LIMITED======,INV00029554,4,597.99,LEASE CAR CHARGES,10/06/13,
140242,JCT600 CONTRACTS LIMITED======,INV00035929,1,251.08,LEASE CAR CHARGES,10/06/13,251.08
140242,JCT600 CONTRACTS LIMITED======,INV00035929,2,-22.07,VAT CAR LEASING,10/06/13,
140242,JCT600 CONTRACTS LIMITED======,INV00035929,3,22.07,LEASE CAR CHARGES,10/06/13,
140241,JCT600 CONTRACTS LIMITED======,INV00035931,1,562.19,LEASE CAR CHARGES,10/06/13,562.19
140241,JCT600 CONTRACTS LIMITED======,INV00035931,2,-49.82,VAT CAR LEASING,10/06/13,
140241,JCT600 CONTRACTS LIMITED======,INV00035931,3,49.82,LEASE CAR CHARGES,10/06/13,
040613H,PHOENIX SOFTWARE LTD==========,OP/I698737,1,"20,723.28",MAINTENANCE & SUPPORT,10/06/13,"76,390.28"
040613H,PHOENIX SOFTWARE LTD==========,OP/I698737,2,"40,024.90",MAINTENANCE & SUPPORT,10/06/13,
040613H,PHOENIX SOFTWARE LTD==========,OP/I698737,3,"15,642.10",MAINTENANCE & SUPPORT,10/06/13,
800020557,ALLSTAR BUSINESS SOLUTIONS LTD,P2000932820,1,685.75,FUEL,10/06/13,"20,414.12"
800020557,ALLSTAR BUSINESS SOLUTIONS LTD,P2000932820,2,551.59,FUEL,10/06/13,
800020557,ALLSTAR BUSINESS SOLUTIONS LTD,P2000932820,3,515.75,FUEL,10/06/13,
800020557,ALLSTAR BUSINESS SOLUTIONS LTD,P2000932820,4,486.46,FUEL,10/06/13,
800020557,ALLSTAR BUSINESS SOLUTIONS LTD,P2000932820,5,479.64,FUEL,10/06/13,
800020557,ALLSTAR BUSINESS SOLUTIONS LTD,P2000932820,6,458.26,FUEL,10/06/13,
800020557,ALLSTAR BUSINESS SOLUTIONS LTD,P2000932820,7,370.35,FUEL,10/06/13,
800020557,ALLSTAR BUSINESS SOLUTIONS LTD,P2000932820,8,348.96,FUEL,10/06/13,
800020557,ALLSTAR BUSINESS SOLUTIONS LTD,P2000932820,9,341.33,FUEL,10/06/13,
800020557,ALLSTAR BUSINESS SOLUTIONS LTD,P2000932820,10,340.16,FUEL,10/06/13,
800020557,ALLSTAR BUSINESS SOLUTIONS LTD,P2000932820,11,331.22,FUEL,10/06/13,
800020557,ALLSTAR BUSINESS SOLUTIONS LTD,P2000932820,12,317.61,FUEL,10/06/13,
800020557,ALLSTAR BUSINESS SOLUTIONS LTD,P2000932820,13,304.90,FUEL,10/06/13,
800020557,ALLSTAR BUSINESS SOLUTIONS LTD,P2000932820,14,303.91,FUEL,10/06/13,
800020557,ALLSTAR BUSINESS SOLUTIONS LTD,P2000932820,15,302.85,FUEL,10/06/13,
800020557,ALLSTAR BUSINESS SOLUTIONS LTD,P2000932820,16,297.69,FUEL,10/06/13,
800020557,ALLSTAR BUSINESS SOLUTIONS LTD,P2000932820,17,292.80,FUEL,10/06/13,
800020557,ALLSTAR BUSINESS SOLUTIONS LTD,P2000932820,18,291.87,FUEL,10/06/13,
800020557,ALLSTAR BUSINESS SOLUTIONS LTD,P2000932820,19,290.06,FUEL,10/06/13,
800020557,ALLSTAR BUSINESS SOLUTIONS LTD,P2000932820,20,285.87,FUEL,10/06/13,
800020557,ALLSTAR BUSINESS SOLUTIONS LTD,P2000932820,21,280.75,FUEL,10/06/13,
800020557,ALLSTAR BUSINESS SOLUTIONS LTD,P2000932820,22,278.30,FUEL,10/06/13,
800020557,ALLSTAR BUSINESS SOLUTIONS LTD,P2000932820,23,269.52,FUEL,10/06/13,
800020557,ALLSTAR BUSINESS SOLUTIONS LTD,P2000932820,24,265.57,FUEL,10/06/13,
800020557,ALLSTAR BUSINESS SOLUTIONS LTD,P2000932820,25,258.77,FUEL,10/06/13,
800020557,ALLSTAR BUSINESS SOLUTIONS LTD,P2000932820,26,248.83,FUEL,10/06/13,
800020557,ALLSTAR BUSINESS SOLUTIONS LTD,P2000932820,27,245.49,FUEL,10/06/13,
800020557,ALLSTAR BUSINESS SOLUTIONS LTD,P2000932820,28,243.01,FUEL,10/06/13,
800020557,ALLSTAR BUSINESS SOLUTIONS LTD,P2000932820,29,241.58,FUEL,10/06/13,
800020557,ALLSTAR BUSINESS SOLUTIONS LTD,P2000932820,30,240.64,FUEL,10/06/13,
800020557,ALLSTAR BUSINESS SOLUTIONS LTD,P2000932820,31,237.41,FUEL,10/06/13,
800020557,ALLSTAR BUSINESS SOLUTIONS LTD,P2000932820,32,236.57,FUEL,10/06/13,
800020557,ALLSTAR BUSINESS SOLUTIONS LTD,P2000932820,33,234.58,FUEL,10/06/13,
800020557,ALLSTAR BUSINESS SOLUTIONS LTD,P2000932820,34,225.12,FUEL,10/06/13,
800020557,ALLSTAR BUSINESS SOLUTIONS LTD,P2000932820,35,224.63,FUEL,10/06/13,
800020557,ALLSTAR BUSINESS SOLUTIONS LTD,P2000932820,36,217.53,FUEL,10/06/13,
800020557,ALLSTAR BUSINESS SOLUTIONS LTD,P2000932820,37,212.30,FUEL,10/06/13,
800020557,ALLSTAR BUSINESS SOLUTIONS LTD,P2000932820,38,211.92,FUEL,10/06/13,
800020557,ALLSTAR BUSINESS SOLUTIONS LTD,P2000932820,39,208.70,FUEL,10/06/13,
800020557,ALLSTAR BUSINESS SOLUTIONS LTD,P2000932820,40,205.08,FUEL,10/06/13,
800020557,ALLSTAR BUSINESS SOLUTIONS LTD,P2000932820,41,200.07,FUEL,10/06/13,
800020557,ALLSTAR BUSINESS SOLUTIONS LTD,P2000932820,42,198.69,FUEL,10/06/13,
800020557,ALLSTAR BUSINESS SOLUTIONS LTD,P2000932820,43,198.54,FUEL,10/06/13,
800020557,ALLSTAR BUSINESS SOLUTIONS LTD,P2000932820,44,196.09,FUEL,10/06/13,
800020557,ALLSTAR BUSINESS SOLUTIONS LTD,P2000932820,45,195.04,FUEL,10/06/13,
800020557,ALLSTAR BUSINESS SOLUTIONS LTD,P2000932820,46,191.71,FUEL,10/06/13,
800020557,ALLSTAR BUSINESS SOLUTIONS LTD,P2000932820,47,189.60,FUEL,10/06/13,
800020557,ALLSTAR BUSINESS SOLUTIONS LTD,P2000932820,48,185.26,FUEL,10/06/13,
800020557,ALLSTAR BUSINESS SOLUTIONS LTD,P2000932820,49,183.49,FUEL,10/06/13,
800020557,ALLSTAR BUSINESS SOLUTIONS LTD,P2000932820,50,176.71,FUEL,10/06/13,
800020557,ALLSTAR BUSINESS SOLUTIONS LTD,P2000932820,51,174.61,FUEL,10/06/13,
800020557,ALLSTAR BUSINESS SOLUTIONS LTD,P2000932820,52,171.01,FUEL,10/06/13,
800020557,ALLSTAR BUSINESS SOLUTIONS LTD,P2000932820,53,168.91,FUEL,10/06/13,
800020557,ALLSTAR BUSINESS SOLUTIONS LTD,P2000932820,54,166.48,FUEL,10/06/13,
800020557,ALLSTAR BUSINESS SOLUTIONS LTD,P2000932820,55,164.38,FUEL,10/06/13,
800020557,ALLSTAR BUSINESS SOLUTIONS LTD,P2000932820,56,164.08,FUEL,10/06/13,
800020557,ALLSTAR BUSINESS SOLUTIONS LTD,P2000932820,57,156.51,FUEL,10/06/13,
800020557,ALLSTAR BUSINESS SOLUTIONS LTD,P2000932820,58,153.30,FUEL,10/06/13,
800020557,ALLSTAR BUSINESS SOLUTIONS LTD,P2000932820,59,150.96,FUEL,10/06/13,
800020557,ALLSTAR BUSINESS SOLUTIONS LTD,P2000932820,60,143.98,FUEL,10/06/13,
800020557,ALLSTAR BUSINESS SOLUTIONS LTD,P2000932820,61,141.15,FUEL,10/06/13,
800020557,ALLSTAR BUSINESS SOLUTIONS LTD,P2000932820,62,140.11,FUEL,10/06/13,
800020557,ALLSTAR BUSINESS SOLUTIONS LTD,P2000932820,63,136.51,FUEL,10/06/13,
800020557,ALLSTAR BUSINESS SOLUTIONS LTD,P2000932820,64,133.78,FUEL,10/06/13,
800020557,ALLSTAR BUSINESS SOLUTIONS LTD,P2000932820,65,131.37,FUEL,10/06/13,
800020557,ALLSTAR BUSINESS SOLUTIONS LTD,P2000932820,66,130.09,FUEL,10/06/13,
800020557,ALLSTAR BUSINESS SOLUTIONS LTD,P2000932820,67,127.66,FUEL,10/06/13,
800020557,ALLSTAR BUSINESS SOLUTIONS LTD,P2000932820,68,125.70,FUEL,10/06/13,
800020557,ALLSTAR BUSINESS SOLUTIONS LTD,P2000932820,69,124.38,FUEL,10/06/13,
800020557,ALLSTAR BUSINESS SOLUTIONS LTD,P2000932820,70,121.78,FUEL,10/06/13,
800020557,ALLSTAR BUSINESS SOLUTIONS LTD,P2000932820,71,121.49,FUEL,10/06/13,
800020557,ALLSTAR BUSINESS SOLUTIONS LTD,P2000932820,72,121.48,FUEL,10/06/13,
800020557,ALLSTAR BUSINESS SOLUTIONS LTD,P2000932820,73,117.31,FUEL,10/06/13,
800020557,ALLSTAR BUSINESS SOLUTIONS LTD,P2000932820,74,115.34,FUEL,10/06/13,
800020557,ALLSTAR BUSINESS SOLUTIONS LTD,P2000932820,75,113.61,FUEL,10/06/13,
800020557,ALLSTAR BUSINESS SOLUTIONS LTD,P2000932820,76,111.62,FUEL,10/06/13,
800020557,ALLSTAR BUSINESS SOLUTIONS LTD,P2000932820,77,106.67,FUEL,10/06/13,
800020557,ALLSTAR BUSINESS SOLUTIONS LTD,P2000932820,78,103.99,FUEL,10/06/13,
800020557,ALLSTAR BUSINESS SOLUTIONS LTD,P2000932820,79,103.34,FUEL,10/06/13,
800020557,ALLSTAR BUSINESS SOLUTIONS LTD,P2000932820,80,102.76,FUEL,10/06/13,
800020557,ALLSTAR BUSINESS SOLUTIONS LTD,P2000932820,81,100.97,FUEL,10/06/13,
800020557,ALLSTAR BUSINESS SOLUTIONS LTD,P2000932820,82,99.83,FUEL,10/06/13,
800020557,ALLSTAR BUSINESS SOLUTIONS LTD,P2000932820,83,99.00,FUEL,10/06/13,
800020557,ALLSTAR BUSINESS SOLUTIONS LTD,P2000932820,84,98.89,FUEL,10/06/13,
800020557,ALLSTAR BUSINESS SOLUTIONS LTD,P2000932820,85,98.21,FUEL,10/06/13,
800020557,ALLSTAR BUSINESS SOLUTIONS LTD,P2000932820,86,92.44,FUEL,10/06/13,
800020557,ALLSTAR BUSINESS SOLUTIONS LTD,P2000932820,87,92.03,FUEL,10/06/13,
800020557,ALLSTAR BUSINESS SOLUTIONS LTD,P2000932820,88,90.47,FUEL,10/06/13,
800020557,ALLSTAR BUSINESS SOLUTIONS LTD,P2000932820,89,87.74,FUEL,10/06/13,
800020557,ALLSTAR BUSINESS SOLUTIONS LTD,P2000932820,90,87.12,FUEL,10/06/13,
800020557,ALLSTAR BUSINESS SOLUTIONS LTD,P2000932820,91,83.28,FUEL,10/06/13,
800020557,ALLSTAR BUSINESS SOLUTIONS LTD,P2000932820,92,83.09,FUEL,10/06/13,
800020557,ALLSTAR BUSINESS SOLUTIONS LTD,P2000932820,93,82.93,FUEL,10/06/13,
800020557,ALLSTAR BUSINESS SOLUTIONS LTD,P2000932820,94,75.89,FUEL,10/06/13,
800020557,ALLSTAR BUSINESS SOLUTIONS LTD,P2000932820,95,74.31,FUEL,10/06/13,
800020557,ALLSTAR BUSINESS SOLUTIONS LTD,P2000932820,96,69.21,FUEL,10/06/13,
800020557,ALLSTAR BUSINESS SOLUTIONS LTD,P2000932820,97,66.67,FUEL,10/06/13,
800020557,ALLSTAR BUSINESS SOLUTIONS LTD,P2000932820,98,66.10,FUEL,10/06/13,
800020557,ALLSTAR BUSINESS SOLUTIONS LTD,P2000932820,99,65.69,FUEL,10/06/13,
800020557,ALLSTAR BUSINESS SOLUTIONS LTD,P2000932820,100,53.36,FUEL,10/06/13,
800020557,ALLSTAR BUSINESS SOLUTIONS LTD,P2000932820,101,53.27,FUEL,10/06/13,
800020557,ALLSTAR BUSINESS SOLUTIONS LTD,P2000932820,102,52.57,FUEL,10/06/13,
800020557,ALLSTAR BUSINESS SOLUTIONS LTD,P2000932820,103,50.00,FUEL,10/06/13,
800020557,ALLSTAR BUSINESS SOLUTIONS LTD,P2000932820,104,49.97,FUEL,10/06/13,
800020557,ALLSTAR BUSINESS SOLUTIONS LTD,P2000932820,105,48.70,FUEL,10/06/13,
800020557,ALLSTAR BUSINESS SOLUTIONS LTD,P2000932820,106,45.56,FUEL,10/06/13,
800020557,ALLSTAR BUSINESS SOLUTIONS LTD,P2000932820,107,41.67,FUEL,10/06/13,
800020557,ALLSTAR BUSINESS SOLUTIONS LTD,P2000932820,108,41.38,FUEL,10/06/13,
800020557,ALLSTAR BUSINESS SOLUTIONS LTD,P2000932820,109,11.58,FUEL,10/06/13,
800020557,ALLSTAR BUSINESS SOLUTIONS LTD,P2000932820,110,9.30,FUEL,10/06/13,
050613C,ETC VENUES LTD================,PH-62263,1,563.50,CONSULTANTS,10/06/13,563.50
050613C,PILLINGER CONTROLS LTD========,PI71400,1,"5,223.62",STRATEGIC (NON CYCLICAL),10/06/13,"5,223.62"
230513E,HUNTER LODGE==================,SI-05166,1,530.00,ADVERTISING,10/06/13,530.00
240513C,HUNTER LODGE==================,SI-05168,1,"6,821.36",ADVERTISING,10/06/13,"6,821.36"
300513C,HUNTER LODGE==================,SI-05169,1,"16,565.35",ADVERTISING,10/06/13,"16,565.35"
050613C,SAS SOFTWARE LIMITED==========,UK1300837,1,"1,370.00",MAINTENANCE & SUPPORT,10/06/13,"1,370.00"
050613C,MOTOROLA LTD==================,UK9000789,1,"5,183.00",PURCHASES-COMPUTER/EQUIPMENT,10/06/13,"7,323.00"
050613C,MOTOROLA LTD==================,UK9000789,2,"1,728.00",PURCHASES-COMPUTER/EQUIPMENT,10/06/13,
050613C,MOTOROLA LTD==================,UK9000789,3,412.00,PURCHASES-COMPUTER/EQUIPMENT,10/06/13,
050613C,ARVAL UK LTD,VS0000694782,1,715.40,CONTRACT HIRE,10/06/13,715.40
050613C,ARVAL UK LTD,VS0000728855,1,"1,400.28",CONTRACT HIRE,10/06/13,"1,400.28"
050613C,ARVAL UK LTD,VS0000728856,1,372.96,CONTRACT HIRE,10/06/13,372.96
040613H,ARVAL UK LTD,VS0000728857,1,565.92,CONTRACT HIRE,10/06/13,565.92
070613C,APPLUS LLT,00145,1,"3,750.00",GENERAL,11/06/13,"3,750.00"
070613C,APPLUS LLT,00147,1,"3,750.00",GENERAL,11/06/13,"3,750.00"
140244,THOMPSONS SOLICITORS==========,8746,2,"4,250.00",CLAIMANT COSTS AGREED,11/06/13,"4,250.00"
050613C,GREENSPACE INFO.FOR GT. LONDON,0000000265,1,"2,000.00",SUBSCRIPTIONS,13/06/13,"2,000.00"
070613C,JEWERS SPECIALIST DOORS=======,0000009053,1,950.00,STRATEGIC (NON CYCLICAL),13/06/13,950.00
070613C,JEWERS SPECIALIST DOORS=======,0000009054,1,950.00,STRATEGIC (NON CYCLICAL),13/06/13,950.00
070613C,JEWERS SPECIALIST DOORS=======,0000009055,1,950.00,STRATEGIC (NON CYCLICAL),13/06/13,950.00
070613H,*OCS GROUP UK LTD,0000168008,1,"2,118.15",REFRESHMENTS,13/06/13,"2,118.15"
060613E,CMS PLC=======================,0081426070,1,430.50,PURCHASES-COMPUTER/EQUIPMENT,13/06/13,430.50
100613C,*PRINCIPAL CATERING CONSULTNTS,051740,1,360.00,REFRESHMENTS,13/06/13,360.00
100613C,AIRWAVE SOLUTIONS LTD=========,0900000186-025,1,891.27,OPERATIONAL EQUIP-PURCHASE,13/06/13,891.27
070613C,MOOLANDS LTD,10389,1,950.00,TACTICAL DAY TO DAY,13/06/13,950.00
070613H,*SPRUE SAFETY PRODUCTS LTD====,1045877/9008883,1,505.60,FIRE DETECTORS,13/06/13,505.60
100613C,*SPRUE SAFETY PRODUCTS LTD====,1045894,1,"1,390.40",FIRE DETECTORS,13/06/13,"1,390.40"
070613H,*SPRUE SAFETY PRODUCTS LTD====,1046240,1,"1,011.20",FIRE DETECTORS,13/06/13,"1,011.20"
110613G,*SPRUE SAFETY PRODUCTS LTD====,1047557,1,758.40,FIRE DETECTORS,13/06/13,758.40
800020108,JAMES HUNTER (OUTFITTERS) LTD=,106988,1,285.07,CLOTHING,13/06/13,285.07
800020592,JAMES HUNTER (OUTFITTERS) LTD=,107047,1,345.41,CLOTHING,13/06/13,486.49
800020592,JAMES HUNTER (OUTFITTERS) LTD=,107047,2,141.08,CLOTHING,13/06/13,
070613C,ROYAL COLLEGE OF MUSIC========,11038627,1,370.00,PRESS OFFICE,13/06/13,370.00
070613H,RUTH LEE LTD==================,11219,1,320.00,PROTECTIVE EQUIPT - PARTS,13/06/13,329.00
070613H,RUTH LEE LTD==================,11219,2,9.00,REPAIR & MAINTENANCE,13/06/13,
100613C,VIGILANCE PROPERTIES,1130,1,"7,500.00",PREMISES SECURITY,13/06/13,"7,500.00"
070613H,HYMANS ROBERTSON==============,1198628,1,"2,700.00",PENSION SERVICES,13/06/13,"2,700.00"
070613H,MARTIN LAVELL LTD=============,1225729,1,365.50,BOOKS & JOURNALS,13/06/13,365.50
140245,BOURNE CONSTRUCTION COMPANY,13/440,1,"1,455.00",STRATEGIC (NON CYCLICAL),13/06/13,"3,755.00"
140245,BOURNE CONSTRUCTION COMPANY,13/440,2,"2,300.00",STRATEGIC (NON CYCLICAL),13/06/13,
140245,BOURNE CONSTRUCTION COMPANY,13/441,1,975.00,STRATEGIC (NON CYCLICAL),13/06/13,"1,775.00"
140245,BOURNE CONSTRUCTION COMPANY,13/441,2,800.00,STRATEGIC (NON CYCLICAL),13/06/13,
140245,BOURNE CONSTRUCTION COMPANY,13/443,1,"1,200.00",STRATEGIC (NON CYCLICAL),13/06/13,"2,510.00"
140245,BOURNE CONSTRUCTION COMPANY,13/443,2,"1,310.00",STRATEGIC (NON CYCLICAL),13/06/13,
140245,BOURNE CONSTRUCTION COMPANY,13/444,1,"2,150.00",STRATEGIC (NON CYCLICAL),13/06/13,"4,500.00"
140245,BOURNE CONSTRUCTION COMPANY,13/444,2,"2,350.00",STRATEGIC (NON CYCLICAL),13/06/13,
060613E,CMT===========================,135372,1,381.80,OPERATIONAL EQUIP-PURCHASE,13/06/13,381.80
070613H,RESPIREX======================,142373,1,"8,500.00",PROTECTIVE EQUIPMENT,13/06/13,"8,500.00"
070613C,GP CONTRACTS==================,14714,1,"1,215.00",STRATEGIC (NON CYCLICAL),13/06/13,"1,215.00"
070613H,DRON & WRIGHT=================,16457,1,"2,465.00",PROFESSIONAL SERVICES,13/06/13,"2,465.00"
070613H,DRON & WRIGHT=================,16458,1,580.00,PROFESSIONAL SERVICES,13/06/13,580.00
070613H,BDO LLP,1728350,1,"2,629.00",PROFESSIONAL SERVICES,13/06/13,"2,629.00"
060613E,B NOKES CONTRACTS LTD,1774,1,270.00,DEVELOPMENT  EXPENSES-CONTRACT,13/06/13,270.00
100613C,B NOKES CONTRACTS LTD,1782,1,"3,175.00",STRATEGIC (NON CYCLICAL),13/06/13,"3,175.00"
100613C,B NOKES CONTRACTS LTD,1783,1,"5,468.25",STRATEGIC (NON CYCLICAL),13/06/13,"5,468.25"
100613C,B NOKES CONTRACTS LTD,1784,1,"1,386.00",DEVELOPMENT  EXPENSES-CONTRACT,13/06/13,"1,386.00"
100613C,B NOKES CONTRACTS LTD,1786,1,"2,310.00",DEVELOPMENT  EXPENSES-CONTRACT,13/06/13,"2,310.00"
100613C,B NOKES CONTRACTS LTD,1787,1,"1,586.50",STRATEGIC (NON CYCLICAL),13/06/13,"1,586.50"
070613H,B NOKES CONTRACTS LTD,1788,1,490.00,TACTICAL DAY TO DAY,13/06/13,490.00
070613H,B NOKES CONTRACTS LTD,1789,1,"1,066.50",TACTICAL DAY TO DAY,13/06/13,"1,066.50"
100613C,B NOKES CONTRACTS LTD,1790,1,"1,662.50",STRATEGIC (NON CYCLICAL),13/06/13,"1,662.50"
100613C,B NOKES CONTRACTS LTD,1791,1,"3,157.50",STRATEGIC (NON CYCLICAL),13/06/13,"3,157.50"
100613C,B NOKES CONTRACTS LTD,1792,1,"1,349.00",STRATEGIC (NON CYCLICAL),13/06/13,"1,349.00"
070613C,CARPETS & FLOOR COVERS DIRECT=,1814,1,"1,948.00",FIXTURES & FITTINGS,13/06/13,"1,948.00"
070613C,CARPETS & FLOOR COVERS DIRECT=,1815,1,"3,101.25",FIXTURES & FITTINGS,13/06/13,"3,101.25"
070613C,CARPETS & FLOOR COVERS DIRECT=,1816,1,"1,446.00",FIXTURES & FITTINGS,13/06/13,"1,446.00"
040613G,*LOCKHART CATERING EQUIPMENT,1977686,1,65.56,CATERING EQUIPMENT,13/06/13,255.19
040613G,*LOCKHART CATERING EQUIPMENT,1977686,2,57.36,CATERING EQUIPMENT,13/06/13,
040613G,*LOCKHART CATERING EQUIPMENT,1977686,3,3.06,CATERING EQUIPMENT,13/06/13,
040613G,*LOCKHART CATERING EQUIPMENT,1977686,4,1.80,CATERING EQUIPMENT,13/06/13,
040613G,*LOCKHART CATERING EQUIPMENT,1977686,5,1.56,CATERING EQUIPMENT,13/06/13,
040613G,*LOCKHART CATERING EQUIPMENT,1977686,6,1.13,CATERING EQUIPMENT,13/06/13,
040613G,*LOCKHART CATERING EQUIPMENT,1977686,7,57.36,CATERING EQUIPMENT,13/06/13,
040613G,*LOCKHART CATERING EQUIPMENT,1977686,8,65.56,CATERING EQUIPMENT,13/06/13,
040613G,*LOCKHART CATERING EQUIPMENT,1977686,9,1.80,CATERING EQUIPMENT,13/06/13,
100613C,BDG WORKFUTURES LTD===========,201401198,1,"2,559.50",PROFESSIONAL SERVICES,13/06/13,"2,559.50"
030613C,STORM TECHNOLOGIES============,225171,1,632.40,ACQUISITIONS,13/06/13,632.40
140244,MISS SARAH LE FEVRE===========,231816,1,700.00,PROFESSIONAL FEES ENFORCEMENT,13/06/13,700.00
140244,MISS SARAH LE FEVRE===========,231967,1,630.00,PROFESSIONAL FEES ENFORCEMENT,13/06/13,630.00
070613C,ARKAS LIMITED=================,23360,1,"1,448.00",STRATEGIC (NON CYCLICAL),13/06/13,"1,610.00"
070613C,ARKAS LIMITED=================,23360,2,162.00,STRATEGIC (NON CYCLICAL),13/06/13,
070613C,ARKAS LIMITED=================,23741,1,283.43,STRATEGIC (CYCLICAL),13/06/13,967.43
070613C,ARKAS LIMITED=================,23741,2,175.75,STRATEGIC (CYCLICAL),13/06/13,
070613C,ARKAS LIMITED=================,23741,3,304.00,STRATEGIC (CYCLICAL),13/06/13,
070613C,ARKAS LIMITED=================,23741,4,204.25,STRATEGIC (CYCLICAL),13/06/13,
070613C,ARKAS LIMITED=================,23819,1,921.84,STRATEGIC (CYCLICAL),13/06/13,"2,834.52"
070613C,ARKAS LIMITED=================,23819,2,455.92,STRATEGIC (CYCLICAL),13/06/13,
070613C,ARKAS LIMITED=================,23819,3,161.50,STRATEGIC (CYCLICAL),13/06/13,
070613C,ARKAS LIMITED=================,23819,4,"1,295.26",TACTICAL DAY TO DAY,13/06/13,
070613C,ARKAS LIMITED=================,23843,1,"2,362.00",STRATEGIC (NON CYCLICAL),13/06/13,"2,362.00"
800020331,ADECCO UK LIMITED=============,26424373,1,956.00,FRS STAFF AGENCY,13/06/13,956.00
800020562,ADECCO UK LIMITED=============,26428632,1,549.85,FRS STAFF AGENCY,13/06/13,549.85
800020563,ADECCO UK LIMITED=============,26428633,1,549.85,FRS STAFF AGENCY,13/06/13,549.85
800020566,ADECCO UK LIMITED=============,26428636,1,549.85,FRS STAFF AGENCY,13/06/13,549.85
800020569,ADECCO UK LIMITED=============,26428639,1,588.35,FRS STAFF AGENCY,13/06/13,588.35
070613H,DYSLEXIA ASSESSMENT & CONSULTA,2668,1,475.00,PROFESSIONAL DEVELOPMENT,13/06/13,475.00
100613C,KNIGHTON CLEANING SERVICES LTD,35204,1,938.42,HYGIENE,13/06/13,938.42
050613C,COMPUTACENTRE================,3804729565,1,"2,409.02",MAINTENANCE & SUPPORT,13/06/13,"4,818.04"
050613C,COMPUTACENTRE================,3804729565,2,"2,409.02",MAINTENANCE & SUPPORT,13/06/13,
060613E,FIRMSTEP====================,3970,1,"1,500.00",CONSULTANTS,13/06/13,"1,500.00"
100613C,CANON (UK) LTD===============,401355462,1,"1,469.51",OFFICE EQUIPMENT,13/06/13,"1,469.51"
070613H,BOND DICKINSON LLP,4144121,1,"25,625.00",PROFESSIONAL SERVICES,13/06/13,"26,417.40"
070613H,BOND DICKINSON LLP,4144121,2,792.40,PROFESSIONAL SERVICES,13/06/13,
800020166,*BURLINGTON UNIFORMS LTD,417755,1,17.30,CLOTHING,13/06/13,488.91
800020166,*BURLINGTON UNIFORMS LTD,417755,2,29.29,CLOTHING,13/06/13,
800020166,*BURLINGTON UNIFORMS LTD,417755,3,58.58,CLOTHING,13/06/13,
800020166,*BURLINGTON UNIFORMS LTD,417755,4,191.87,CLOTHING,13/06/13,
800020166,*BURLINGTON UNIFORMS LTD,417755,5,191.87,CLOTHING,13/06/13,
070613H,OPERATIONAL RESEARCH IN HEALTH,44X/LFB1/33,1,"10,481.67",CONSULTANTS,13/06/13,"10,481.67"
100613C,URS SCOTT WILSON LIMITED,5500335,1,504.66,CONSULTANTS,13/06/13,504.66
110613G,URS SCOTT WILSON LIMITED,5519199,1,"1,867.00",PROF FEES-MISCELLANEOUS,13/06/13,"1,867.00"
100613C,URS SCOTT WILSON LIMITED,5526472,1,"14,545.87",PROF FEES-MISCELLANEOUS,13/06/13,"14,545.87"
100613C,MERLIN ELECTRICAL SERVICES LTD,5895,1,587.98,STRATEGIC (NON CYCLICAL),13/06/13,587.98
100613C,CONTRACT CATERING CONSULTANTS=,6172,1,500.00,CONSULTANTS,13/06/13,500.00
100613C,CONTRACT CATERING CONSULTANTS=,6178,1,500.00,CONSULTANTS,13/06/13,500.00
070613H,NEXUS PROPERTY SERVICES,79768,1,"2,894.80",GENERAL,13/06/13,"2,894.80"
030613C,NISBETS=======================,8532825,1,529.99,CATERING EQUIPMENT,13/06/13,529.99
050613H,NISBETS=======================,8535949,1,529.99,CATERING EQUIPMENT,13/06/13,529.99
070613H,DRAEGER SAFETY UK LIMITED=====,90414193,1,"2,650.80",PROTECTIVE EQUIPT - PARTS,13/06/13,"2,776.70"
070613H,DRAEGER SAFETY UK LIMITED=====,90414193,2,125.90,PROTECTIVE EQUIPT - PARTS,13/06/13,
070613H,DRAEGER SAFETY UK LIMITED=====,90414442,1,"2,782.00",PROTECTIVE EQUIPT - PARTS,13/06/13,"2,782.00"
070613H,DRAEGER SAFETY UK LIMITED=====,90414444,1,318.60,PROTECTIVE EQUIPT - PARTS,13/06/13,318.60
300513C,CAPITA SECURE INFO SOLUTIONS,93001305,1,655.50,ACQUISITIONS,13/06/13,"1,311.00"
300513C,CAPITA SECURE INFO SOLUTIONS,93001305,2,655.50,ACQUISITIONS,13/06/13,
290513C,CAPITA SECURE INFO SOLUTIONS,93001373,1,"557,082.00",CAMS PURCHASES,13/06/13,"557,082.00"
060613E,ASTEC SURVEYS LIMITED=========,ASL-13-098,1,"3,720.00",ASBESTOS,13/06/13,"4,120.00"
060613E,ASTEC SURVEYS LIMITED=========,ASL-13-098,2,400.00,ASBESTOS,13/06/13,
060613E,ASTEC SURVEYS LIMITED=========,ASL-13-099,1,795.00,ASBESTOS,13/06/13,795.00
060613E,BRISTOL UNIFORMS LTD==========,BC-01-12-S1133,1,341.88,CLOTHING,13/06/13,341.88
070613C,THAMES WATER UTILITIES LTD====,CBA1305111,1,"1,185.00",CURRENT HYDRANT COSTS,13/06/13,"1,185.00"
070613C,THAMES WATER UTILITIES LTD====,CBA1305113,1,"1,185.00",CURRENT HYDRANT COSTS,13/06/13,"1,185.00"
070613C,THAMES WATER UTILITIES LTD====,CBA1305115,1,"1,185.00",CURRENT HYDRANT COSTS,13/06/13,"1,185.00"
070613C,THAMES WATER UTILITIES LTD====,CBA1305118,1,"1,185.00",CURRENT HYDRANT COSTS,13/06/13,"1,185.00"
070613C,THAMES WATER UTILITIES LTD====,CBA1305119,1,"1,185.00",CURRENT HYDRANT COSTS,13/06/13,"1,185.00"
070613C,THAMES WATER UTILITIES LTD====,CBA1305120,1,"1,185.00",CURRENT HYDRANT COSTS,13/06/13,"1,185.00"
070613C,THAMES WATER UTILITIES LTD====,CBA1305121,1,"1,185.00",CURRENT HYDRANT COSTS,13/06/13,"1,185.00"
070613C,THAMES WATER UTILITIES LTD====,CBA1305124,1,"1,082.00",CURRENT HYDRANT COSTS,13/06/13,"1,082.00"
070613C,THAMES WATER UTILITIES LTD====,CBA1305126,1,"1,082.00",CURRENT HYDRANT COSTS,13/06/13,"1,082.00"
070613C,THAMES WATER UTILITIES LTD====,CBA1305129,1,"1,082.00",CURRENT HYDRANT COSTS,13/06/13,"1,082.00"
070613C,THAMES WATER UTILITIES LTD====,CBA1305130,1,"1,082.00",CURRENT HYDRANT COSTS,13/06/13,"1,082.00"
060613E,THAMES WATER UTILITIES LTD====,CBA1305212,1,511.50,HYDRANTS,13/06/13,511.50
060613E,THAMES WATER UTILITIES LTD====,CBA1305214,1,"1,800.00",HYDRANTS,13/06/13,"1,800.00"
060613E,THAMES WATER UTILITIES LTD====,CBA1305216,1,"1,082.00",CURRENT HYDRANT COSTS,13/06/13,"1,082.00"
060613E,THAMES WATER UTILITIES LTD====,CBA1305218,1,"1,800.00",CURRENT HYDRANT COSTS,13/06/13,"1,800.00"
060613E,THAMES WATER UTILITIES LTD====,CBA1305219,1,511.50,CURRENT HYDRANT COSTS,13/06/13,511.50
060613E,THAMES WATER UTILITIES LTD====,CBA1305220,1,511.50,CURRENT HYDRANT COSTS,13/06/13,511.50
060613E,THAMES WATER UTILITIES LTD====,CBA1305225,1,"1,082.00",CURRENT HYDRANT COSTS,13/06/13,"1,082.00"
060613E,THAMES WATER UTILITIES LTD====,CBA1305226,1,"1,082.00",CURRENT HYDRANT COSTS,13/06/13,"1,082.00"
060613E,THAMES WATER UTILITIES LTD====,CBA1305229,1,"1,082.00",CURRENT HYDRANT COSTS,13/06/13,"1,082.00"
060613E,THAMES WATER UTILITIES LTD====,CBA1305233,1,"1,082.00",CURRENT HYDRANT COSTS,13/06/13,"1,082.00"
060613E,THAMES WATER UTILITIES LTD====,CBA1305240,1,747.00,CURRENT HYDRANT COSTS,13/06/13,747.00
060613E,THAMES WATER UTILITIES LTD====,CBA1305241,1,"1,082.00",CURRENT HYDRANT COSTS,13/06/13,"1,082.00"
060613E,THAMES WATER UTILITIES LTD====,CBA1305243,1,"1,082.00",CURRENT HYDRANT COSTS,13/06/13,"1,082.00"
070613C,THAMES WATER UTILITIES LTD====,CBA1305258,1,"1,082.00",CURRENT HYDRANT COSTS,13/06/13,"1,082.00"
070613C,THAMES WATER UTILITIES LTD====,CBA1305264,1,"1,082.00",CURRENT HYDRANT COSTS,13/06/13,"1,082.00"
070613C,THAMES WATER UTILITIES LTD====,CBA1305270,1,"1,082.00",CURRENT HYDRANT COSTS,13/06/13,"1,082.00"
070613C,THAMES WATER UTILITIES LTD====,CBA1305271,1,"1,082.00",CURRENT HYDRANT COSTS,13/06/13,"1,082.00"
070613C,THAMES WATER UTILITIES LTD====,CBA1305273,1,"1,082.00",CURRENT HYDRANT COSTS,13/06/13,"1,082.00"
070613C,THAMES WATER UTILITIES LTD====,CBA1305275,1,"1,082.00",CURRENT HYDRANT COSTS,13/06/13,"1,082.00"
070613C,THAMES WATER UTILITIES LTD====,CBA1305276,1,"1,082.00",CURRENT HYDRANT COSTS,13/06/13,"1,082.00"
070613C,THAMES WATER UTILITIES LTD====,CBA1305279,1,511.50,CURRENT HYDRANT COSTS,13/06/13,511.50
070613C,THAMES WATER UTILITIES LTD====,CBA1305283,1,"1,082.00",CURRENT HYDRANT COSTS,13/06/13,"1,082.00"
070613C,THAMES WATER UTILITIES LTD====,CBA1305288,1,"1,082.00",CURRENT HYDRANT COSTS,13/06/13,"1,082.00"
070613C,THAMES WATER UTILITIES LTD====,CBA1305291,1,"1,082.00",CURRENT HYDRANT COSTS,13/06/13,"1,082.00"
070613C,THAMES WATER UTILITIES LTD====,CBA1305293,1,511.50,CURRENT HYDRANT COSTS,13/06/13,511.50
070613C,THAMES WATER UTILITIES LTD====,CBA1305294,1,280.00,CURRENT HYDRANT COSTS,13/06/13,280.00
070613C,THAMES WATER UTILITIES LTD====,CBA1305296,1,436.00,CURRENT HYDRANT COSTS,13/06/13,436.00
070613C,THAMES WATER UTILITIES LTD====,CBA1305304,1,"1,082.00",CURRENT HYDRANT COSTS,13/06/13,"1,082.00"
070613C,THAMES WATER UTILITIES LTD====,CBA1305331,1,436.00,CURRENT HYDRANT COSTS,13/06/13,436.00
070613C,THAMES WATER UTILITIES LTD====,CBA1305335,1,"1,082.00",CURRENT HYDRANT COSTS,13/06/13,"1,082.00"
070613C,THAMES WATER UTILITIES LTD====,CBA1305339,1,"1,082.00",CURRENT HYDRANT COSTS,13/06/13,"1,082.00"
070613C,THAMES WATER UTILITIES LTD====,CBA1305341,1,"1,082.00",CURRENT HYDRANT COSTS,13/06/13,"1,082.00"
070613C,THAMES WATER UTILITIES LTD====,CBA1305342,1,"1,082.00",CURRENT HYDRANT COSTS,13/06/13,"1,082.00"
070613C,THAMES WATER UTILITIES LTD====,CBA1305343,1,"1,082.00",CURRENT HYDRANT COSTS,13/06/13,"1,082.00"
070613C,THAMES WATER UTILITIES LTD====,CBA1305346,1,"1,082.00",CURRENT HYDRANT COSTS,13/06/13,"1,082.00"
060613E,THAMES WATER UTILITIES LTD====,CBA1305347,1,"1,082.00",CURRENT HYDRANT COSTS,13/06/13,"1,082.00"
060613E,THAMES WATER UTILITIES LTD====,CBA1305348,1,"1,082.00",CURRENT HYDRANT COSTS,13/06/13,"1,082.00"
060613E,THAMES WATER UTILITIES LTD====,CBA1305353,1,"1,082.00",CURRENT HYDRANT COSTS,13/06/13,"1,082.00"
060613E,THAMES WATER UTILITIES LTD====,CBA1305354,1,"1,082.00",CURRENT HYDRANT COSTS,13/06/13,"1,082.00"
060613E,THAMES WATER UTILITIES LTD====,CBA1305356,1,"1,023.00",CURRENT HYDRANT COSTS,13/06/13,"1,023.00"
060613E,THAMES WATER UTILITIES LTD====,CBA1305362,1,"1,082.00",CURRENT HYDRANT COSTS,13/06/13,"1,082.00"
060613E,THAMES WATER UTILITIES LTD====,CBA1305363,1,"1,082.00",CURRENT HYDRANT COSTS,13/06/13,"1,082.00"
060613E,THAMES WATER UTILITIES LTD====,CBA1305371,1,"1,185.00",CURRENT HYDRANT COSTS,13/06/13,"1,185.00"
060613E,THAMES WATER UTILITIES LTD====,CBA1305372,1,"1,082.00",CURRENT HYDRANT COSTS,13/06/13,"1,082.00"
060613E,THAMES WATER UTILITIES LTD====,CBA1305375,1,"1,185.00",CURRENT HYDRANT COSTS,13/06/13,"1,185.00"
060613E,THAMES WATER UTILITIES LTD====,CBA1305378,1,"1,185.00",CURRENT HYDRANT COSTS,13/06/13,"1,185.00"
070613H,E&S B DAVIS LTD,DAV/42535,1,360.00,OPERATIONAL EQUIP-PURCHASE,13/06/13,360.00
070613H,E&S B DAVIS LTD,DAV/43011,1,360.00,OPERATIONAL EQUIP-PURCHASE,13/06/13,360.00
070613H,E&S B DAVIS LTD,DAV/43251,1,320.00,OPERATIONAL EQUIP-PURCHASE,13/06/13,320.00
070613H,E&S B DAVIS LTD,DAV/43252,1,"1,080.00",OPERATIONAL EQUIP-PURCHASE,13/06/13,"1,080.00"
070613H,E&S B DAVIS LTD,DAV/43387,1,720.00,OPERATIONAL EQUIP-PURCHASE,13/06/13,720.00
070613H,E&S B DAVIS LTD,DAV/43388,1,720.00,OPERATIONAL EQUIP-PURCHASE,13/06/13,720.00
100613C,ERNST AND YOUNG,GB10100049161,1,"22,494.00",EXTERNAL AUDIT,13/06/13,"22,494.00"
070613H,E&S B DAVIS LTD,LTD/41862,1,360.00,OPERATIONAL EQUIP-PURCHASE,13/06/13,360.00
070613H,E&S B DAVIS LTD,LTD/41995,1,360.00,OPERATIONAL EQUIP-PURCHASE,13/06/13,360.00
100613C,PHOENIX SOFTWARE LTD==========,OP/I699008,1,"151,697.93",ACQUISITIONS,13/06/13,"151,697.93"
800020604,ALLSTAR BUSINESS SOLUTIONS LTD,P2000979427,1,"1,138.64",FUEL,13/06/13,"20,772.77"
800020604,ALLSTAR BUSINESS SOLUTIONS LTD,P2000979427,2,748.47,FUEL,13/06/13,
800020604,ALLSTAR BUSINESS SOLUTIONS LTD,P2000979427,3,648.51,FUEL,13/06/13,
800020604,ALLSTAR BUSINESS SOLUTIONS LTD,P2000979427,4,515.18,FUEL,13/06/13,
800020604,ALLSTAR BUSINESS SOLUTIONS LTD,P2000979427,5,489.42,FUEL,13/06/13,
800020604,ALLSTAR BUSINESS SOLUTIONS LTD,P2000979427,6,450.68,FUEL,13/06/13,
800020604,ALLSTAR BUSINESS SOLUTIONS LTD,P2000979427,7,392.33,FUEL,13/06/13,
800020604,ALLSTAR BUSINESS SOLUTIONS LTD,P2000979427,8,391.06,FUEL,13/06/13,
800020604,ALLSTAR BUSINESS SOLUTIONS LTD,P2000979427,9,369.69,FUEL,13/06/13,
800020604,ALLSTAR BUSINESS SOLUTIONS LTD,P2000979427,10,347.97,FUEL,13/06/13,
800020604,ALLSTAR BUSINESS SOLUTIONS LTD,P2000979427,11,327.34,FUEL,13/06/13,
800020604,ALLSTAR BUSINESS SOLUTIONS LTD,P2000979427,12,307.14,FUEL,13/06/13,
800020604,ALLSTAR BUSINESS SOLUTIONS LTD,P2000979427,13,296.42,FUEL,13/06/13,
800020604,ALLSTAR BUSINESS SOLUTIONS LTD,P2000979427,14,294.41,FUEL,13/06/13,
800020604,ALLSTAR BUSINESS SOLUTIONS LTD,P2000979427,15,291.03,FUEL,13/06/13,
800020604,ALLSTAR BUSINESS SOLUTIONS LTD,P2000979427,16,279.78,FUEL,13/06/13,
800020604,ALLSTAR BUSINESS SOLUTIONS LTD,P2000979427,17,277.96,FUEL,13/06/13,
800020604,ALLSTAR BUSINESS SOLUTIONS LTD,P2000979427,18,277.37,FUEL,13/06/13,
800020604,ALLSTAR BUSINESS SOLUTIONS LTD,P2000979427,19,275.70,FUEL,13/06/13,
800020604,ALLSTAR BUSINESS SOLUTIONS LTD,P2000979427,20,268.41,FUEL,13/06/13,
800020604,ALLSTAR BUSINESS SOLUTIONS LTD,P2000979427,21,265.87,FUEL,13/06/13,
800020604,ALLSTAR BUSINESS SOLUTIONS LTD,P2000979427,22,265.72,FUEL,13/06/13,
800020604,ALLSTAR BUSINESS SOLUTIONS LTD,P2000979427,23,251.94,FUEL,13/06/13,
800020604,ALLSTAR BUSINESS SOLUTIONS LTD,P2000979427,24,250.74,FUEL,13/06/13,
800020604,ALLSTAR BUSINESS SOLUTIONS LTD,P2000979427,25,240.30,FUEL,13/06/13,
800020604,ALLSTAR BUSINESS SOLUTIONS LTD,P2000979427,26,239.05,FUEL,13/06/13,
800020604,ALLSTAR BUSINESS SOLUTIONS LTD,P2000979427,27,239.01,FUEL,13/06/13,
800020604,ALLSTAR BUSINESS SOLUTIONS LTD,P2000979427,28,238.66,FUEL,13/06/13,
800020604,ALLSTAR BUSINESS SOLUTIONS LTD,P2000979427,29,236.35,FUEL,13/06/13,
800020604,ALLSTAR BUSINESS SOLUTIONS LTD,P2000979427,30,232.54,FUEL,13/06/13,
800020604,ALLSTAR BUSINESS SOLUTIONS LTD,P2000979427,31,231.39,FUEL,13/06/13,
800020604,ALLSTAR BUSINESS SOLUTIONS LTD,P2000979427,32,225.59,FUEL,13/06/13,
800020604,ALLSTAR BUSINESS SOLUTIONS LTD,P2000979427,33,217.55,FUEL,13/06/13,
800020604,ALLSTAR BUSINESS SOLUTIONS LTD,P2000979427,34,216.57,FUEL,13/06/13,
800020604,ALLSTAR BUSINESS SOLUTIONS LTD,P2000979427,35,215.32,FUEL,13/06/13,
800020604,ALLSTAR BUSINESS SOLUTIONS LTD,P2000979427,36,211.02,FUEL,13/06/13,
800020604,ALLSTAR BUSINESS SOLUTIONS LTD,P2000979427,37,209.26,FUEL,13/06/13,
800020604,ALLSTAR BUSINESS SOLUTIONS LTD,P2000979427,38,207.76,FUEL,13/06/13,
800020604,ALLSTAR BUSINESS SOLUTIONS LTD,P2000979427,39,201.27,FUEL,13/06/13,
800020604,ALLSTAR BUSINESS SOLUTIONS LTD,P2000979427,40,200.73,FUEL,13/06/13,
800020604,ALLSTAR BUSINESS SOLUTIONS LTD,P2000979427,41,200.48,FUEL,13/06/13,
800020604,ALLSTAR BUSINESS SOLUTIONS LTD,P2000979427,42,199.99,FUEL,13/06/13,
800020604,ALLSTAR BUSINESS SOLUTIONS LTD,P2000979427,43,196.50,FUEL,13/06/13,
800020604,ALLSTAR BUSINESS SOLUTIONS LTD,P2000979427,44,192.07,FUEL,13/06/13,
800020604,ALLSTAR BUSINESS SOLUTIONS LTD,P2000979427,45,186.95,FUEL,13/06/13,
800020604,ALLSTAR BUSINESS SOLUTIONS LTD,P2000979427,46,184.97,FUEL,13/06/13,
800020604,ALLSTAR BUSINESS SOLUTIONS LTD,P2000979427,47,180.30,FUEL,13/06/13,
800020604,ALLSTAR BUSINESS SOLUTIONS LTD,P2000979427,48,177.98,FUEL,13/06/13,
800020604,ALLSTAR BUSINESS SOLUTIONS LTD,P2000979427,49,175.17,FUEL,13/06/13,
800020604,ALLSTAR BUSINESS SOLUTIONS LTD,P2000979427,50,174.10,FUEL,13/06/13,
800020604,ALLSTAR BUSINESS SOLUTIONS LTD,P2000979427,51,172.35,FUEL,13/06/13,
800020604,ALLSTAR BUSINESS SOLUTIONS LTD,P2000979427,52,172.09,FUEL,13/06/13,
800020604,ALLSTAR BUSINESS SOLUTIONS LTD,P2000979427,53,167.05,FUEL,13/06/13,
800020604,ALLSTAR BUSINESS SOLUTIONS LTD,P2000979427,54,162.74,FUEL,13/06/13,
800020604,ALLSTAR BUSINESS SOLUTIONS LTD,P2000979427,55,160.94,FUEL,13/06/13,
800020604,ALLSTAR BUSINESS SOLUTIONS LTD,P2000979427,56,158.40,FUEL,13/06/13,
800020604,ALLSTAR BUSINESS SOLUTIONS LTD,P2000979427,57,153.63,FUEL,13/06/13,
800020604,ALLSTAR BUSINESS SOLUTIONS LTD,P2000979427,58,152.49,FUEL,13/06/13,
800020604,ALLSTAR BUSINESS SOLUTIONS LTD,P2000979427,59,150.60,FUEL,13/06/13,
800020604,ALLSTAR BUSINESS SOLUTIONS LTD,P2000979427,60,143.78,FUEL,13/06/13,
800020604,ALLSTAR BUSINESS SOLUTIONS LTD,P2000979427,61,142.42,FUEL,13/06/13,
800020604,ALLSTAR BUSINESS SOLUTIONS LTD,P2000979427,62,142.12,FUEL,13/06/13,
800020604,ALLSTAR BUSINESS SOLUTIONS LTD,P2000979427,63,141.75,FUEL,13/06/13,
800020604,ALLSTAR BUSINESS SOLUTIONS LTD,P2000979427,64,139.34,FUEL,13/06/13,
800020604,ALLSTAR BUSINESS SOLUTIONS LTD,P2000979427,65,136.03,FUEL,13/06/13,
800020604,ALLSTAR BUSINESS SOLUTIONS LTD,P2000979427,66,134.21,FUEL,13/06/13,
800020604,ALLSTAR BUSINESS SOLUTIONS LTD,P2000979427,67,134.11,FUEL,13/06/13,
800020604,ALLSTAR BUSINESS SOLUTIONS LTD,P2000979427,68,132.32,FUEL,13/06/13,
800020604,ALLSTAR BUSINESS SOLUTIONS LTD,P2000979427,69,129.85,FUEL,13/06/13,
800020604,ALLSTAR BUSINESS SOLUTIONS LTD,P2000979427,70,126.70,FUEL,13/06/13,
800020604,ALLSTAR BUSINESS SOLUTIONS LTD,P2000979427,71,125.21,FUEL,13/06/13,
800020604,ALLSTAR BUSINESS SOLUTIONS LTD,P2000979427,72,124.19,FUEL,13/06/13,
800020604,ALLSTAR BUSINESS SOLUTIONS LTD,P2000979427,73,121.72,FUEL,13/06/13,
800020604,ALLSTAR BUSINESS SOLUTIONS LTD,P2000979427,74,119.30,FUEL,13/06/13,
800020604,ALLSTAR BUSINESS SOLUTIONS LTD,P2000979427,75,118.97,FUEL,13/06/13,
800020604,ALLSTAR BUSINESS SOLUTIONS LTD,P2000979427,76,111.16,FUEL,13/06/13,
800020604,ALLSTAR BUSINESS SOLUTIONS LTD,P2000979427,77,108.33,FUEL,13/06/13,
800020604,ALLSTAR BUSINESS SOLUTIONS LTD,P2000979427,78,106.56,FUEL,13/06/13,
800020604,ALLSTAR BUSINESS SOLUTIONS LTD,P2000979427,79,106.04,FUEL,13/06/13,
800020604,ALLSTAR BUSINESS SOLUTIONS LTD,P2000979427,80,105.73,FUEL,13/06/13,
800020604,ALLSTAR BUSINESS SOLUTIONS LTD,P2000979427,81,102.65,FUEL,13/06/13,
800020604,ALLSTAR BUSINESS SOLUTIONS LTD,P2000979427,82,100.15,FUEL,13/06/13,
800020604,ALLSTAR BUSINESS SOLUTIONS LTD,P2000979427,83,99.29,FUEL,13/06/13,
800020604,ALLSTAR BUSINESS SOLUTIONS LTD,P2000979427,84,98.96,FUEL,13/06/13,
800020604,ALLSTAR BUSINESS SOLUTIONS LTD,P2000979427,85,96.59,FUEL,13/06/13,
800020604,ALLSTAR BUSINESS SOLUTIONS LTD,P2000979427,86,95.64,FUEL,13/06/13,
800020604,ALLSTAR BUSINESS SOLUTIONS LTD,P2000979427,87,91.24,FUEL,13/06/13,
800020604,ALLSTAR BUSINESS SOLUTIONS LTD,P2000979427,88,89.84,FUEL,13/06/13,
800020604,ALLSTAR BUSINESS SOLUTIONS LTD,P2000979427,89,87.15,FUEL,13/06/13,
800020604,ALLSTAR BUSINESS SOLUTIONS LTD,P2000979427,90,86.16,FUEL,13/06/13,
800020604,ALLSTAR BUSINESS SOLUTIONS LTD,P2000979427,91,84.50,FUEL,13/06/13,
800020604,ALLSTAR BUSINESS SOLUTIONS LTD,P2000979427,92,83.89,FUEL,13/06/13,
800020604,ALLSTAR BUSINESS SOLUTIONS LTD,P2000979427,93,77.35,FUEL,13/06/13,
800020604,ALLSTAR BUSINESS SOLUTIONS LTD,P2000979427,94,75.55,FUEL,13/06/13,
800020604,ALLSTAR BUSINESS SOLUTIONS LTD,P2000979427,95,62.71,FUEL,13/06/13,
800020604,ALLSTAR BUSINESS SOLUTIONS LTD,P2000979427,96,61.61,FUEL,13/06/13,
800020604,ALLSTAR BUSINESS SOLUTIONS LTD,P2000979427,97,60.48,FUEL,13/06/13,
800020604,ALLSTAR BUSINESS SOLUTIONS LTD,P2000979427,98,58.62,FUEL,13/06/13,
800020604,ALLSTAR BUSINESS SOLUTIONS LTD,P2000979427,99,57.86,FUEL,13/06/13,
800020604,ALLSTAR BUSINESS SOLUTIONS LTD,P2000979427,100,57.45,FUEL,13/06/13,
800020604,ALLSTAR BUSINESS SOLUTIONS LTD,P2000979427,101,56.19,FUEL,13/06/13,
800020604,ALLSTAR BUSINESS SOLUTIONS LTD,P2000979427,102,45.64,FUEL,13/06/13,
800020604,ALLSTAR BUSINESS SOLUTIONS LTD,P2000979427,103,36.67,FUEL,13/06/13,
800020604,ALLSTAR BUSINESS SOLUTIONS LTD,P2000979427,104,24.17,FUEL,13/06/13,
800020604,ALLSTAR BUSINESS SOLUTIONS LTD,P2000979427,105,20.44,FUEL,13/06/13,
800020604,ALLSTAR BUSINESS SOLUTIONS LTD,P2000979427,106,9.18,FUEL,13/06/13,
070613C,PILLINGER CONTROLS LTD========,PI71448,1,"3,130.23",DAY TO DAY MINOR IMPS,13/06/13,"6,260.46"
070613C,PILLINGER CONTROLS LTD========,PI71448,2,"3,130.23",STRATEGIC (NON CYCLICAL),13/06/13,
070613C,PEGASUS COURIERS - LONDON=====,PL013827,1,357.53,POSTAL SERVICES,13/06/13,357.53
310513E,THE NATIONAL AUTISTIC SOCIETY=,PRP2146384,1,135.00,PROFESSIONAL DEVELOPMENT,13/06/13,540.00
310513E,THE NATIONAL AUTISTIC SOCIETY=,PRP2146384,2,135.00,PROFESSIONAL DEVELOPMENT,13/06/13,
310513E,THE NATIONAL AUTISTIC SOCIETY=,PRP2146384,3,135.00,PROFESSIONAL DEVELOPMENT,13/06/13,
310513E,THE NATIONAL AUTISTIC SOCIETY=,PRP2146384,4,135.00,PROFESSIONAL DEVELOPMENT,13/06/13,
060613E,PULLMAN MOTORS================,PULL 167,1,600.00,OPERATIONAL EQUIP-PURCHASE,13/06/13,600.00
100613C,ARVAL UK LTD,VS0000728854,1,"1,118.87",CONTRACT HIRE,13/06/13,"1,118.87"
050613C,APPLUS LLT,00162,1,"3,750.00",GENERAL,14/06/13,"3,750.00"
140251,UKRO==========================,UKRO/4JULY13,1,800.00,PROFESSIONAL DEVELOPMENT,14/06/13,800.00
060613E,HEALTH MANAGEMENT LIMITED=====,0000097953,1,320.00,THIRD PARTY REPORTS,18/06/13,"3,872.05"
060613E,HEALTH MANAGEMENT LIMITED=====,0000097953,2,275.00,THIRD PARTY REPORTS,18/06/13,
060613E,HEALTH MANAGEMENT LIMITED=====,0000097953,3,350.00,THIRD PARTY REPORTS,18/06/13,
060613E,HEALTH MANAGEMENT LIMITED=====,0000097953,4,350.00,THIRD PARTY REPORTS,18/06/13,
060613E,HEALTH MANAGEMENT LIMITED=====,0000097953,5,"2,577.05",THIRD PARTY REPORTS,18/06/13,
130613H,*OCS GROUP UK LTD,0000168004,1,56.00,REFRESHMENTS,18/06/13,565.25
130613H,*OCS GROUP UK LTD,0000168004,2,509.25,REFRESHMENTS,18/06/13,
120613C,ALCHEMY BUSINESS COMMUNICATION,003001,1,"1,626.00",CONSULTANTS,18/06/13,"1,626.00"
050613C,H-SQUARED ELECTRONICS LTD,00331808,1,344.00,OPERATIONAL EQUIP-PURCHASE,18/06/13,344.00
290513C,CLARITY INFORMATION SOLUTIONS=,00935,1,"6,840.00",CONSULTANTS,18/06/13,"6,840.00"
140247,CORONA ENERGY RETAIL 4 LTD,083012131,1,945.23,GAS,18/06/13,945.23
140247,BAA BUSINESS SUPPORT CENTRE===,100007484,1,"27,500.00",RENTS,18/06/13,"27,500.00"
120613C,AFFINITY WATER,101023348,1,818.00,CURRENT HYDRANT COSTS,18/06/13,818.00
120613C,AFFINITY WATER,101023351,1,741.00,CURRENT HYDRANT COSTS,18/06/13,741.00
120613C,AFFINITY WATER,101023354,1,754.00,CURRENT HYDRANT COSTS,18/06/13,754.00
120613C,AFFINITY WATER,101023355,1,754.00,CURRENT HYDRANT COSTS,18/06/13,754.00
050613C,*SPRUE SAFETY PRODUCTS LTD====,1047806,1,"2,528.00",FIRE DETECTORS,18/06/13,"2,528.00"
140247,TRANSPORT FOR LONDON==========,1065169,1,"51,554.12",RENTS,18/06/13,"51,554.12"
800020619,REDFERN TRAVEL LTD,1085030,1,297.98,PUBLIC TRANSPORT,18/06/13,297.98
800020607,REDFERN TRAVEL LTD,1086598,1,"3,075.50",PUBLIC TRANSPORT,18/06/13,"3,075.50"
800020635,REDFERN TRAVEL LTD,1089748,1,622.60,PUBLIC TRANSPORT,18/06/13,622.60
800020637,REDFERN TRAVEL LTD,1090549,1,310.75,OVERSEAS TRAVEL,18/06/13,310.75
800020621,REDFERN TRAVEL LTD,1092189,1,343.70,SUBSISTENCE,18/06/13,343.70
800020612,REDFERN TRAVEL LTD,1092534,1,262.00,OVERSEAS TRAVEL,18/06/13,262.00
800020648,REDFERN TRAVEL LTD,1096240,1,324.45,PUBLIC TRANSPORT,18/06/13,324.45
800020649,REDFERN TRAVEL LTD,1096289,1,401.70,PUBLIC TRANSPORT,18/06/13,401.70
110613E,DELOITTE LLP,1110937699,1,"8,300.30",PROFESSIONAL SERVICES,18/06/13,"8,300.30"
110613E,DELOITTE LLP,1110937726,1,"33,008.47",PROFESSIONAL SERVICES,18/06/13,"33,008.47"
110613E,DELOITTE LLP,1110937746,1,"18,790.66",PROFESSIONAL SERVICES,18/06/13,"18,790.66"
110613E,DELOITTE LLP,1110937765,1,"16,752.01",PROFESSIONAL SERVICES,18/06/13,"16,752.01"
110613E,DELOITTE LLP,1110937786,1,"19,761.03",PROFESSIONAL SERVICES,18/06/13,"19,761.03"
030613C,INFOR (UNITED KINGDOM) LIMITED,11303700-GB04G,1,"1,605.00",MAINTENANCE & SUPPORT,18/06/13,"1,605.00"
800020816,*NPS (SHOES) LTD,11678,1,41.10,CLOTHING,18/06/13,"2,547.35"
800020816,*NPS (SHOES) LTD,11678,2,28.45,CLOTHING,18/06/13,
800020816,*NPS (SHOES) LTD,11678,3,30.05,CLOTHING,18/06/13,
800020816,*NPS (SHOES) LTD,11678,4,41.10,CLOTHING,18/06/13,
800020816,*NPS (SHOES) LTD,11678,5,30.05,CLOTHING,18/06/13,
800020816,*NPS (SHOES) LTD,11678,6,30.05,CLOTHING,18/06/13,
800020816,*NPS (SHOES) LTD,11678,7,30.05,CLOTHING,18/06/13,
800020816,*NPS (SHOES) LTD,11678,8,30.05,CLOTHING,18/06/13,
800020816,*NPS (SHOES) LTD,11678,9,30.05,CLOTHING,18/06/13,
800020816,*NPS (SHOES) LTD,11678,10,30.05,CLOTHING,18/06/13,
800020816,*NPS (SHOES) LTD,11678,11,30.05,CLOTHING,18/06/13,
800020816,*NPS (SHOES) LTD,11678,12,30.05,CLOTHING,18/06/13,
800020816,*NPS (SHOES) LTD,11678,13,30.05,CLOTHING,18/06/13,
800020816,*NPS (SHOES) LTD,11678,14,30.05,CLOTHING,18/06/13,
800020816,*NPS (SHOES) LTD,11678,15,30.05,CLOTHING,18/06/13,
800020816,*NPS (SHOES) LTD,11678,16,30.05,CLOTHING,18/06/13,
800020816,*NPS (SHOES) LTD,11678,17,30.05,CLOTHING,18/06/13,
800020816,*NPS (SHOES) LTD,11678,18,29.45,CLOTHING,18/06/13,
800020816,*NPS (SHOES) LTD,11678,19,29.45,CLOTHING,18/06/13,
800020816,*NPS (SHOES) LTD,11678,20,29.45,CLOTHING,18/06/13,
800020816,*NPS (SHOES) LTD,11678,21,29.45,CLOTHING,18/06/13,
800020816,*NPS (SHOES) LTD,11678,22,29.45,CLOTHING,18/06/13,
800020816,*NPS (SHOES) LTD,11678,23,29.45,CLOTHING,18/06/13,
800020816,*NPS (SHOES) LTD,11678,24,29.45,CLOTHING,18/06/13,
800020816,*NPS (SHOES) LTD,11678,25,29.45,CLOTHING,18/06/13,
800020816,*NPS (SHOES) LTD,11678,26,29.45,CLOTHING,18/06/13,
800020816,*NPS (SHOES) LTD,11678,27,29.45,CLOTHING,18/06/13,
800020816,*NPS (SHOES) LTD,11678,28,29.45,CLOTHING,18/06/13,
800020816,*NPS (SHOES) LTD,11678,29,29.45,CLOTHING,18/06/13,
800020816,*NPS (SHOES) LTD,11678,30,29.45,CLOTHING,18/06/13,
800020816,*NPS (SHOES) LTD,11678,31,29.45,CLOTHING,18/06/13,
800020816,*NPS (SHOES) LTD,11678,32,29.45,CLOTHING,18/06/13,
800020816,*NPS (SHOES) LTD,11678,33,29.45,CLOTHING,18/06/13,
800020816,*NPS (SHOES) LTD,11678,34,29.45,CLOTHING,18/06/13,
800020816,*NPS (SHOES) LTD,11678,35,28.45,CLOTHING,18/06/13,
800020816,*NPS (SHOES) LTD,11678,36,30.05,CLOTHING,18/06/13,
800020816,*NPS (SHOES) LTD,11678,37,30.05,CLOTHING,18/06/13,
800020816,*NPS (SHOES) LTD,11678,38,30.05,CLOTHING,18/06/13,
800020816,*NPS (SHOES) LTD,11678,39,30.05,CLOTHING,18/06/13,
800020816,*NPS (SHOES) LTD,11678,40,30.05,CLOTHING,18/06/13,
800020816,*NPS (SHOES) LTD,11678,41,30.05,CLOTHING,18/06/13,
800020816,*NPS (SHOES) LTD,11678,42,30.05,CLOTHING,18/06/13,
800020816,*NPS (SHOES) LTD,11678,43,30.05,CLOTHING,18/06/13,
800020816,*NPS (SHOES) LTD,11678,44,30.05,CLOTHING,18/06/13,
800020816,*NPS (SHOES) LTD,11678,45,30.05,CLOTHING,18/06/13,
800020816,*NPS (SHOES) LTD,11678,46,30.05,CLOTHING,18/06/13,
800020816,*NPS (SHOES) LTD,11678,47,30.05,CLOTHING,18/06/13,
800020816,*NPS (SHOES) LTD,11678,48,30.05,CLOTHING,18/06/13,
800020816,*NPS (SHOES) LTD,11678,49,30.05,CLOTHING,18/06/13,
800020816,*NPS (SHOES) LTD,11678,50,30.05,CLOTHING,18/06/13,
800020816,*NPS (SHOES) LTD,11678,51,30.05,CLOTHING,18/06/13,
800020816,*NPS (SHOES) LTD,11678,52,30.05,CLOTHING,18/06/13,
800020816,*NPS (SHOES) LTD,11678,53,30.05,CLOTHING,18/06/13,
800020816,*NPS (SHOES) LTD,11678,54,30.05,CLOTHING,18/06/13,
800020816,*NPS (SHOES) LTD,11678,55,30.05,CLOTHING,18/06/13,
800020816,*NPS (SHOES) LTD,11678,56,30.05,CLOTHING,18/06/13,
800020816,*NPS (SHOES) LTD,11678,57,30.05,CLOTHING,18/06/13,
800020816,*NPS (SHOES) LTD,11678,58,30.05,CLOTHING,18/06/13,
800020816,*NPS (SHOES) LTD,11678,59,30.05,CLOTHING,18/06/13,
800020816,*NPS (SHOES) LTD,11678,60,29.45,CLOTHING,18/06/13,
800020816,*NPS (SHOES) LTD,11678,61,29.45,CLOTHING,18/06/13,
800020816,*NPS (SHOES) LTD,11678,62,29.45,CLOTHING,18/06/13,
800020816,*NPS (SHOES) LTD,11678,63,29.45,CLOTHING,18/06/13,
800020816,*NPS (SHOES) LTD,11678,64,29.45,CLOTHING,18/06/13,
800020816,*NPS (SHOES) LTD,11678,65,29.45,CLOTHING,18/06/13,
800020816,*NPS (SHOES) LTD,11678,66,29.45,CLOTHING,18/06/13,
800020816,*NPS (SHOES) LTD,11678,67,29.45,CLOTHING,18/06/13,
800020816,*NPS (SHOES) LTD,11678,68,29.45,CLOTHING,18/06/13,
800020816,*NPS (SHOES) LTD,11678,69,29.45,CLOTHING,18/06/13,
800020816,*NPS (SHOES) LTD,11678,70,29.45,CLOTHING,18/06/13,
800020816,*NPS (SHOES) LTD,11678,71,29.45,CLOTHING,18/06/13,
800020816,*NPS (SHOES) LTD,11678,72,29.45,CLOTHING,18/06/13,
800020816,*NPS (SHOES) LTD,11678,73,29.45,CLOTHING,18/06/13,
800020816,*NPS (SHOES) LTD,11678,74,29.45,CLOTHING,18/06/13,
800020816,*NPS (SHOES) LTD,11678,75,29.45,CLOTHING,18/06/13,
800020816,*NPS (SHOES) LTD,11678,76,29.45,CLOTHING,18/06/13,
800020816,*NPS (SHOES) LTD,11678,77,29.45,CLOTHING,18/06/13,
800020816,*NPS (SHOES) LTD,11678,78,29.45,CLOTHING,18/06/13,
800020816,*NPS (SHOES) LTD,11678,79,29.45,CLOTHING,18/06/13,
800020816,*NPS (SHOES) LTD,11678,80,29.45,CLOTHING,18/06/13,
800020816,*NPS (SHOES) LTD,11678,81,29.45,CLOTHING,18/06/13,
800020816,*NPS (SHOES) LTD,11678,82,29.45,CLOTHING,18/06/13,
800020816,*NPS (SHOES) LTD,11678,83,29.45,CLOTHING,18/06/13,
800020816,*NPS (SHOES) LTD,11678,84,29.45,CLOTHING,18/06/13,
800020816,*NPS (SHOES) LTD,11678,85,29.45,CLOTHING,18/06/13,
800020809,*NPS (SHOES) LTD,11747,1,29.45,CLOTHING,18/06/13,"2,240.30"
800020809,*NPS (SHOES) LTD,11747,2,41.10,CLOTHING,18/06/13,
800020809,*NPS (SHOES) LTD,11747,3,41.10,CLOTHING,18/06/13,
800020809,*NPS (SHOES) LTD,11747,4,41.10,CLOTHING,18/06/13,
800020809,*NPS (SHOES) LTD,11747,5,41.10,CLOTHING,18/06/13,
800020809,*NPS (SHOES) LTD,11747,6,41.10,CLOTHING,18/06/13,
800020809,*NPS (SHOES) LTD,11747,7,41.10,CLOTHING,18/06/13,
800020809,*NPS (SHOES) LTD,11747,8,30.05,CLOTHING,18/06/13,
800020809,*NPS (SHOES) LTD,11747,9,30.05,CLOTHING,18/06/13,
800020809,*NPS (SHOES) LTD,11747,10,30.05,CLOTHING,18/06/13,
800020809,*NPS (SHOES) LTD,11747,11,30.05,CLOTHING,18/06/13,
800020809,*NPS (SHOES) LTD,11747,12,30.05,CLOTHING,18/06/13,
800020809,*NPS (SHOES) LTD,11747,13,30.05,CLOTHING,18/06/13,
800020809,*NPS (SHOES) LTD,11747,14,30.05,CLOTHING,18/06/13,
800020809,*NPS (SHOES) LTD,11747,15,30.05,CLOTHING,18/06/13,
800020809,*NPS (SHOES) LTD,11747,16,30.05,CLOTHING,18/06/13,
800020809,*NPS (SHOES) LTD,11747,17,30.05,CLOTHING,18/06/13,
800020809,*NPS (SHOES) LTD,11747,18,30.05,CLOTHING,18/06/13,
800020809,*NPS (SHOES) LTD,11747,19,30.05,CLOTHING,18/06/13,
800020809,*NPS (SHOES) LTD,11747,20,30.05,CLOTHING,18/06/13,
800020809,*NPS (SHOES) LTD,11747,21,30.05,CLOTHING,18/06/13,
800020809,*NPS (SHOES) LTD,11747,22,30.05,CLOTHING,18/06/13,
800020809,*NPS (SHOES) LTD,11747,23,30.05,CLOTHING,18/06/13,
800020809,*NPS (SHOES) LTD,11747,24,30.05,CLOTHING,18/06/13,
800020809,*NPS (SHOES) LTD,11747,25,30.05,CLOTHING,18/06/13,
800020809,*NPS (SHOES) LTD,11747,26,30.05,CLOTHING,18/06/13,
800020809,*NPS (SHOES) LTD,11747,27,29.45,CLOTHING,18/06/13,
800020809,*NPS (SHOES) LTD,11747,28,29.45,CLOTHING,18/06/13,
800020809,*NPS (SHOES) LTD,11747,29,29.45,CLOTHING,18/06/13,
800020809,*NPS (SHOES) LTD,11747,30,29.45,CLOTHING,18/06/13,
800020809,*NPS (SHOES) LTD,11747,31,29.45,CLOTHING,18/06/13,
800020809,*NPS (SHOES) LTD,11747,32,29.45,CLOTHING,18/06/13,
800020809,*NPS (SHOES) LTD,11747,33,29.45,CLOTHING,18/06/13,
800020809,*NPS (SHOES) LTD,11747,34,29.45,CLOTHING,18/06/13,
800020809,*NPS (SHOES) LTD,11747,35,29.45,CLOTHING,18/06/13,
800020809,*NPS (SHOES) LTD,11747,36,29.45,CLOTHING,18/06/13,
800020809,*NPS (SHOES) LTD,11747,37,29.45,CLOTHING,18/06/13,
800020809,*NPS (SHOES) LTD,11747,38,29.45,CLOTHING,18/06/13,
800020809,*NPS (SHOES) LTD,11747,39,29.45,CLOTHING,18/06/13,
800020809,*NPS (SHOES) LTD,11747,40,29.45,CLOTHING,18/06/13,
800020809,*NPS (SHOES) LTD,11747,41,29.45,CLOTHING,18/06/13,
800020809,*NPS (SHOES) LTD,11747,42,29.45,CLOTHING,18/06/13,
800020809,*NPS (SHOES) LTD,11747,43,29.45,CLOTHING,18/06/13,
800020809,*NPS (SHOES) LTD,11747,44,29.45,CLOTHING,18/06/13,
800020809,*NPS (SHOES) LTD,11747,45,29.45,CLOTHING,18/06/13,
800020809,*NPS (SHOES) LTD,11747,46,29.45,CLOTHING,18/06/13,
800020809,*NPS (SHOES) LTD,11747,47,29.45,CLOTHING,18/06/13,
800020809,*NPS (SHOES) LTD,11747,48,29.45,CLOTHING,18/06/13,
800020809,*NPS (SHOES) LTD,11747,49,35.00,CLOTHING,18/06/13,
800020809,*NPS (SHOES) LTD,11747,50,30.05,CLOTHING,18/06/13,
800020809,*NPS (SHOES) LTD,11747,51,30.05,CLOTHING,18/06/13,
800020809,*NPS (SHOES) LTD,11747,52,30.05,CLOTHING,18/06/13,
800020809,*NPS (SHOES) LTD,11747,53,30.05,CLOTHING,18/06/13,
800020809,*NPS (SHOES) LTD,11747,54,30.05,CLOTHING,18/06/13,
800020809,*NPS (SHOES) LTD,11747,55,30.05,CLOTHING,18/06/13,
800020809,*NPS (SHOES) LTD,11747,56,29.45,CLOTHING,18/06/13,
800020809,*NPS (SHOES) LTD,11747,57,29.45,CLOTHING,18/06/13,
800020809,*NPS (SHOES) LTD,11747,58,29.45,CLOTHING,18/06/13,
800020809,*NPS (SHOES) LTD,11747,59,29.45,CLOTHING,18/06/13,
800020809,*NPS (SHOES) LTD,11747,60,29.45,CLOTHING,18/06/13,
800020809,*NPS (SHOES) LTD,11747,61,29.45,CLOTHING,18/06/13,
800020809,*NPS (SHOES) LTD,11747,62,29.45,CLOTHING,18/06/13,
800020809,*NPS (SHOES) LTD,11747,63,29.45,CLOTHING,18/06/13,
800020809,*NPS (SHOES) LTD,11747,64,29.45,CLOTHING,18/06/13,
800020809,*NPS (SHOES) LTD,11747,65,29.45,CLOTHING,18/06/13,
800020809,*NPS (SHOES) LTD,11747,66,29.45,CLOTHING,18/06/13,
800020809,*NPS (SHOES) LTD,11747,67,29.45,CLOTHING,18/06/13,
800020809,*NPS (SHOES) LTD,11747,68,29.45,CLOTHING,18/06/13,
800020809,*NPS (SHOES) LTD,11747,69,29.45,CLOTHING,18/06/13,
800020809,*NPS (SHOES) LTD,11747,70,29.45,CLOTHING,18/06/13,
800020809,*NPS (SHOES) LTD,11747,71,29.45,CLOTHING,18/06/13,
800020809,*NPS (SHOES) LTD,11747,72,29.45,CLOTHING,18/06/13,
800020809,*NPS (SHOES) LTD,11747,73,29.45,CLOTHING,18/06/13,
030613C,VISTA LANDSCAPE MANAGEMENT LTD,118291,1,142.31,GROUNDS MAINTENANCE,18/06/13,"3,024.91"
030613C,VISTA LANDSCAPE MANAGEMENT LTD,118291,2,24.77,GROUNDS MAINTENANCE,18/06/13,
030613C,VISTA LANDSCAPE MANAGEMENT LTD,118291,3,27.29,GROUNDS MAINTENANCE,18/06/13,
030613C,VISTA LANDSCAPE MANAGEMENT LTD,118291,4,30.32,GROUNDS MAINTENANCE,18/06/13,
030613C,VISTA LANDSCAPE MANAGEMENT LTD,118291,5,111.28,GROUNDS MAINTENANCE,18/06/13,
030613C,VISTA LANDSCAPE MANAGEMENT LTD,118291,6,23.48,GROUNDS MAINTENANCE,18/06/13,
030613C,VISTA LANDSCAPE MANAGEMENT LTD,118291,7,31.20,GROUNDS MAINTENANCE,18/06/13,
030613C,VISTA LANDSCAPE MANAGEMENT LTD,118291,8,24.52,GROUNDS MAINTENANCE,18/06/13,
030613C,VISTA LANDSCAPE MANAGEMENT LTD,118291,9,21.11,GROUNDS MAINTENANCE,18/06/13,
030613C,VISTA LANDSCAPE MANAGEMENT LTD,118291,10,21.20,GROUNDS MAINTENANCE,18/06/13,
030613C,VISTA LANDSCAPE MANAGEMENT LTD,118291,11,24.74,GROUNDS MAINTENANCE,18/06/13,
030613C,VISTA LANDSCAPE MANAGEMENT LTD,118291,12,35.29,GROUNDS MAINTENANCE,18/06/13,
030613C,VISTA LANDSCAPE MANAGEMENT LTD,118291,13,122.19,GROUNDS MAINTENANCE,18/06/13,
030613C,VISTA LANDSCAPE MANAGEMENT LTD,118291,14,20.52,GROUNDS MAINTENANCE,18/06/13,
030613C,VISTA LANDSCAPE MANAGEMENT LTD,118291,15,92.06,GROUNDS MAINTENANCE,18/06/13,
030613C,VISTA LANDSCAPE MANAGEMENT LTD,118291,16,27.21,GROUNDS MAINTENANCE,18/06/13,
030613C,VISTA LANDSCAPE MANAGEMENT LTD,118291,17,23.91,GROUNDS MAINTENANCE,18/06/13,
030613C,VISTA LANDSCAPE MANAGEMENT LTD,118291,18,139.80,GROUNDS MAINTENANCE,18/06/13,
030613C,VISTA LANDSCAPE MANAGEMENT LTD,118291,19,22.33,GROUNDS MAINTENANCE,18/06/13,
030613C,VISTA LANDSCAPE MANAGEMENT LTD,118291,20,23.87,GROUNDS MAINTENANCE,18/06/13,
030613C,VISTA LANDSCAPE MANAGEMENT LTD,118291,21,17.53,GROUNDS MAINTENANCE,18/06/13,
030613C,VISTA LANDSCAPE MANAGEMENT LTD,118291,22,23.00,GROUNDS MAINTENANCE,18/06/13,
030613C,VISTA LANDSCAPE MANAGEMENT LTD,118291,23,23.85,GROUNDS MAINTENANCE,18/06/13,
030613C,VISTA LANDSCAPE MANAGEMENT LTD,118291,24,27.55,GROUNDS MAINTENANCE,18/06/13,
030613C,VISTA LANDSCAPE MANAGEMENT LTD,118291,25,25.72,GROUNDS MAINTENANCE,18/06/13,
030613C,VISTA LANDSCAPE MANAGEMENT LTD,118291,26,66.27,GROUNDS MAINTENANCE,18/06/13,
030613C,VISTA LANDSCAPE MANAGEMENT LTD,118291,27,21.41,GROUNDS MAINTENANCE,18/06/13,
030613C,VISTA LANDSCAPE MANAGEMENT LTD,118291,28,21.28,GROUNDS MAINTENANCE,18/06/13,
030613C,VISTA LANDSCAPE MANAGEMENT LTD,118291,29,19.18,GROUNDS MAINTENANCE,18/06/13,
030613C,VISTA LANDSCAPE MANAGEMENT LTD,118291,30,89.20,GROUNDS MAINTENANCE,18/06/13,
030613C,VISTA LANDSCAPE MANAGEMENT LTD,118291,31,94.10,GROUNDS MAINTENANCE,18/06/13,
030613C,VISTA LANDSCAPE MANAGEMENT LTD,118291,32,22.58,GROUNDS MAINTENANCE,18/06/13,
030613C,VISTA LANDSCAPE MANAGEMENT LTD,118291,33,278.31,GROUNDS MAINTENANCE,18/06/13,
030613C,VISTA LANDSCAPE MANAGEMENT LTD,118291,34,22.07,GROUNDS MAINTENANCE,18/06/13,
030613C,VISTA LANDSCAPE MANAGEMENT LTD,118291,35,71.29,GROUNDS MAINTENANCE,18/06/13,
030613C,VISTA LANDSCAPE MANAGEMENT LTD,118291,36,20.59,GROUNDS MAINTENANCE,18/06/13,
030613C,VISTA LANDSCAPE MANAGEMENT LTD,118291,37,22.08,GROUNDS MAINTENANCE,18/06/13,
030613C,VISTA LANDSCAPE MANAGEMENT LTD,118291,38,21.40,GROUNDS MAINTENANCE,18/06/13,
030613C,VISTA LANDSCAPE MANAGEMENT LTD,118291,39,88.90,GROUNDS MAINTENANCE,18/06/13,
030613C,VISTA LANDSCAPE MANAGEMENT LTD,118291,40,130.36,GROUNDS MAINTENANCE,18/06/13,
030613C,VISTA LANDSCAPE MANAGEMENT LTD,118291,41,19.12,GROUNDS MAINTENANCE,18/06/13,
030613C,VISTA LANDSCAPE MANAGEMENT LTD,118291,42,749.82,GROUNDS MAINTENANCE,18/06/13,
030613C,VISTA LANDSCAPE MANAGEMENT LTD,118291,43,70.24,GROUNDS MAINTENANCE,18/06/13,
030613C,VISTA LANDSCAPE MANAGEMENT LTD,118291,44,62.34,GROUNDS MAINTENANCE,18/06/13,
030613C,VISTA LANDSCAPE MANAGEMENT LTD,118291,45,27.32,GROUNDS MAINTENANCE,18/06/13,
130613H,KIER BUILDING SERV ENGINEERS==,12120047,1,"35,405.70",TACTICAL DAY TO DAY,18/06/13,"71,961.15"
130613H,KIER BUILDING SERV ENGINEERS==,12120047,2,523.32,TACTICAL DAY TO DAY,18/06/13,
130613H,KIER BUILDING SERV ENGINEERS==,12120047,3,"1,745.65",TACTICAL DAY TO DAY,18/06/13,
130613H,KIER BUILDING SERV ENGINEERS==,12120047,4,"1,882.77",TACTICAL DAY TO DAY,18/06/13,
130613H,KIER BUILDING SERV ENGINEERS==,12120047,5,"24,326.08",STRATEGIC (CYCLICAL),18/06/13,
130613H,KIER BUILDING SERV ENGINEERS==,12120047,6,808.13,STRATEGIC (CYCLICAL),18/06/13,
130613H,KIER BUILDING SERV ENGINEERS==,12120047,7,"1,488.35",STRATEGIC (CYCLICAL),18/06/13,
130613H,KIER BUILDING SERV ENGINEERS==,12120047,8,"5,781.15",STRATEGIC (CYCLICAL),18/06/13,
140248,ST ALBANS CENTRE,13088,1,325.00,PUBLIC RELATIONS,18/06/13,325.00
110613E,RESPIREX======================,142374,1,"9,250.00",PROTECTIVE EQUIPMENT,18/06/13,"9,250.00"
140247,PORT OF LONDON AUTHORITY======,1561314913,1,"6,031.25",RENTS,18/06/13,"6,031.25"
130613C,IRON MOUNTAIN (UK) LTD========,16175675,1,"3,005.61",MAINTENANCE & SUPPORT,18/06/13,"3,005.61"
110613E,DRON & WRIGHT=================,16484,1,"1,082.50",PROFESSIONAL SERVICES,18/06/13,"1,082.50"
110613E,DRON & WRIGHT=================,16485,1,567.50,PROFESSIONAL SERVICES,18/06/13,567.50
140249,MBL SEMINARS=================,175848,1,600.00,PROFESSIONAL DEVELOPMENT,18/06/13,600.00
120613C,B NOKES CONTRACTS LTD,1785,1,"4,245.00",STRATEGIC (NON CYCLICAL),18/06/13,"4,885.00"
120613C,B NOKES CONTRACTS LTD,1785,2,640.00,STRATEGIC (NON CYCLICAL),18/06/13,
140247,EDF ENERGY===================,1785676833,1,"1,147.40",WATER & SEWERAGE RATES,18/06/13,"1,147.40"
140247,EDF ENERGY===================,1785907932,1,"2,293.04",WATER & SEWERAGE RATES,18/06/13,"2,293.04"
140247,EDF ENERGY===================,1786209533,1,"8,602.74",ELECTRICITY,18/06/13,"8,602.74"
140247,EDF ENERGY===================,1786484433,1,353.82,ELECTRICITY,18/06/13,"3,538.22"
140247,EDF ENERGY===================,1786484433,2,"3,184.40",ELECTRICITY,18/06/13,
140247,EDF ENERGY===================,1793376230,1,"9,717.15",ELECTRICITY,18/06/13,"9,717.15"
140247,EDF ENERGY===================,1813823623,1,"14,287.59",ELECTRICITY,18/06/13,"14,287.59"
140249,THE KITTLE PARTNERSHIP LTD====,2053,1,562.50,MISCELLANEOUS DISBURSEMENTS,18/06/13,562.50
030613C,SAFEGUARD PEST CON. & ENV.LTD,210318,1,480.00,PEST CONTROL,18/06/13,480.00
120613C,STORM TECHNOLOGIES============,222197,1,"1,050.00",ACQUISITIONS,18/06/13,"2,450.00"
120613C,STORM TECHNOLOGIES============,222197,2,"1,400.00",ACQUISITIONS,18/06/13,
130613C,ARKAS LIMITED=================,23898,1,"6,526.00",STRATEGIC (NON CYCLICAL),18/06/13,"6,526.00"
130613C,ARKAS LIMITED=================,23907,1,817.00,STRATEGIC (CYCLICAL),18/06/13,"1,501.00"
130613C,ARKAS LIMITED=================,23907,2,161.50,STRATEGIC (CYCLICAL),18/06/13,
130613C,ARKAS LIMITED=================,23907,3,275.50,STRATEGIC (CYCLICAL),18/06/13,
130613C,ARKAS LIMITED=================,23907,4,247.00,STRATEGIC (CYCLICAL),18/06/13,
130613C,ARKAS LIMITED=================,23909,1,633.05,TACTICAL DAY TO DAY,18/06/13,"1,602.07"
130613C,ARKAS LIMITED=================,23909,2,469.10,STRATEGIC (CYCLICAL),18/06/13,
130613C,ARKAS LIMITED=================,23909,3,275.50,STRATEGIC (CYCLICAL),18/06/13,
130613C,ARKAS LIMITED=================,23909,4,224.42,TACTICAL DAY TO DAY,18/06/13,
130613C,ARKAS LIMITED=================,23910,1,"1,023.94",STRATEGIC (CYCLICAL),18/06/13,"1,526.95"
130613C,ARKAS LIMITED=================,23910,2,165.76,STRATEGIC (CYCLICAL),18/06/13,
130613C,ARKAS LIMITED=================,23910,3,161.50,STRATEGIC (CYCLICAL),18/06/13,
130613C,ARKAS LIMITED=================,23910,4,175.75,STRATEGIC (CYCLICAL),18/06/13,
130613C,ARKAS LIMITED=================,23911,1,190.00,TACTICAL DAY TO DAY,18/06/13,937.94
130613C,ARKAS LIMITED=================,23911,2,211.19,STRATEGIC (CYCLICAL),18/06/13,
130613C,ARKAS LIMITED=================,23911,3,175.75,STRATEGIC (CYCLICAL),18/06/13,
130613C,ARKAS LIMITED=================,23911,4,361.00,STRATEGIC (CYCLICAL),18/06/13,
140247,L B OF BARKING & DAGENHAM=====,24061328913,1,"1,500.00",RENTS,18/06/13,"1,500.00"
100613C,PRECISE MEDIA MONITORING LTD==,243757,1,"1,205.99",PRESS OFFICE,18/06/13,"1,205.99"
140247,AMAS LTD======================,24613280913,1,"3,343.65",RENTS,18/06/13,"3,343.65"
800020567,ADECCO UK LIMITED=============,26428637,1,549.85,FRS STAFF AGENCY,18/06/13,549.85
800020817,ADECCO UK LIMITED=============,26436418,1,825.80,FRS STAFF AGENCY,18/06/13,825.80
800020818,ADECCO UK LIMITED=============,26436419,1,937.02,FRS STAFF AGENCY,18/06/13,937.02
800020819,ADECCO UK LIMITED=============,26436420,1,504.30,FRS STAFF AGENCY,18/06/13,504.30
800020820,ADECCO UK LIMITED=============,26436421,1,347.76,FRS STAFF AGENCY,18/06/13,347.76
800020823,ADECCO UK LIMITED=============,26436424,1,434.70,FRS STAFF AGENCY,18/06/13,434.70
800020824,ADECCO UK LIMITED=============,26436425,1,434.70,FRS STAFF AGENCY,18/06/13,434.70
800020825,ADECCO UK LIMITED=============,26436426,1,260.82,FRS STAFF AGENCY,18/06/13,260.82
800020826,ADECCO UK LIMITED=============,26436427,1,403.44,FRS STAFF AGENCY,18/06/13,403.44
800020827,ADECCO UK LIMITED=============,26436428,1,260.82,FRS STAFF AGENCY,18/06/13,260.82
800020829,ADECCO UK LIMITED=============,26436430,1,347.76,FRS STAFF AGENCY,18/06/13,347.76
800020831,ADECCO UK LIMITED=============,26436432,1,966.78,FRS STAFF AGENCY,18/06/13,966.78
800020832,ADECCO UK LIMITED=============,26436433,1,"1,499.40",FRS STAFF AGENCY,18/06/13,"1,499.40"
800020834,ADECCO UK LIMITED=============,26436435,1,453.33,FRS STAFF AGENCY,18/06/13,453.33
110613E,DRAIN CONTROL=================,29147,1,360.00,TACTICAL DAY TO DAY,18/06/13,360.00
100613C,MCGRATH BROS (WASTE CONTROL) L,291737,1,307.80,REFUSE COLLECTION,18/06/13,"18,937.70"
100613C,MCGRATH BROS (WASTE CONTROL) L,291737,2,117.30,REFUSE COLLECTION,18/06/13,
100613C,MCGRATH BROS (WASTE CONTROL) L,291737,3,220.00,REFUSE COLLECTION,18/06/13,
100613C,MCGRATH BROS (WASTE CONTROL) L,291737,4,92.85,REFUSE COLLECTION,18/06/13,
100613C,MCGRATH BROS (WASTE CONTROL) L,291737,5,117.30,REFUSE COLLECTION,18/06/13,
100613C,MCGRATH BROS (WASTE CONTROL) L,291737,6,92.85,REFUSE COLLECTION,18/06/13,
100613C,MCGRATH BROS (WASTE CONTROL) L,291737,7,160.45,REFUSE COLLECTION,18/06/13,
100613C,MCGRATH BROS (WASTE CONTROL) L,291737,8,156.80,REFUSE COLLECTION,18/06/13,
100613C,MCGRATH BROS (WASTE CONTROL) L,291737,9,128.85,REFUSE COLLECTION,18/06/13,
100613C,MCGRATH BROS (WASTE CONTROL) L,291737,10,92.85,REFUSE COLLECTION,18/06/13,
100613C,MCGRATH BROS (WASTE CONTROL) L,291737,11,88.50,REFUSE COLLECTION,18/06/13,
100613C,MCGRATH BROS (WASTE CONTROL) L,291737,12,128.00,REFUSE COLLECTION,18/06/13,
100613C,MCGRATH BROS (WASTE CONTROL) L,291737,13,148.90,REFUSE COLLECTION,18/06/13,
100613C,MCGRATH BROS (WASTE CONTROL) L,291737,14,292.00,REFUSE COLLECTION,18/06/13,
100613C,MCGRATH BROS (WASTE CONTROL) L,291737,15,109.40,REFUSE COLLECTION,18/06/13,
100613C,MCGRATH BROS (WASTE CONTROL) L,291737,16,292.00,REFUSE COLLECTION,18/06/13,
100613C,MCGRATH BROS (WASTE CONTROL) L,291737,17,100.75,REFUSE COLLECTION,18/06/13,
100613C,MCGRATH BROS (WASTE CONTROL) L,291737,18,292.00,REFUSE COLLECTION,18/06/13,
100613C,MCGRATH BROS (WASTE CONTROL) L,291737,19,292.00,REFUSE COLLECTION,18/06/13,
100613C,MCGRATH BROS (WASTE CONTROL) L,291737,20,363.10,REFUSE COLLECTION,18/06/13,
100613C,MCGRATH BROS (WASTE CONTROL) L,291737,21,156.10,REFUSE COLLECTION,18/06/13,
100613C,MCGRATH BROS (WASTE CONTROL) L,291737,22,80.60,REFUSE COLLECTION,18/06/13,
100613C,MCGRATH BROS (WASTE CONTROL) L,291737,23,80.60,REFUSE COLLECTION,18/06/13,
100613C,MCGRATH BROS (WASTE CONTROL) L,291737,24,88.50,REFUSE COLLECTION,18/06/13,
100613C,MCGRATH BROS (WASTE CONTROL) L,291737,25,80.60,REFUSE COLLECTION,18/06/13,
100613C,MCGRATH BROS (WASTE CONTROL) L,291737,26,117.30,REFUSE COLLECTION,18/06/13,
100613C,MCGRATH BROS (WASTE CONTROL) L,291737,27,92.85,REFUSE COLLECTION,18/06/13,
100613C,MCGRATH BROS (WASTE CONTROL) L,291737,28,292.00,REFUSE COLLECTION,18/06/13,
100613C,MCGRATH BROS (WASTE CONTROL) L,291737,29,213.00,REFUSE COLLECTION,18/06/13,
100613C,MCGRATH BROS (WASTE CONTROL) L,291737,30,92.85,REFUSE COLLECTION,18/06/13,
100613C,MCGRATH BROS (WASTE CONTROL) L,291737,31,128.85,REFUSE COLLECTION,18/06/13,
100613C,MCGRATH BROS (WASTE CONTROL) L,291737,32,297.05,REFUSE COLLECTION,18/06/13,
100613C,MCGRATH BROS (WASTE CONTROL) L,291737,33,109.40,REFUSE COLLECTION,18/06/13,
100613C,MCGRATH BROS (WASTE CONTROL) L,291737,34,136.75,REFUSE COLLECTION,18/06/13,
100613C,MCGRATH BROS (WASTE CONTROL) L,291737,35,160.45,REFUSE COLLECTION,18/06/13,
100613C,MCGRATH BROS (WASTE CONTROL) L,291737,36,128.85,REFUSE COLLECTION,18/06/13,
100613C,MCGRATH BROS (WASTE CONTROL) L,291737,37,156.80,REFUSE COLLECTION,18/06/13,
100613C,MCGRATH BROS (WASTE CONTROL) L,291737,38,124.45,REFUSE COLLECTION,18/06/13,
100613C,MCGRATH BROS (WASTE CONTROL) L,291737,39,100.75,REFUSE COLLECTION,18/06/13,
100613C,MCGRATH BROS (WASTE CONTROL) L,291737,40,228.80,REFUSE COLLECTION,18/06/13,
100613C,MCGRATH BROS (WASTE CONTROL) L,291737,41,228.80,REFUSE COLLECTION,18/06/13,
100613C,MCGRATH BROS (WASTE CONTROL) L,291737,42,136.75,REFUSE COLLECTION,18/06/13,
100613C,MCGRATH BROS (WASTE CONTROL) L,291737,43,88.50,REFUSE COLLECTION,18/06/13,
100613C,MCGRATH BROS (WASTE CONTROL) L,291737,44,92.85,REFUSE COLLECTION,18/06/13,
100613C,MCGRATH BROS (WASTE CONTROL) L,291737,45,307.80,REFUSE COLLECTION,18/06/13,
100613C,MCGRATH BROS (WASTE CONTROL) L,291737,46,248.25,REFUSE COLLECTION,18/06/13,
100613C,MCGRATH BROS (WASTE CONTROL) L,291737,47,128.85,REFUSE COLLECTION,18/06/13,
100613C,MCGRATH BROS (WASTE CONTROL) L,291737,48,100.75,REFUSE COLLECTION,18/06/13,
100613C,MCGRATH BROS (WASTE CONTROL) L,291737,49,100.75,REFUSE COLLECTION,18/06/13,
100613C,MCGRATH BROS (WASTE CONTROL) L,291737,50,109.40,REFUSE COLLECTION,18/06/13,
100613C,MCGRATH BROS (WASTE CONTROL) L,291737,51,292.00,REFUSE COLLECTION,18/06/13,
100613C,MCGRATH BROS (WASTE CONTROL) L,291737,52,80.60,REFUSE COLLECTION,18/06/13,
100613C,MCGRATH BROS (WASTE CONTROL) L,291737,53,100.75,REFUSE COLLECTION,18/06/13,
100613C,MCGRATH BROS (WASTE CONTROL) L,291737,54,109.40,REFUSE COLLECTION,18/06/13,
100613C,MCGRATH BROS (WASTE CONTROL) L,291737,55,100.75,REFUSE COLLECTION,18/06/13,
100613C,MCGRATH BROS (WASTE CONTROL) L,291737,56,128.00,REFUSE COLLECTION,18/06/13,
100613C,MCGRATH BROS (WASTE CONTROL) L,291737,57,80.60,REFUSE COLLECTION,18/06/13,
100613C,MCGRATH BROS (WASTE CONTROL) L,291737,58,141.00,REFUSE COLLECTION,18/06/13,
100613C,MCGRATH BROS (WASTE CONTROL) L,291737,59,92.85,REFUSE COLLECTION,18/06/13,
100613C,MCGRATH BROS (WASTE CONTROL) L,291737,60,281.25,REFUSE COLLECTION,18/06/13,
100613C,MCGRATH BROS (WASTE CONTROL) L,291737,61,136.75,REFUSE COLLECTION,18/06/13,
100613C,MCGRATH BROS (WASTE CONTROL) L,291737,62,109.40,REFUSE COLLECTION,18/06/13,
100613C,MCGRATH BROS (WASTE CONTROL) L,291737,63,80.60,REFUSE COLLECTION,18/06/13,
100613C,MCGRATH BROS (WASTE CONTROL) L,291737,64,292.00,REFUSE COLLECTION,18/06/13,
100613C,MCGRATH BROS (WASTE CONTROL) L,291737,65,88.50,REFUSE COLLECTION,18/06/13,
100613C,MCGRATH BROS (WASTE CONTROL) L,291737,66,297.05,REFUSE COLLECTION,18/06/13,
100613C,MCGRATH BROS (WASTE CONTROL) L,291737,67,88.50,REFUSE COLLECTION,18/06/13,
100613C,MCGRATH BROS (WASTE CONTROL) L,291737,68,117.30,REFUSE COLLECTION,18/06/13,
100613C,MCGRATH BROS (WASTE CONTROL) L,291737,69,109.40,REFUSE COLLECTION,18/06/13,
100613C,MCGRATH BROS (WASTE CONTROL) L,291737,70,136.75,REFUSE COLLECTION,18/06/13,
100613C,MCGRATH BROS (WASTE CONTROL) L,291737,71,109.40,REFUSE COLLECTION,18/06/13,
100613C,MCGRATH BROS (WASTE CONTROL) L,291737,72,92.85,REFUSE COLLECTION,18/06/13,
100613C,MCGRATH BROS (WASTE CONTROL) L,291737,73,312.20,REFUSE COLLECTION,18/06/13,
100613C,MCGRATH BROS (WASTE CONTROL) L,291737,74,92.85,REFUSE COLLECTION,18/06/13,
100613C,MCGRATH BROS (WASTE CONTROL) L,291737,75,109.40,REFUSE COLLECTION,18/06/13,
100613C,MCGRATH BROS (WASTE CONTROL) L,291737,76,140.25,REFUSE COLLECTION,18/06/13,
100613C,MCGRATH BROS (WASTE CONTROL) L,291737,77,128.85,REFUSE COLLECTION,18/06/13,
100613C,MCGRATH BROS (WASTE CONTROL) L,291737,78,140.25,REFUSE COLLECTION,18/06/13,
100613C,MCGRATH BROS (WASTE CONTROL) L,291737,79,88.50,REFUSE COLLECTION,18/06/13,
100613C,MCGRATH BROS (WASTE CONTROL) L,291737,80,88.50,REFUSE COLLECTION,18/06/13,
100613C,MCGRATH BROS (WASTE CONTROL) L,291737,81,88.50,REFUSE COLLECTION,18/06/13,
100613C,MCGRATH BROS (WASTE CONTROL) L,291737,82,100.75,REFUSE COLLECTION,18/06/13,
100613C,MCGRATH BROS (WASTE CONTROL) L,291737,83,276.20,REFUSE COLLECTION,18/06/13,
100613C,MCGRATH BROS (WASTE CONTROL) L,291737,84,292.00,REFUSE COLLECTION,18/06/13,
100613C,MCGRATH BROS (WASTE CONTROL) L,291737,85,128.85,REFUSE COLLECTION,18/06/13,
100613C,MCGRATH BROS (WASTE CONTROL) L,291737,86,88.50,REFUSE COLLECTION,18/06/13,
100613C,MCGRATH BROS (WASTE CONTROL) L,291737,87,112.20,REFUSE COLLECTION,18/06/13,
100613C,MCGRATH BROS (WASTE CONTROL) L,291737,88,136.75,REFUSE COLLECTION,18/06/13,
100613C,MCGRATH BROS (WASTE CONTROL) L,291737,89,80.60,REFUSE COLLECTION,18/06/13,
100613C,MCGRATH BROS (WASTE CONTROL) L,291737,90,574.10,REFUSE COLLECTION,18/06/13,
100613C,MCGRATH BROS (WASTE CONTROL) L,291737,91,88.50,REFUSE COLLECTION,18/06/13,
100613C,MCGRATH BROS (WASTE CONTROL) L,291737,92,92.85,REFUSE COLLECTION,18/06/13,
100613C,MCGRATH BROS (WASTE CONTROL) L,291737,93,292.00,REFUSE COLLECTION,18/06/13,
100613C,MCGRATH BROS (WASTE CONTROL) L,291737,94,88.50,REFUSE COLLECTION,18/06/13,
100613C,MCGRATH BROS (WASTE CONTROL) L,291737,95,117.30,REFUSE COLLECTION,18/06/13,
100613C,MCGRATH BROS (WASTE CONTROL) L,291737,96,117.30,REFUSE COLLECTION,18/06/13,
100613C,MCGRATH BROS (WASTE CONTROL) L,291737,97,292.00,REFUSE COLLECTION,18/06/13,
100613C,MCGRATH BROS (WASTE CONTROL) L,291737,98,124.50,REFUSE COLLECTION,18/06/13,
100613C,MCGRATH BROS (WASTE CONTROL) L,291737,99,"1,753.75",REFUSE COLLECTION,18/06/13,
100613C,MCGRATH BROS (WASTE CONTROL) L,291737,100,88.50,REFUSE COLLECTION,18/06/13,
100613C,MCGRATH BROS (WASTE CONTROL) L,291737,101,117.30,REFUSE COLLECTION,18/06/13,
100613C,MCGRATH BROS (WASTE CONTROL) L,291737,102,117.30,REFUSE COLLECTION,18/06/13,
100613C,MCGRATH BROS (WASTE CONTROL) L,291737,103,312.20,REFUSE COLLECTION,18/06/13,
100613C,MCGRATH BROS (WASTE CONTROL) L,291737,104,100.75,REFUSE COLLECTION,18/06/13,
100613C,MCGRATH BROS (WASTE CONTROL) L,291737,105,112.20,REFUSE COLLECTION,18/06/13,
100613C,MCGRATH BROS (WASTE CONTROL) L,291737,106,109.40,REFUSE COLLECTION,18/06/13,
100613C,MCGRATH BROS (WASTE CONTROL) L,291737,107,220.00,REFUSE COLLECTION,18/06/13,
100613C,MCGRATH BROS (WASTE CONTROL) L,291737,108,125.20,REFUSE COLLECTION,18/06/13,
100613C,MCGRATH BROS (WASTE CONTROL) L,291737,109,109.40,REFUSE COLLECTION,18/06/13,
100613C,MCGRATH BROS (WASTE CONTROL) L,291737,110,128.00,REFUSE COLLECTION,18/06/13,
100613C,MCGRATH BROS (WASTE CONTROL) L,291737,111,100.75,REFUSE COLLECTION,18/06/13,
100613C,MCGRATH BROS (WASTE CONTROL) L,291737,112,88.50,REFUSE COLLECTION,18/06/13,
100613C,MCGRATH BROS (WASTE CONTROL) L,291737,113,92.85,REFUSE COLLECTION,18/06/13,
100613C,MCGRATH BROS (WASTE CONTROL) L,291737,114,100.75,REFUSE COLLECTION,18/06/13,
110613E,BRISTOL UNIFORMS LTD==========,3100757,1,338.88,CLOTHING,18/06/13,601.80
110613E,BRISTOL UNIFORMS LTD==========,3100757,2,262.92,CLOTHING,18/06/13,
140246,REACTIVE ROOFING (UK) LIMITED,3165,1,372.00,STRATEGIC (NON CYCLICAL),18/06/13,"1,536.96"
140246,REACTIVE ROOFING (UK) LIMITED,3165,2,"1,164.96",STRATEGIC (NON CYCLICAL),18/06/13,
120613H,EXPRESS VENDING LIMITED=======,326585/326586,1,267.36,CATERING EQUIPMENT,18/06/13,267.36
120613H,EXPRESS VENDING LIMITED=======,329010/329011,1,264.57,CATERING EQUIPMENT,18/06/13,264.57
140248,THAMES WATER UTILITIES LTD====,3344972311\,1,253.70,WATER & SEWERAGE RATES,18/06/13,253.70
100613C,HUNTERS CONTRACTS LIMITED,342184,1,409.20,OFFICE FURNITURE,18/06/13,409.20
100613C,HUNTERS CONTRACTS LIMITED,342187,1,409.20,OFFICE FURNITURE,18/06/13,409.20
130613H,MUSCO LIGHTING EUROPE LTD=====,3768,1,"3,853.33",GENERAL,18/06/13,"3,853.33"
140613G,LOCAL GOVERNMENT ASSOCIATION==,40130981,1,495.00,PROFESSIONAL DEVELOPMENT,18/06/13,495.00
120613H,CANON (UK) LTD===============,401355415,1,17.24,OFFICE EQUIPMENT,18/06/13,"2,940.59"
120613H,CANON (UK) LTD===============,401355415,2,18.51,OFFICE EQUIPMENT,18/06/13,
120613H,CANON (UK) LTD===============,401355415,3,77.25,OFFICE EQUIPMENT,18/06/13,
120613H,CANON (UK) LTD===============,401355415,4,116.49,OFFICE EQUIPMENT,18/06/13,
120613H,CANON (UK) LTD===============,401355415,5,15.07,OFFICE EQUIPMENT,18/06/13,
120613H,CANON (UK) LTD===============,401355415,6,211.93,OFFICE EQUIPMENT,18/06/13,
120613H,CANON (UK) LTD===============,401355415,7,50.84,OFFICE EQUIPMENT,18/06/13,
120613H,CANON (UK) LTD===============,401355415,8,640.42,OFFICE EQUIPMENT,18/06/13,
120613H,CANON (UK) LTD===============,401355415,9,231.15,OFFICE EQUIPMENT,18/06/13,
120613H,CANON (UK) LTD===============,401355415,10,441.94,OFFICE EQUIPMENT,18/06/13,
120613H,CANON (UK) LTD===============,401355415,11,184.45,OFFICE EQUIPMENT,18/06/13,
120613H,CANON (UK) LTD===============,401355415,12,522.67,OFFICE EQUIPMENT,18/06/13,
120613H,CANON (UK) LTD===============,401355415,13,38.46,OFFICE EQUIPMENT,18/06/13,
120613H,CANON (UK) LTD===============,401355415,14,374.17,OFFICE EQUIPMENT,18/06/13,
040613H,W & E DERRICK BLDG. CONT.=====,4040,1,455.00,STRATEGIC (NON CYCLICAL),18/06/13,"1,103.00"
040613H,W & E DERRICK BLDG. CONT.=====,4040,2,648.00,STRATEGIC (NON CYCLICAL),18/06/13,
100613C,MITIE SECURITY (LONDON) LTD===,45/519756,1,"8,534.24",PREMISES SECURITY,18/06/13,"8,534.24"
100613C,MITIE SECURITY (LONDON) LTD===,45/519762,1,"17,067.36",PREMISES SECURITY,18/06/13,"17,067.36"
100613C,MITIE SECURITY (LONDON) LTD===,45/519794,1,"1,651.68",PREMISES SECURITY,18/06/13,"1,651.68"
100613C,MITIE SECURITY (LONDON) LTD===,45/519797,1,549.12,PREMISES SECURITY,18/06/13,549.12
140247,THAMES WATER UTILITIES LTD====,45605-30523E,1,410.30,WATER & SEWERAGE RATES,18/06/13,410.30
100613C,PRESSURE COOLERS LTD==========,514156,1,8.25,CATERING FIXTURES,18/06/13,"1,327.50"
100613C,PRESSURE COOLERS LTD==========,514156,2,8.25,CATERING FIXTURES,18/06/13,
100613C,PRESSURE COOLERS LTD==========,514156,3,8.25,CATERING FIXTURES,18/06/13,
100613C,PRESSURE COOLERS LTD==========,514156,4,8.25,CATERING FIXTURES,18/06/13,
100613C,PRESSURE COOLERS LTD==========,514156,5,8.00,CATERING FIXTURES,18/06/13,
100613C,PRESSURE COOLERS LTD==========,514156,6,8.25,CATERING FIXTURES,18/06/13,
100613C,PRESSURE COOLERS LTD==========,514156,7,8.00,CATERING FIXTURES,18/06/13,
100613C,PRESSURE COOLERS LTD==========,514156,8,8.25,CATERING FIXTURES,18/06/13,
100613C,PRESSURE COOLERS LTD==========,514156,9,8.25,CATERING FIXTURES,18/06/13,
100613C,PRESSURE COOLERS LTD==========,514156,10,8.25,CATERING FIXTURES,18/06/13,
100613C,PRESSURE COOLERS LTD==========,514156,11,8.25,CATERING EQUIPMENT,18/06/13,
100613C,PRESSURE COOLERS LTD==========,514156,12,8.00,CATERING FIXTURES,18/06/13,
100613C,PRESSURE COOLERS LTD==========,514156,13,8.25,CATERING FIXTURES,18/06/13,
100613C,PRESSURE COOLERS LTD==========,514156,14,8.25,CATERING FIXTURES,18/06/13,
100613C,PRESSURE COOLERS LTD==========,514156,15,8.25,CATERING FIXTURES,18/06/13,
100613C,PRESSURE COOLERS LTD==========,514156,16,8.25,CATERING FIXTURES,18/06/13,
100613C,PRESSURE COOLERS LTD==========,514156,17,8.00,CATERING FIXTURES,18/06/13,
100613C,PRESSURE COOLERS LTD==========,514156,18,8.25,CATERING FIXTURES,18/06/13,
100613C,PRESSURE COOLERS LTD==========,514156,19,8.00,CATERING FIXTURES,18/06/13,
100613C,PRESSURE COOLERS LTD==========,514156,20,8.25,CATERING FIXTURES,18/06/13,
100613C,PRESSURE COOLERS LTD==========,514156,21,8.25,CATERING FIXTURES,18/06/13,
100613C,PRESSURE COOLERS LTD==========,514156,22,8.00,CATERING FIXTURES,18/06/13,
100613C,PRESSURE COOLERS LTD==========,514156,23,8.25,CATERING FIXTURES,18/06/13,
100613C,PRESSURE COOLERS LTD==========,514156,24,8.25,CATERING FIXTURES,18/06/13,
100613C,PRESSURE COOLERS LTD==========,514156,26,8.00,CATERING FIXTURES,18/06/13,
100613C,PRESSURE COOLERS LTD==========,514156,27,8.00,CATERING FIXTURES,18/06/13,
100613C,PRESSURE COOLERS LTD==========,514156,28,8.25,CATERING FIXTURES,18/06/13,
100613C,PRESSURE COOLERS LTD==========,514156,29,8.00,CATERING FIXTURES,18/06/13,
100613C,PRESSURE COOLERS LTD==========,514156,30,8.25,CATERING FIXTURES,18/06/13,
100613C,PRESSURE COOLERS LTD==========,514156,31,8.25,CATERING FIXTURES,18/06/13,
100613C,PRESSURE COOLERS LTD==========,514156,32,8.25,CATERING EQUIPMENT,18/06/13,
100613C,PRESSURE COOLERS LTD==========,514156,33,8.25,CATERING FIXTURES,18/06/13,
100613C,PRESSURE COOLERS LTD==========,514156,34,8.25,CATERING EQUIPMENT,18/06/13,
100613C,PRESSURE COOLERS LTD==========,514156,35,8.25,CATERING FIXTURES,18/06/13,
100613C,PRESSURE COOLERS LTD==========,514156,36,8.25,CATERING FIXTURES,18/06/13,
100613C,PRESSURE COOLERS LTD==========,514156,37,8.25,CATERING FIXTURES,18/06/13,
100613C,PRESSURE COOLERS LTD==========,514156,38,8.25,CATERING FIXTURES,18/06/13,
100613C,PRESSURE COOLERS LTD==========,514156,39,8.00,OFFICE EQUIPMENT,18/06/13,
100613C,PRESSURE COOLERS LTD==========,514156,40,8.25,CATERING FIXTURES,18/06/13,
100613C,PRESSURE COOLERS LTD==========,514156,41,8.25,CATERING FIXTURES,18/06/13,
100613C,PRESSURE COOLERS LTD==========,514156,42,8.25,CATERING FIXTURES,18/06/13,
100613C,PRESSURE COOLERS LTD==========,514156,43,8.25,CATERING FIXTURES,18/06/13,
100613C,PRESSURE COOLERS LTD==========,514156,44,8.00,CATERING FIXTURES,18/06/13,
100613C,PRESSURE COOLERS LTD==========,514156,45,8.00,CATERING FIXTURES,18/06/13,
100613C,PRESSURE COOLERS LTD==========,514156,46,8.25,CATERING FIXTURES,18/06/13,
100613C,PRESSURE COOLERS LTD==========,514156,47,8.25,CATERING FIXTURES,18/06/13,
100613C,PRESSURE COOLERS LTD==========,514156,48,8.25,CATERING FIXTURES,18/06/13,
100613C,PRESSURE COOLERS LTD==========,514156,49,8.25,CATERING FIXTURES,18/06/13,
100613C,PRESSURE COOLERS LTD==========,514156,50,8.00,CATERING FIXTURES,18/06/13,
100613C,PRESSURE COOLERS LTD==========,514156,51,8.25,CATERING FIXTURES,18/06/13,
100613C,PRESSURE COOLERS LTD==========,514156,52,8.25,CATERING FIXTURES,18/06/13,
100613C,PRESSURE COOLERS LTD==========,514156,53,8.25,CATERING FIXTURES,18/06/13,
100613C,PRESSURE COOLERS LTD==========,514156,54,8.25,CATERING FIXTURES,18/06/13,
100613C,PRESSURE COOLERS LTD==========,514156,55,8.25,CATERING FIXTURES,18/06/13,
100613C,PRESSURE COOLERS LTD==========,514156,56,8.25,CATERING FIXTURES,18/06/13,
100613C,PRESSURE COOLERS LTD==========,514156,57,8.25,CATERING FIXTURES,18/06/13,
100613C,PRESSURE COOLERS LTD==========,514156,58,8.00,CATERING FIXTURES,18/06/13,
100613C,PRESSURE COOLERS LTD==========,514156,59,8.25,CATERING FIXTURES,18/06/13,
100613C,PRESSURE COOLERS LTD==========,514156,60,8.25,CATERING EQUIPMENT,18/06/13,
100613C,PRESSURE COOLERS LTD==========,514156,61,8.25,CATERING FIXTURES,18/06/13,
100613C,PRESSURE COOLERS LTD==========,514156,62,8.25,CATERING FIXTURES,18/06/13,
100613C,PRESSURE COOLERS LTD==========,514156,63,8.25,CATERING FIXTURES,18/06/13,
100613C,PRESSURE COOLERS LTD==========,514156,64,8.25,CATERING FIXTURES,18/06/13,
100613C,PRESSURE COOLERS LTD==========,514156,65,8.25,CATERING FIXTURES,18/06/13,
100613C,PRESSURE COOLERS LTD==========,514156,66,8.25,CATERING FIXTURES,18/06/13,
100613C,PRESSURE COOLERS LTD==========,514156,67,8.25,CATERING FIXTURES,18/06/13,
100613C,PRESSURE COOLERS LTD==========,514156,68,8.00,CATERING FIXTURES,18/06/13,
100613C,PRESSURE COOLERS LTD==========,514156,69,8.25,CATERING FIXTURES,18/06/13,
100613C,PRESSURE COOLERS LTD==========,514156,70,8.25,CATERING FIXTURES,18/06/13,
100613C,PRESSURE COOLERS LTD==========,514156,71,8.25,CATERING FIXTURES,18/06/13,
100613C,PRESSURE COOLERS LTD==========,514156,72,8.25,CATERING FIXTURES,18/06/13,
100613C,PRESSURE COOLERS LTD==========,514156,73,8.25,CATERING FIXTURES,18/06/13,
100613C,PRESSURE COOLERS LTD==========,514156,74,8.25,CATERING FIXTURES,18/06/13,
100613C,PRESSURE COOLERS LTD==========,514156,75,8.25,CATERING FIXTURES,18/06/13,
100613C,PRESSURE COOLERS LTD==========,514156,76,8.25,CATERING FIXTURES,18/06/13,
100613C,PRESSURE COOLERS LTD==========,514156,77,8.25,CATERING FIXTURES,18/06/13,
100613C,PRESSURE COOLERS LTD==========,514156,78,8.25,CATERING FIXTURES,18/06/13,
100613C,PRESSURE COOLERS LTD==========,514156,79,8.25,CATERING FIXTURES,18/06/13,
100613C,PRESSURE COOLERS LTD==========,514156,80,8.25,CATERING FIXTURES,18/06/13,
100613C,PRESSURE COOLERS LTD==========,514156,81,8.25,CATERING FIXTURES,18/06/13,
100613C,PRESSURE COOLERS LTD==========,514156,82,8.25,CATERING FIXTURES,18/06/13,
100613C,PRESSURE COOLERS LTD==========,514156,83,8.25,CATERING FIXTURES,18/06/13,
100613C,PRESSURE COOLERS LTD==========,514156,84,8.25,OFFICE EQUIPMENT,18/06/13,
100613C,PRESSURE COOLERS LTD==========,514156,85,8.25,CATERING FIXTURES,18/06/13,
100613C,PRESSURE COOLERS LTD==========,514156,86,8.00,CATERING FIXTURES,18/06/13,
100613C,PRESSURE COOLERS LTD==========,514156,87,8.00,CATERING FIXTURES,18/06/13,
100613C,PRESSURE COOLERS LTD==========,514156,88,8.25,CATERING FIXTURES,18/06/13,
100613C,PRESSURE COOLERS LTD==========,514156,89,8.00,CATERING FIXTURES,18/06/13,
100613C,PRESSURE COOLERS LTD==========,514156,90,8.00,OFFICE EQUIPMENT,18/06/13,
100613C,PRESSURE COOLERS LTD==========,514156,91,8.25,CATERING FIXTURES,18/06/13,
100613C,PRESSURE COOLERS LTD==========,514156,92,8.00,CATERING FIXTURES,18/06/13,
100613C,PRESSURE COOLERS LTD==========,514156,93,8.25,CATERING FIXTURES,18/06/13,
100613C,PRESSURE COOLERS LTD==========,514156,94,8.25,CATERING FIXTURES,18/06/13,
100613C,PRESSURE COOLERS LTD==========,514156,95,8.00,CATERING FIXTURES,18/06/13,
100613C,PRESSURE COOLERS LTD==========,514156,96,8.25,CATERING FIXTURES,18/06/13,
100613C,PRESSURE COOLERS LTD==========,514156,97,8.25,CATERING FIXTURES,18/06/13,
100613C,PRESSURE COOLERS LTD==========,514156,98,8.00,CATERING FIXTURES,18/06/13,
100613C,PRESSURE COOLERS LTD==========,514156,99,8.25,CATERING FIXTURES,18/06/13,
100613C,PRESSURE COOLERS LTD==========,514156,100,8.25,CATERING FIXTURES,18/06/13,
100613C,PRESSURE COOLERS LTD==========,514156,101,8.25,CATERING FIXTURES,18/06/13,
100613C,PRESSURE COOLERS LTD==========,514156,102,8.25,CATERING FIXTURES,18/06/13,
100613C,PRESSURE COOLERS LTD==========,514156,103,8.25,CATERING FIXTURES,18/06/13,
100613C,PRESSURE COOLERS LTD==========,514156,104,8.25,CATERING FIXTURES,18/06/13,
100613C,PRESSURE COOLERS LTD==========,514156,105,8.00,CATERING FIXTURES,18/06/13,
100613C,PRESSURE COOLERS LTD==========,514156,106,8.25,CATERING FIXTURES,18/06/13,
100613C,PRESSURE COOLERS LTD==========,514156,107,8.00,CATERING FIXTURES,18/06/13,
100613C,PRESSURE COOLERS LTD==========,514156,108,8.25,CATERING FIXTURES,18/06/13,
100613C,PRESSURE COOLERS LTD==========,514156,109,8.25,CATERING FIXTURES,18/06/13,
100613C,PRESSURE COOLERS LTD==========,514156,110,8.25,CATERING FIXTURES,18/06/13,
100613C,PRESSURE COOLERS LTD==========,514156,111,8.00,CATERING FIXTURES,18/06/13,
100613C,PRESSURE COOLERS LTD==========,514156,112,8.25,CATERING FIXTURES,18/06/13,
100613C,PRESSURE COOLERS LTD==========,514156,113,8.25,CATERING FIXTURES,18/06/13,
100613C,PRESSURE COOLERS LTD==========,514156,114,8.00,CATERING FIXTURES,18/06/13,
100613C,PRESSURE COOLERS LTD==========,514156,115,8.25,CATERING FIXTURES,18/06/13,
100613C,PRESSURE COOLERS LTD==========,514156,116,8.25,CATERING FIXTURES,18/06/13,
100613C,PRESSURE COOLERS LTD==========,514156,117,8.00,CATERING FIXTURES,18/06/13,
100613C,PRESSURE COOLERS LTD==========,514156,118,8.25,CATERING FIXTURES,18/06/13,
100613C,PRESSURE COOLERS LTD==========,514156,119,8.25,RADIO,18/06/13,
100613C,PRESSURE COOLERS LTD==========,514156,120,8.25,CATERING FIXTURES,18/06/13,
100613C,PRESSURE COOLERS LTD==========,514156,121,8.25,CATERING FIXTURES,18/06/13,
100613C,PRESSURE COOLERS LTD==========,514156,122,8.25,CATERING FIXTURES,18/06/13,
100613C,PRESSURE COOLERS LTD==========,514156,123,8.00,CATERING FIXTURES,18/06/13,
100613C,PRESSURE COOLERS LTD==========,514156,124,8.25,CATERING FIXTURES,18/06/13,
100613C,PRESSURE COOLERS LTD==========,514156,125,8.25,CATERING FIXTURES,18/06/13,
100613C,PRESSURE COOLERS LTD==========,514156,126,8.25,CATERING FIXTURES,18/06/13,
100613C,PRESSURE COOLERS LTD==========,514156,127,8.25,CATERING FIXTURES,18/06/13,
100613C,PRESSURE COOLERS LTD==========,514156,128,8.25,CATERING FIXTURES,18/06/13,
100613C,PRESSURE COOLERS LTD==========,514156,129,8.25,CATERING FIXTURES,18/06/13,
100613C,PRESSURE COOLERS LTD==========,514156,130,8.25,CATERING FIXTURES,18/06/13,
100613C,PRESSURE COOLERS LTD==========,514156,131,8.00,CATERING EQUIPMENT,18/06/13,
100613C,PRESSURE COOLERS LTD==========,514156,132,8.25,CATERING FIXTURES,18/06/13,
100613C,PRESSURE COOLERS LTD==========,514156,133,8.25,CATERING FIXTURES,18/06/13,
100613C,PRESSURE COOLERS LTD==========,514156,134,8.25,CATERING FIXTURES,18/06/13,
100613C,PRESSURE COOLERS LTD==========,514156,135,8.25,CATERING FIXTURES,18/06/13,
100613C,PRESSURE COOLERS LTD==========,514156,136,8.25,STATIONERY CONSUMABLES,18/06/13,
100613C,PRESSURE COOLERS LTD==========,514156,137,8.25,CATERING FIXTURES,18/06/13,
100613C,PRESSURE COOLERS LTD==========,514156,138,8.25,CATERING FIXTURES,18/06/13,
100613C,PRESSURE COOLERS LTD==========,514156,139,8.00,CATERING FIXTURES,18/06/13,
100613C,PRESSURE COOLERS LTD==========,514156,140,8.25,CATERING FIXTURES,18/06/13,
100613C,PRESSURE COOLERS LTD==========,514156,141,8.25,CATERING FIXTURES,18/06/13,
100613C,PRESSURE COOLERS LTD==========,514156,142,8.25,CATERING FIXTURES,18/06/13,
100613C,PRESSURE COOLERS LTD==========,514156,143,8.25,CATERING FIXTURES,18/06/13,
100613C,PRESSURE COOLERS LTD==========,514156,144,8.25,CATERING FIXTURES,18/06/13,
100613C,PRESSURE COOLERS LTD==========,514156,145,8.25,CATERING FIXTURES,18/06/13,
100613C,PRESSURE COOLERS LTD==========,514156,146,8.00,CATERING FIXTURES,18/06/13,
100613C,PRESSURE COOLERS LTD==========,514156,147,8.00,CATERING FIXTURES,18/06/13,
100613C,PRESSURE COOLERS LTD==========,514156,148,8.25,CATERING FIXTURES,18/06/13,
100613C,PRESSURE COOLERS LTD==========,514156,149,8.25,CATERING FIXTURES,18/06/13,
100613C,PRESSURE COOLERS LTD==========,514156,150,8.00,CATERING FIXTURES,18/06/13,
100613C,PRESSURE COOLERS LTD==========,514156,151,8.25,CATERING FIXTURES,18/06/13,
100613C,PRESSURE COOLERS LTD==========,514156,152,8.00,CATERING FIXTURES,18/06/13,
100613C,PRESSURE COOLERS LTD==========,514156,153,8.00,CATERING FIXTURES,18/06/13,
100613C,PRESSURE COOLERS LTD==========,514156,154,8.25,CATERING FIXTURES,18/06/13,
100613C,PRESSURE COOLERS LTD==========,514156,155,8.25,CATERING FIXTURES,18/06/13,
100613C,PRESSURE COOLERS LTD==========,514156,156,8.25,CATERING FIXTURES,18/06/13,
100613C,PRESSURE COOLERS LTD==========,514156,157,8.25,CATERING FIXTURES,18/06/13,
100613C,PRESSURE COOLERS LTD==========,514156,158,8.25,CATERING FIXTURES,18/06/13,
100613C,PRESSURE COOLERS LTD==========,514156,159,8.25,CATERING FIXTURES,18/06/13,
100613C,PRESSURE COOLERS LTD==========,514156,160,8.00,CATERING FIXTURES,18/06/13,
100613C,PRESSURE COOLERS LTD==========,514156,161,8.25,CATERING FIXTURES,18/06/13,
100613C,PRESSURE COOLERS LTD==========,514156,162,8.25,OPERATIONAL EQUIP-PURCHASE,18/06/13,
100613C,PRESSURE COOLERS LTD==========,514156,163,8.25,OPERATIONAL DIRECT STANDBY,18/06/13,
140248,THAMES WATER UTILITIES LTD====,54858-88145+,1,294.98,WATER & SEWERAGE RATES,18/06/13,294.98
070613C,SIEMENS ENTERPRISE COMM LTD===,549G6000846388,1,525.00,TELECOMMUNICATIONS,18/06/13,525.00
800020531,*GREENHAM TRADING LTD=========,5590094,1,15.10,HYGIENE,18/06/13,778.90
800020531,*GREENHAM TRADING LTD=========,5590094,2,16.86,HYGIENE,18/06/13,
800020531,*GREENHAM TRADING LTD=========,5590094,3,30.66,HYGIENE,18/06/13,
800020531,*GREENHAM TRADING LTD=========,5590094,4,44.70,OPERATIONAL EQUIP-PURCHASE,18/06/13,
800020531,*GREENHAM TRADING LTD=========,5590094,5,125.65,HYGIENE,18/06/13,
800020531,*GREENHAM TRADING LTD=========,5590094,6,125.65,HYGIENE,18/06/13,
800020531,*GREENHAM TRADING LTD=========,5590094,7,40.75,HYGIENE,18/06/13,
800020531,*GREENHAM TRADING LTD=========,5590094,8,22.68,HYGIENE,18/06/13,
800020531,*GREENHAM TRADING LTD=========,5590094,9,214.05,HYGIENE,18/06/13,
800020531,*GREENHAM TRADING LTD=========,5590094,10,28.10,HYGIENE,18/06/13,
800020531,*GREENHAM TRADING LTD=========,5590094,11,20.10,HYGIENE,18/06/13,
800020531,*GREENHAM TRADING LTD=========,5590094,12,5.20,CATERING EQUIPMENT,18/06/13,
800020531,*GREENHAM TRADING LTD=========,5590094,13,4.20,HYGIENE,18/06/13,
800020531,*GREENHAM TRADING LTD=========,5590094,14,21.90,CLOTHING,18/06/13,
800020531,*GREENHAM TRADING LTD=========,5590094,15,30.20,HYGIENE,18/06/13,
800020531,*GREENHAM TRADING LTD=========,5590094,16,16.80,HYGIENE,18/06/13,
800020531,*GREENHAM TRADING LTD=========,5590094,17,16.30,HYGIENE,18/06/13,
070613C,MERLIN ELECTRICAL SERVICES LTD,5996,1,466.38,STRATEGIC (NON CYCLICAL),18/06/13,466.38
110613E,GAS & AIR SERVICES (UK)=======,6107,1,"1,727.00",REPAIR & MAINTENANCE,18/06/13,"1,747.00"
110613E,GAS & AIR SERVICES (UK)=======,6107,2,20.00,PURCHASE,18/06/13,
070613C,BSRIA LTD=====================,64729,1,300.00,PROFESSIONAL DEVELOPMENT,18/06/13,300.00
070613C,GRANT THORNTON UK,6781345,1,"9,870.00",CONSULTANTS,18/06/13,"9,870.00"
110613E,SWEETT  UK LTD,7024810,1,260.00,PROF FEES-MISCELLANEOUS,18/06/13,260.00
140252,DR OLIVER J F FOSTER,7266,1,600.00,DOCTORS/MEDICAL FEES,18/06/13,600.00
140247,THAMES WATER UTILITIES LTD====,7851512767D,1,341.40,WATER & SEWERAGE RATES,18/06/13,341.40
050613C,ANGUS FIRE ARMOUR LIMITED=====,8020990,1,"7,258.80",OPERATIONAL EQUIP-PURCHASE,18/06/13,"9,384.80"
050613C,ANGUS FIRE ARMOUR LIMITED=====,8020990,2,"2,047.00",OPERATIONAL EQUIP-PURCHASE,18/06/13,
050613C,ANGUS FIRE ARMOUR LIMITED=====,8020990,3,79.00,OPERATIONAL EQUIP-PURCHASE,18/06/13,
140247,THAMES WATER UTILITIES LTD====,8111515030D,1,385.83,WATER & SEWERAGE RATES,18/06/13,385.83
140249,STONEDALE PROPERTY MANAGEMENT,82560,1,"5,655.86",RENTS,18/06/13,"5,655.86"
140247,THAMES WATER UTILITIES LTD====,8962850520F,1,294.34,WATER & SEWERAGE RATES,18/06/13,294.34
110613E,DRAEGER SAFETY UK LIMITED=====,90414493,1,967.81,PROTECTIVE EQUIPT - PARTS,18/06/13,967.81
110613E,DRAEGER SAFETY UK LIMITED=====,90414564,1,318.25,PROTECTIVE EQUIPT - PARTS,18/06/13,318.25
110613E,DRAEGER SAFETY UK LIMITED=====,90414565,1,318.25,PROTECTIVE EQUIPT - PARTS,18/06/13,318.25
110613E,DRAEGER SAFETY UK LIMITED=====,90414802,1,445.55,PROTECTIVE EQUIPT - PARTS,18/06/13,845.55
110613E,DRAEGER SAFETY UK LIMITED=====,90414802,2,400.00,PROTECTIVE EQUIPT - PARTS,18/06/13,
130613H,DRAEGER SAFETY UK LIMITED=====,90414859,1,"3,638.00",PROTECTIVE EQUIPT - PARTS,18/06/13,"3,638.00"
130613H,DRAEGER SAFETY UK LIMITED=====,90415014,1,"3,869.40",PROTECTIVE EQUIPT - PARTS,18/06/13,"3,869.40"
130613H,DRAEGER SAFETY UK LIMITED=====,90415015,1,388.00,ACQUISITIONS,18/06/13,388.00
120613C,NORTHUMBRIAN WATER LTD========,912920750,1,893.00,CURRENT HYDRANT COSTS,18/06/13,893.00
120613C,NORTHUMBRIAN WATER LTD========,912920769,1,893.00,CURRENT HYDRANT COSTS,18/06/13,893.00
140247,THAMES WATER UTILITIES LTD====,95240-85193U,1,910.32,WATER & SEWERAGE RATES,18/06/13,910.32
120613C,ARCHITECTURAL DECORATORS LTD==,AD21073,1,"15,684.76",STRATEGIC (NON CYCLICAL),18/06/13,"15,684.76"
120613C,THAMES WATER UTILITIES LTD====,CBA1305864,1,511.50,HYDRANTS,18/06/13,511.50
120613C,THAMES WATER UTILITIES LTD====,CBA1305868,1,"1,082.00",HYDRANTS,18/06/13,"1,082.00"
120613C,THAMES WATER UTILITIES LTD====,CBA1305870,1,"1,082.00",HYDRANTS,18/06/13,"1,082.00"
120613C,THAMES WATER UTILITIES LTD====,CBA1305871,1,280.00,CURRENT HYDRANT COSTS,18/06/13,280.00
120613C,THAMES WATER UTILITIES LTD====,CBA1305872,1,511.50,CURRENT HYDRANT COSTS,18/06/13,511.50
120613C,THAMES WATER UTILITIES LTD====,CBA1305875,1,"1,082.00",CURRENT HYDRANT COSTS,18/06/13,"1,082.00"
120613C,THAMES WATER UTILITIES LTD====,CBA1305876,1,"1,082.00",CURRENT HYDRANT COSTS,18/06/13,"1,082.00"
120613C,THAMES WATER UTILITIES LTD====,CBA1305880,1,"1,082.00",CURRENT HYDRANT COSTS,18/06/13,"1,082.00"
120613C,THAMES WATER UTILITIES LTD====,CBA1305881,1,"1,082.00",CURRENT HYDRANT COSTS,18/06/13,"1,082.00"
120613C,THAMES WATER UTILITIES LTD====,CBA1305883,1,"1,082.00",CURRENT HYDRANT COSTS,18/06/13,"1,082.00"
120613C,THAMES WATER UTILITIES LTD====,CBA1305884,1,"1,023.00",CURRENT HYDRANT COSTS,18/06/13,"1,023.00"
120613C,THAMES WATER UTILITIES LTD====,CBA1305885,1,511.50,CURRENT HYDRANT COSTS,18/06/13,511.50
120613C,THAMES WATER UTILITIES LTD====,CBA1305888,1,"1,082.00",CURRENT HYDRANT COSTS,18/06/13,"1,082.00"
120613C,THAMES WATER UTILITIES LTD====,CBA1305889,1,"1,082.00",CURRENT HYDRANT COSTS,18/06/13,"1,082.00"
120613C,THAMES WATER UTILITIES LTD====,CBA1305890,1,"1,082.00",CURRENT HYDRANT COSTS,18/06/13,"1,082.00"
120613C,THAMES WATER UTILITIES LTD====,CBA1305900,1,307.00,CURRENT HYDRANT COSTS,18/06/13,307.00
120613H,E&S B DAVIS LTD,DAV/43610,1,360.00,OPERATIONAL EQUIP-PURCHASE,18/06/13,360.00
140248,QUEEN MARY & WESTFIELD COLLEGE,KXEX002688,1,518.50,PUBLIC RELATIONS,18/06/13,518.50
120613H,PHOENIX SOFTWARE LTD==========,OP/I699605,1,"1,959.34",MAINTENANCE & SUPPORT,18/06/13,"1,959.34"
120613C,ETC VENUES LTD================,PH-65239,1,550.50,CONSULTANTS,18/06/13,550.50
060613E,PULLMAN MOTORS================,PULL 169,1,700.00,OPERATIONAL EQUIP-PURCHASE,18/06/13,700.00
130613C,LOVELOCK & TAYLOUR LTD========,RWG/DM/2508,1,750.00,STRATEGIC (NON CYCLICAL),18/06/13,750.00
100613C,HUNTER LODGE==================,S-014677,1,"3,002.00",ADVERTISING,18/06/13,"3,002.00"
120613C,HUNTER LODGE==================,SI-05140,1,"1,404.20",ADVERTISING,18/06/13,"1,404.20"
120613C,HUNTER LODGE==================,SI-05160,1,"4,795.57",ADVERTISING,18/06/13,"4,795.57"
120613C,HUNTER LODGE==================,SI-05161,1,"2,441.50",ADVERTISING,18/06/13,"2,441.50"
120613C,HUNTER LODGE==================,SI-05175,1,"13,793.75",ADVERTISING,18/06/13,"13,793.75"
100613C,GROUND CONTROL UMITED,SIN020233,1,267.00,GROUNDS MAINTENANCE,18/06/13,267.00
120613H,COLLINS (CONTRACTORS) LTD=====,SPAM309,1,"1,345.00",STRATEGIC (NON CYCLICAL),18/06/13,"1,345.00"
110613E,SABRE SAFETY LTD,SUKIN09668,1,209.25,PROTECTIVE EQUIPT - PARTS,18/06/13,279.00
110613E,SABRE SAFETY LTD,SUKIN09668,2,44.75,PROTECTIVE EQUIPT - PARTS,18/06/13,
110613E,SABRE SAFETY LTD,SUKIN09668,3,12.50,REPAIR & MAINTENANCE,18/06/13,
110613E,SABRE SAFETY LTD,SUKIN09668,4,12.50,REPAIR & MAINTENANCE,18/06/13,
800020543,*XMA LTD,T175584,1,323.56,OPERATIONAL EQUIP-PURCHASE,18/06/13,323.56
070613H,HEALTH MANAGEMENT LIMITED=====,0000098119,1,"107,035.75",OHS CONTRACT,20/06/13,"107,035.75"
140613E,HEALTH MANAGEMENT LIMITED=====,0000098659,1,275.00,THIRD PARTY REPORTS,20/06/13,"2,144.20"
140613E,HEALTH MANAGEMENT LIMITED=====,0000098659,2,250.00,THIRD PARTY REPORTS,20/06/13,
140613E,HEALTH MANAGEMENT LIMITED=====,0000098659,3,"1,619.20",THIRD PARTY REPORTS,20/06/13,
140613E,HEALTH MANAGEMENT LIMITED=====,0000098674,1,518.57,DRUG & ALCOHOL TESTS,20/06/13,518.57
140613E,HEALTH MANAGEMENT LIMITED=====,0000098687,1,600.00,THIRD PARTY REPORTS,20/06/13,600.00
140613E,MAVEN TRAINING LTD============,0082,1,695.00,PROFESSIONAL DEVELOPMENT,20/06/13,695.00
140253,CORONA ENERGY RETAIL 4 LTD,083070631,1,215.39,GAS,20/06/13,"1,159.60"
140253,CORONA ENERGY RETAIL 4 LTD,083070631,2,13.12,GAS,20/06/13,
140253,CORONA ENERGY RETAIL 4 LTD,083070631,3,58.51,GAS,20/06/13,
140253,CORONA ENERGY RETAIL 4 LTD,083070631,4,63.99,GAS,20/06/13,
140253,CORONA ENERGY RETAIL 4 LTD,083070631,5,46.99,GAS,20/06/13,
140253,CORONA ENERGY RETAIL 4 LTD,083070631,6,36.74,GAS,20/06/13,
140253,CORONA ENERGY RETAIL 4 LTD,083070631,7,22.89,GAS,20/06/13,
140253,CORONA ENERGY RETAIL 4 LTD,083070631,8,114.69,GAS,20/06/13,
140253,CORONA ENERGY RETAIL 4 LTD,083070631,9,108.57,GAS,20/06/13,
140253,CORONA ENERGY RETAIL 4 LTD,083070631,10,117.32,GAS,20/06/13,
140253,CORONA ENERGY RETAIL 4 LTD,083070631,11,183.12,GAS,20/06/13,
140253,CORONA ENERGY RETAIL 4 LTD,083070631,12,178.27,GAS,20/06/13,
140613E,AFFINITY WATER,101023451,1,359.00,CURRENT HYDRANT COSTS,20/06/13,359.00
140247,PHOENIX BEARD=================,108286,1,"1,095.00",RENTS,20/06/13,"1,095.00"
070613C,ACL ELECTRICAL LIMITED,11000,1,"13,895.65",DEVELOPMENT  EXPENSES-CONTRACT,20/06/13,"100,681.00"
070613C,ACL ELECTRICAL LIMITED,11000,2,"8,580.40",DEVELOPMENT  EXPENSES-CONTRACT,20/06/13,
070613C,ACL ELECTRICAL LIMITED,11000,3,"27,734.30",DEVELOPMENT  EXPENSES-CONTRACT,20/06/13,
070613C,ACL ELECTRICAL LIMITED,11000,4,"26,667.45",DEVELOPMENT  EXPENSES-CONTRACT,20/06/13,
070613C,ACL ELECTRICAL LIMITED,11000,5,"6,918.85",DEVELOPMENT  EXPENSES-CONTRACT,20/06/13,
070613C,ACL ELECTRICAL LIMITED,11000,6,"14,708.85",DEVELOPMENT  EXPENSES-CONTRACT,20/06/13,
070613C,ACL ELECTRICAL LIMITED,11000,7,"2,175.50",DEVELOPMENT  EXPENSES-CONTRACT,20/06/13,
050613C,SAFEGUARD PEST CON. & ENV.LTD,117340,1,185.00,PEST CONTROL,20/06/13,925.00
050613C,SAFEGUARD PEST CON. & ENV.LTD,117340,2,185.00,PEST CONTROL,20/06/13,
050613C,SAFEGUARD PEST CON. & ENV.LTD,117340,3,185.00,PEST CONTROL,20/06/13,
050613C,SAFEGUARD PEST CON. & ENV.LTD,117340,4,185.00,PEST CONTROL,20/06/13,
050613C,SAFEGUARD PEST CON. & ENV.LTD,117340,5,185.00,PEST CONTROL,20/06/13,
050613C,SAFEGUARD PEST CON. & ENV.LTD,117343,1,42.00,PEST CONTROL,20/06/13,294.00
050613C,SAFEGUARD PEST CON. & ENV.LTD,117343,2,42.00,PEST CONTROL,20/06/13,
050613C,SAFEGUARD PEST CON. & ENV.LTD,117343,3,42.00,PEST CONTROL,20/06/13,
050613C,SAFEGUARD PEST CON. & ENV.LTD,117343,4,42.00,PEST CONTROL,20/06/13,
050613C,SAFEGUARD PEST CON. & ENV.LTD,117343,5,42.00,PEST CONTROL,20/06/13,
050613C,SAFEGUARD PEST CON. & ENV.LTD,117343,6,42.00,PEST CONTROL,20/06/13,
050613C,SAFEGUARD PEST CON. & ENV.LTD,117343,7,42.00,PEST CONTROL,20/06/13,
140613E,RIG SYSTEMS LTD===============,1303,1,"5,452.78",PROFESSIONAL DEVELOPMENT,20/06/13,"5,452.78"
070613H,FUTURE SAFETY LTD=============,1490,1,490.00,OPERATIONAL EQUIP-PURCHASE,20/06/13,490.00
070613H,FUTURE SAFETY LTD=============,1491,1,490.00,OPERATIONAL EQUIP-PURCHASE,20/06/13,490.00
170613C,IL CAPPUCCINO LONDON LTD======,203226,1,600.40,REFRESHMENTS,20/06/13,600.40
130613C,VODAFONE LIMITED==============,226096,1,"1,015.00",RADIO,20/06/13,"1,034.36"
130613C,VODAFONE LIMITED==============,226096,2,19.36,RADIO,20/06/13,
140613E,ARKAS LIMITED=================,23908,1,336.95,STRATEGIC (CYCLICAL),20/06/13,"1,418.75"
140613E,ARKAS LIMITED=================,23908,2,664.73,STRATEGIC (CYCLICAL),20/06/13,
140613E,ARKAS LIMITED=================,23908,3,255.57,STRATEGIC (CYCLICAL),20/06/13,
140613E,ARKAS LIMITED=================,23908,4,161.50,TACTICAL DAY TO DAY,20/06/13,
140613H,TEAM PURPLE LIMITED===========,2541,1,39.82,CLOTHING,20/06/13,565.34
140613H,TEAM PURPLE LIMITED===========,2541,2,39.82,CLOTHING,20/06/13,
140613H,TEAM PURPLE LIMITED===========,2541,3,108.10,CLOTHING,20/06/13,
140613H,TEAM PURPLE LIMITED===========,2541,4,99.60,CLOTHING,20/06/13,
140613H,TEAM PURPLE LIMITED===========,2541,5,139.00,CLOTHING,20/06/13,
140613H,TEAM PURPLE LIMITED===========,2541,6,139.00,CLOTHING,20/06/13,
170613C,MACE LIMITED,26915/0613203,1,"2,072.23",PROF FEES-MISCELLANEOUS,20/06/13,"2,072.23"
140613E,STEPHEN AUSTIN & SONS LTD=====,32057,1,582.00,PRINTING,20/06/13,582.00
170613C,EXPRESS VENDING LIMITED=======,331522,1,534.92,CATERING EQUIPMENT,20/06/13,534.92
140247,HENRY STREETER (AUTOMOTIVE)==,3414,1,"32,596.00",RENTS,20/06/13,"32,596.00"
170613C,R J HOLLAND LTD===============,4753,1,"4,880.00",STRATEGIC (NON CYCLICAL),20/06/13,"8,053.00"
170613C,R J HOLLAND LTD===============,4753,2,"3,173.00",STRATEGIC (NON CYCLICAL),20/06/13,
140613E,JFM MOVING SERVICES LTD=======,59056,1,722.21,REMOVALS,20/06/13,722.21
120613H,MERLIN ELECTRICAL SERVICES LTD,6003,1,"2,463.92",STRATEGIC (NON CYCLICAL),20/06/13,"2,463.92"
170613C,GAS & AIR SERVICES (UK)=======,6113,1,"1,321.42",REPAIR & MAINTENANCE,20/06/13,"1,321.42"
180613F,H & V HEATING & VENTILATING==,6915/0746/JK,1,316.00,STRATEGIC (NON CYCLICAL),20/06/13,316.00
180613F,H & V HEATING & VENTILATING==,6986/0746/JK,1,572.83,STRATEGIC (NON CYCLICAL),20/06/13,572.83
140613E,PA GROUP (UK) LTD=============,7096,1,830.00,DEVELOPMENT  EXPENSES-CONTRACT,20/06/13,830.00
140613E,CANON (UK) LTD===============,770418761/ 770418759,1,329.16,OFFICE EQUIPMENT,20/06/13,329.16
170613C,TITAN FIRE AND SECURITY=======,84612,1,298.00,TACTICAL DAY TO DAY,20/06/13,298.00
170613C,DRAEGER SAFETY UK LIMITED=====,90415186,1,"1,289.80",PROTECTIVE EQUIPT - PARTS,20/06/13,"1,289.80"
170613C,DRAEGER SAFETY UK LIMITED=====,90415223,1,"2,282.00",PROFESSIONAL DEVELOPMENT,20/06/13,"2,282.00"
170613C,DRAEGER SAFETY UK LIMITED=====,90415225,1,"3,210.00",PROFESSIONAL DEVELOPMENT,20/06/13,"3,210.00"
140254,MR NICHOLAS HILL,9128,1,400.00,COUNSELS FEES,20/06/13,400.00
140254,MR NICHOLAS HILL,9193,1,500.00,COUNSELS FEES,20/06/13,500.00
130613C,VODAFONE LIMITED==============,FB06803,1,125.00,TELECOMMUNICATIONS,20/06/13,275.00
130613C,VODAFONE LIMITED==============,FB06803,2,50.00,TELECOMMUNICATIONS,20/06/13,
130613C,VODAFONE LIMITED==============,FB06803,3,50.00,TELECOMMUNICATIONS,20/06/13,
130613C,VODAFONE LIMITED==============,FB06803,4,50.00,TELECOMMUNICATIONS,20/06/13,
050613C,ONE STOP LANGUAGE SERVICES LTD,FIREBRIGADE-TRANS-EASY,1,"1,110.00",CONSULTANTS,20/06/13,"1,110.00"
140253,JCT600 CONTRACTS LIMITED======,INV00029562,1,370.04,LEASE CAR CHARGES,20/06/13,"4,356.96"
140253,JCT600 CONTRACTS LIMITED======,INV00029562,2,"3,986.92",LEASE CAR CHARGES,20/06/13,
140253,JCT600 CONTRACTS LIMITED======,INV00029562,3,-384.94,VAT CAR LEASING,20/06/13,
140253,JCT600 CONTRACTS LIMITED======,INV00029562,4,384.94,LEASE CAR CHARGES,20/06/13,
140613E,BENNETT MECHANICAL SERVICES LT,L74865,1,"22,762.18",DEVELOPMENT  EXPENSES-CONTRACT,20/06/13,"22,762.18"
190613C,BABCOCK TRAINING LTD,PTSI009259,1,"1,547,355.44",OUTSOURCED TRAINING,20/06/13,"1,547,355.44"
140253,ARVAL UK LTD,RI0000751149,1,"4,114.75",LEASE CAR CHARGES,20/06/13,"5,023.02"
140253,ARVAL UK LTD,RI0000751149,2,908.27,P/PAYMTS-CAR LEASG-RENTAL,20/06/13,
140253,ARVAL UK LTD,RI0000751149,3,-399.57,VAT CAR LEASING,20/06/13,
140253,ARVAL UK LTD,RI0000751149,4,399.57,LEASE CAR CHARGES,20/06/13,
140253,ARVAL UK LTD,RI0000751150,1,"3,609.80",LEASE CAR CHARGES,20/06/13,"4,236.58"
140253,ARVAL UK LTD,RI0000751150,2,626.78,P/PAYMTS-CAR LEASG-RENTAL,20/06/13,
140253,ARVAL UK LTD,RI0000751150,3,-326.70,VAT CAR LEASING,20/06/13,
140253,ARVAL UK LTD,RI0000751150,4,326.70,LEASE CAR CHARGES,20/06/13,
140253,ARVAL UK LTD,RI0000751151,1,"3,817.90",LEASE CAR CHARGES,20/06/13,"4,568.96"
140253,ARVAL UK LTD,RI0000751151,2,751.06,P/PAYMTS-CAR LEASG-RENTAL,20/06/13,
140253,ARVAL UK LTD,RI0000751151,3,-362.13,VAT CAR LEASING,20/06/13,
140253,ARVAL UK LTD,RI0000751151,4,362.13,LEASE CAR CHARGES,20/06/13,
140253,ARVAL UK LTD,RI0000751152,1,"3,492.13",LEASE CAR CHARGES,20/06/13,"4,192.85"
140253,ARVAL UK LTD,RI0000751152,2,700.72,P/PAYMTS-CAR LEASG-RENTAL,20/06/13,
140253,ARVAL UK LTD,RI0000751152,3,-345.58,VAT CAR LEASING,20/06/13,
140253,ARVAL UK LTD,RI0000751152,4,345.58,LEASE CAR CHARGES,20/06/13,
140253,ARVAL UK LTD,RI0000751154,1,"2,663.72",LEASE CAR CHARGES,20/06/13,"3,198.22"
140253,ARVAL UK LTD,RI0000751154,2,534.50,P/PAYMTS-CAR LEASG-RENTAL,20/06/13,
140253,ARVAL UK LTD,RI0000751154,3,-272.09,VAT CAR LEASING,20/06/13,
140253,ARVAL UK LTD,RI0000751154,4,272.09,LEASE CAR CHARGES,20/06/13,
140613E,LC ENERGY LTD,SIN001377,1,900.00,GAS,20/06/13,900.00
060613E,MARINA ROPES LTD==============,SIN018980,1,"1,336.12",OPERATIONAL EQUIP-PURCHASE,20/06/13,"1,336.12"
170613C,COSMUR CONSTRUCTION LTD,SL005146,1,"38,560.60",DEVELOPMENT  EXPENSES-CONTRACT,20/06/13,"62,127.98"
170613C,COSMUR CONSTRUCTION LTD,SL005146,2,"23,567.38",DEVELOPMENT  EXPENSES-CONTRACT,20/06/13,
902295,BABCOCK CRITICAL SERVICES LTD,SIMP011134,1,"1,239,900.00",VEHICLES,21/06/13,"1,395,450.89"
902295,BABCOCK CRITICAL SERVICES LTD,SIMP011134,2,"13,405.44",VEHICLES,21/06/13,
902295,BABCOCK CRITICAL SERVICES LTD,SIMP011134,3,"110,340.40",VEHICLES NWFT,21/06/13,
902295,BABCOCK CRITICAL SERVICES LTD,SIMP011134,4,"30,040.86",ACCIDENT REPAIRS,21/06/13,
902295,BABCOCK CRITICAL SERVICES LTD,SIMP011134,5,"1,279.20",MODIFICATIONS,21/06/13,
902295,BABCOCK CRITICAL SERVICES LTD,SIMP011134,6,85.59,MODIFICATIONS,21/06/13,
902295,BABCOCK CRITICAL SERVICES LTD,SIMP011134,7,296.80,MODIFICATIONS,21/06/13,
902295,BABCOCK CRITICAL SERVICES LTD,SIMP011134,8,102.60,MODIFICATIONS,21/06/13,
190613C,SUE HILL RECRUITMENT & SRV.LTD,00044842,1,"1,078.13",FRS STAFF AGENCY,24/06/13,"1,078.13"
190613C,SUE HILL RECRUITMENT & SRV.LTD,00044932,1,"1,106.88",FRS STAFF AGENCY,24/06/13,"1,106.88"
190613C,SUE HILL RECRUITMENT & SRV.LTD,00044933,1,675.63,FRS STAFF AGENCY,24/06/13,675.63
190613C,SUE HILL RECRUITMENT & SRV.LTD,00045121,1,920.00,FRS STAFF AGENCY,24/06/13,920.00
190613C,TURNER & TOWNSEND PROJECT MNGT,000537493,1,"4,000.03",PROF FEES-MISCELLANEOUS,24/06/13,"4,000.03"
190613C,SUE HILL RECRUITMENT & SRV.LTD,0045030,1,"1,106.88",FRS STAFF AGENCY,24/06/13,"1,106.88"
190613C,FAITHORN FARRELL TIMMS========,008955,1,"1,690.17",DEVELOPMENT  EXPENSES-CONTRACT,24/06/13,"1,690.17"
140256,THAMES WATER UTILITIES LTD====,03724-82310F,1,"1,262.91",WATER & SEWERAGE RATES,24/06/13,"1,262.91"
190613C,HAYS ACCOUNTANCY & FINANCE====,1003228688,1,696.00,FRS STAFF AGENCY,24/06/13,696.00
190613C,HAYS ACCOUNTANCY & FINANCE====,1003256686,1,696.00,FRS STAFF AGENCY,24/06/13,696.00
190613C,HAYS ACCOUNTANCY & FINANCE====,1003256687,1,696.00,FRS STAFF AGENCY,24/06/13,696.00
190613C,AFFINITY WATER,101023558,1,555.00,HYDRANTS,24/06/13,555.00
190613C,AFFINITY WATER,101023559,1,555.00,CURRENT HYDRANT COSTS,24/06/13,555.00
190613C,AFFINITY WATER,101023561,1,818.00,CURRENT HYDRANT COSTS,24/06/13,818.00
190613C,AFFINITY WATER,101023564,1,341.00,CURRENT HYDRANT COSTS,24/06/13,341.00
140254,MISS NATASHA JOFFE============,106339I,1,"6,500.00",COUNSELS FEES,24/06/13,"6,500.00"
100613C,BUSINESS EDGE LIMITED,10752,1,"1,621.38",STRATEGIC (NON CYCLICAL),24/06/13,"1,621.38"
902296,M J MAPP LTD,11059,1,"555,625.00",RENTS,24/06/13,"555,625.00"
140254,MISS NATASHA JOFFE============,111059*,1,400.00,COUNSELS FEES,24/06/13,400.00
140255,BOURNE CONSTRUCTION COMPANY,13/446,1,"1,600.00",STRATEGIC (NON CYCLICAL),24/06/13,"2,700.00"
140255,BOURNE CONSTRUCTION COMPANY,13/446,2,"1,100.00",STRATEGIC (NON CYCLICAL),24/06/13,
140247,SOUTHWARK & SOUTHBANK LIMITED,14,1,"1,141.42",RENTS,24/06/13,"1,141.42"
190613C,RESPIREX======================,142504,1,"8,750.00",PROTECTIVE EQUIPMENT,24/06/13,"8,750.00"
140249,SOUTHWARK & SOUTHBANK LIMITED,15,1,"1,025.51",RENTS,24/06/13,"1,025.51"
190613C,BEAUMONT CONSTRUCTION SERVICES,1648,1,"8,849.80",STRATEGIC (NON CYCLICAL),24/06/13,"8,849.80"
200613G,BEAUMONT CONSTRUCTION SERVICES,1664,1,"4,123.94",STRATEGIC (NON CYCLICAL),24/06/13,"4,123.94"
190613C,BEAUMONT CONSTRUCTION SERVICES,1757,1,"4,356.52",STRATEGIC (NON CYCLICAL),24/06/13,"4,356.52"
180613E,B NOKES CONTRACTS LTD,1797,1,"2,235.00",REMOVALS,24/06/13,"2,235.00"
190613C,B NOKES CONTRACTS LTD,1798,1,937.50,STRATEGIC (NON CYCLICAL),24/06/13,937.50
200613G,LONDON BUSES SERVICES LIMITED,1800501364,1,"16,967.63",DEVELOPMENT  EXPENSES-CONTRACT,24/06/13,"16,967.63"
180613E,B NOKES CONTRACTS LTD,1801,1,513.00,REFUSE COLLECTION,24/06/13,513.00
190613C,GRADIENT CONSULTANTS LLP======,1833,1,290.02,ASBESTOS,24/06/13,"8,747.52"
190613C,GRADIENT CONSULTANTS LLP======,1833,2,290.02,ASBESTOS,24/06/13,
190613C,GRADIENT CONSULTANTS LLP======,1833,3,295.30,ASBESTOS,24/06/13,
190613C,GRADIENT CONSULTANTS LLP======,1833,4,290.02,ASBESTOS,24/06/13,
190613C,GRADIENT CONSULTANTS LLP======,1833,5,242.57,ASBESTOS,24/06/13,
190613C,GRADIENT CONSULTANTS LLP======,1833,6,537.87,ASBESTOS,24/06/13,
190613C,GRADIENT CONSULTANTS LLP======,1833,7,290.02,ASBESTOS,24/06/13,
190613C,GRADIENT CONSULTANTS LLP======,1833,8,290.02,ASBESTOS,24/06/13,
190613C,GRADIENT CONSULTANTS LLP======,1833,9,290.02,ASBESTOS,24/06/13,
190613C,GRADIENT CONSULTANTS LLP======,1833,10,290.02,ASBESTOS,24/06/13,
190613C,GRADIENT CONSULTANTS LLP======,1833,11,290.02,STRATEGIC (NON CYCLICAL),24/06/13,
190613C,GRADIENT CONSULTANTS LLP======,1833,12,257.07,ASBESTOS,24/06/13,
190613C,GRADIENT CONSULTANTS LLP======,1833,13,257.07,ASBESTOS,24/06/13,
190613C,GRADIENT CONSULTANTS LLP======,1833,14,348.02,ASBESTOS,24/06/13,
190613C,GRADIENT CONSULTANTS LLP======,1833,15,348.02,ASBESTOS,24/06/13,
190613C,GRADIENT CONSULTANTS LLP======,1833,16,243.61,ASBESTOS,24/06/13,
190613C,GRADIENT CONSULTANTS LLP======,1833,17,243.61,ASBESTOS,24/06/13,
190613C,GRADIENT CONSULTANTS LLP======,1833,18,243.61,ASBESTOS,24/06/13,
190613C,GRADIENT CONSULTANTS LLP======,1833,19,243.61,ASBESTOS,24/06/13,
190613C,GRADIENT CONSULTANTS LLP======,1833,20,243.61,ASBESTOS,24/06/13,
190613C,GRADIENT CONSULTANTS LLP======,1833,21,243.61,ASBESTOS,24/06/13,
190613C,GRADIENT CONSULTANTS LLP======,1833,22,243.61,ASBESTOS,24/06/13,
190613C,GRADIENT CONSULTANTS LLP======,1833,23,"2,436.17",ASBESTOS,24/06/13,
190613C,GRADIENT CONSULTANTS LLP======,1834,1,71.18,PROF FEES-MISCELLANEOUS,24/06/13,"1,840.35"
190613C,GRADIENT CONSULTANTS LLP======,1834,2,105.47,PROF FEES-MISCELLANEOUS,24/06/13,
190613C,GRADIENT CONSULTANTS LLP======,1834,3,61.96,PROF FEES-MISCELLANEOUS,24/06/13,
190613C,GRADIENT CONSULTANTS LLP======,1834,4,419.22,PROF FEES-MISCELLANEOUS,24/06/13,
190613C,GRADIENT CONSULTANTS LLP======,1834,5,61.96,PROF FEES-MISCELLANEOUS,24/06/13,
190613C,GRADIENT CONSULTANTS LLP======,1834,6,61.96,PROF FEES-MISCELLANEOUS,24/06/13,
190613C,GRADIENT CONSULTANTS LLP======,1834,7,52.74,PROF FEES-MISCELLANEOUS,24/06/13,
190613C,GRADIENT CONSULTANTS LLP======,1834,8,419.22,PROF FEES-MISCELLANEOUS,24/06/13,
190613C,GRADIENT CONSULTANTS LLP======,1834,9,71.18,PROF FEES-MISCELLANEOUS,24/06/13,
190613C,GRADIENT CONSULTANTS LLP======,1834,10,158.20,PROF FEES-MISCELLANEOUS,24/06/13,
190613C,GRADIENT CONSULTANTS LLP======,1834,11,61.96,PROF FEES-MISCELLANEOUS,24/06/13,
190613C,GRADIENT CONSULTANTS LLP======,1834,12,295.30,PROF FEES-MISCELLANEOUS,24/06/13,
070613C,UNDERSTANDING RECRUITMENT=====,2417,1,"6,600.00",FRS STAFF AGENCY,24/06/13,"6,600.00"
800021029,ADECCO UK LIMITED=============,26443313,1,305.46,FRS STAFF AGENCY,24/06/13,305.46
800021031,ADECCO UK LIMITED=============,26443315,1,296.64,FRS STAFF AGENCY,24/06/13,296.64
800021032,ADECCO UK LIMITED=============,26443316,1,432.60,FRS STAFF AGENCY,24/06/13,432.60
800021033,ADECCO UK LIMITED=============,26443317,1,439.60,FRS STAFF AGENCY,24/06/13,439.60
800021034,ADECCO UK LIMITED=============,26443318,1,463.04,FRS STAFF AGENCY,24/06/13,463.04
800021035,ADECCO UK LIMITED=============,26443319,1,"1,208.43",FRS STAFF AGENCY,24/06/13,"1,208.43"
800021036,ADECCO UK LIMITED=============,26443320,1,565.32,FRS STAFF AGENCY,24/06/13,565.32
800021037,ADECCO UK LIMITED=============,26443321,1,351.12,FRS STAFF AGENCY,24/06/13,351.12
800021022,ADECCO UK LIMITED=============,26443323,1,594.30,FRS STAFF AGENCY,24/06/13,594.30
800021023,ADECCO UK LIMITED=============,26443324,1,"1,874.25",FRS STAFF AGENCY,24/06/13,"1,874.25"
800021024,ADECCO UK LIMITED=============,26443325,1,508.80,FRS STAFF AGENCY,24/06/13,508.80
800021025,ADECCO UK LIMITED=============,26443326,1,989.12,FRS STAFF AGENCY,24/06/13,989.12
800021026,ADECCO UK LIMITED=============,26443327,1,554.07,FRS STAFF AGENCY,24/06/13,554.07
800021027,ADECCO UK LIMITED=============,26443328,1,385.02,FRS STAFF AGENCY,24/06/13,385.02
190613C,WALKER CONSTRUCTION (UK) LIMIT,33685,1,"42,825.00",DEVELOPMENT  EXPENSES-CONTRACT,24/06/13,"42,825.00"
190613H,HUNTERS CONTRACTS LIMITED,342185,1,501.45,PURCHASES-FURNITURE,24/06/13,501.45
190613H,CLASSIC VIDEO INTERNATIONAL===,37168,1,716.00,PUBLIC RELATIONS,24/06/13,716.00
190613H,CLASSIC VIDEO INTERNATIONAL===,37169,1,606.00,PUBLIC RELATIONS,24/06/13,606.00
190613C,W & E DERRICK BLDG. CONT.=====,4041,1,"2,380.00",STRATEGIC (NON CYCLICAL),24/06/13,"4,995.00"
190613C,W & E DERRICK BLDG. CONT.=====,4041,2,"2,615.00",STRATEGIC (NON CYCLICAL),24/06/13,
902296,CANADA LIFE LIMITED,43083,1,"645,790.35",RENTS,24/06/13,"645,790.35"
190613C,SPORTSAFE UK LTD==============,445764,1,73.14,GYM EQUIPMENT,24/06/13,381.36
190613C,SPORTSAFE UK LTD==============,445764,2,239.22,GYM EQUIPMENT,24/06/13,
190613C,SPORTSAFE UK LTD==============,445764,3,69.00,GYM EQUIPMENT,24/06/13,
140256,THAMES WATER UTILITIES LTD====,4626421532H,1,726.16,WATER & SEWERAGE RATES,24/06/13,726.16
190613C,R J HOLLAND LTD===============,4755,1,"1,465.00",STRATEGIC (NON CYCLICAL),24/06/13,"1,465.00"
190613C,URS SCOTT WILSON LIMITED,5520102,1,460.05,PROF FEES-MISCELLANEOUS,24/06/13,460.05
200613G,A P HILLS SIGNS===============,5616,1,366.00,PROFESSIONAL DEVELOPMENT,24/06/13,366.00
140256,THAMES WATER UTILITIES LTD====,56986-67403\,1,260.36,WATER & SEWERAGE RATES,24/06/13,260.36
190613C,DISCLOSURE SCOTLAND===========,585611,1,700.00,CRB CHECKS,24/06/13,700.00
190613C,ASSOC FOR GEOGRAPHIC INFO,59524,1,275.00,PROFESSIONAL DEVELOPMENT,24/06/13,275.00
190613C,GAS & AIR SERVICES (UK)=======,6120,1,870.96,REPAIR & MAINTENANCE,24/06/13,"1,642.71"
190613C,GAS & AIR SERVICES (UK)=======,6120,2,771.75,REPAIR & MAINTENANCE,24/06/13,
140256,THAMES WATER UTILITIES LTD====,6242955180D,1,259.15,WATER & SEWERAGE RATES,24/06/13,259.15
140256,THAMES WATER UTILITIES LTD====,6848423312D,1,665.08,WATER & SEWERAGE RATES,24/06/13,665.08
190613C,SWEETT  UK LTD,7024811,1,"1,285.00",PROF FEES-MISCELLANEOUS,24/06/13,"1,285.00"
190613C,SWEETT  UK LTD,7024819,1,835.00,PROF FEES-MISCELLANEOUS,24/06/13,835.00
200613G,TWO SERVICES LTD==============,70846,1,75.00,CATERING EQUIPMENT,24/06/13,260.67
200613G,TWO SERVICES LTD==============,70846,2,185.67,CATERING EQUIPMENT,24/06/13,
190613C,LEVEL 3 COMMUNICATIONS UK,80332685,1,"14,015.91",ACQUISITIONS,24/06/13,"40,216.86"
190613C,LEVEL 3 COMMUNICATIONS UK,80332685,2,"26,199.56",ACQUISITIONS,24/06/13,
190613C,LEVEL 3 COMMUNICATIONS UK,80332685,3,1.39,ACQUISITIONS,24/06/13,
140256,THAMES WATER UTILITIES LTD====,8447003310H,1,596.11,WATER & SEWERAGE RATES,24/06/13,596.11
180613E,MULTITONE ELECTRONICS PLC=====,87768,1,"29,146.50",PURCHASES-COMPUTER/EQUIPMENT,24/06/13,"29,146.50"
190613C,DRAEGER SAFETY UK LIMITED=====,90415553,1,4.00,PROTECTIVE EQUIPT - PARTS,24/06/13,264.70
190613C,DRAEGER SAFETY UK LIMITED=====,90415553,2,177.30,PROTECTIVE EQUIPT - PARTS,24/06/13,
190613C,DRAEGER SAFETY UK LIMITED=====,90415553,3,83.40,PROTECTIVE EQUIPT - PARTS,24/06/13,
190613C,THERMO ELECTRON RMP===========,9110193934,1,870.00,PROTECTIVE EQUIPT - PARTS,24/06/13,896.00
190613C,THERMO ELECTRON RMP===========,9110193934,2,26.00,REPAIR & MAINTENANCE,24/06/13,
140256,THAMES WATER UTILITIES LTD====,96378-41572A,1,289.94,WATER & SEWERAGE RATES,24/06/13,289.94
190613C,CPL PETROLEUM=================,9722695,1,"3,418.80",FUEL,24/06/13,"3,418.80"
190613C,CPL PETROLEUM=================,9724023,1,"3,316.41",FUEL,24/06/13,"3,316.41"
190613C,CPL PETROLEUM=================,9726287,1,"3,316.11",FUEL,24/06/13,"3,316.11"
190613H,ETC VENUES LTD================,AH-65705,1,749.50,PUBLIC RELATIONS,24/06/13,749.50
190613H,THAMES WATER UTILITIES LTD====,CBA1306134,1,616.00,HYDRANTS,24/06/13,616.00
190613H,THAMES WATER UTILITIES LTD====,CBA1306140,1,"1,082.00",CURRENT HYDRANT COSTS,24/06/13,"1,082.00"
190613H,THAMES WATER UTILITIES LTD====,CBA1306141,1,436.00,CURRENT HYDRANT COSTS,24/06/13,436.00
190613H,THAMES WATER UTILITIES LTD====,CBA1306146,1,"1,082.00",CURRENT HYDRANT COSTS,24/06/13,"1,082.00"
190613H,THAMES WATER UTILITIES LTD====,CBA1306150,1,"1,082.00",CURRENT HYDRANT COSTS,24/06/13,"1,082.00"
190613H,THAMES WATER UTILITIES LTD====,CBA1306151,1,"1,082.00",CURRENT HYDRANT COSTS,24/06/13,"1,082.00"
190613H,THAMES WATER UTILITIES LTD====,CBA1306152,1,"1,082.00",CURRENT HYDRANT COSTS,24/06/13,"1,082.00"
190613H,THAMES WATER UTILITIES LTD====,CBA1306156,1,419.00,CURRENT HYDRANT COSTS,24/06/13,419.00
190613H,THAMES WATER UTILITIES LTD====,CBA1306158,1,511.50,CURRENT HYDRANT COSTS,24/06/13,511.50
190613H,THAMES WATER UTILITIES LTD====,CBA1306159,1,"1,082.00",CURRENT HYDRANT COSTS,24/06/13,"1,082.00"
190613H,THAMES WATER UTILITIES LTD====,CBA1306163,1,560.00,CURRENT HYDRANT COSTS,24/06/13,560.00
190613H,THAMES WATER UTILITIES LTD====,CBA1306167,1,"1,082.00",CURRENT HYDRANT COSTS,24/06/13,"1,082.00"
190613H,THAMES WATER UTILITIES LTD====,CBA1306170,1,"1,082.00",CURRENT HYDRANT COSTS,24/06/13,"1,082.00"
190613H,THAMES WATER UTILITIES LTD====,CBA1306175,1,"1,185.00",CURRENT HYDRANT COSTS,24/06/13,"1,185.00"
190613H,THAMES WATER UTILITIES LTD====,CBA1306178,1,307.00,CURRENT HYDRANT COSTS,24/06/13,307.00
190613H,THAMES WATER UTILITIES LTD====,CBA1306180,1,"1,185.00",CURRENT HYDRANT COSTS,24/06/13,"1,185.00"
190613H,THAMES WATER UTILITIES LTD====,CBA1306181,1,"1,185.00",CURRENT HYDRANT COSTS,24/06/13,"1,185.00"
190613H,THAMES WATER UTILITIES LTD====,CBA1306184,1,"1,185.00",CURRENT HYDRANT COSTS,24/06/13,"1,185.00"
190613H,THAMES WATER UTILITIES LTD====,CBA1306185,1,"1,185.00",CURRENT HYDRANT COSTS,24/06/13,"1,185.00"
190613H,THAMES WATER UTILITIES LTD====,CBA1306186,1,511.50,HYDRANTS,24/06/13,511.50
190613H,THAMES WATER UTILITIES LTD====,CBA1306187,1,280.00,CURRENT HYDRANT COSTS,24/06/13,280.00
190613C,CFOA (SERVICES) LTD===========,CSL13153,1,295.00,PROFESSIONAL DEVELOPMENT,24/06/13,295.00
190613C,KIER BUILDING SERV ENGINEERS==,F00042362,1,"5,771.42",CATERING FIXTURES,24/06/13,"5,771.42"
190613C,KIER BUILDING SERV ENGINEERS==,F00042377,1,"3,308.00",STRATEGIC (NON CYCLICAL),24/06/13,"3,308.00"
190613C,KIER BUILDING SERV ENGINEERS==,F00042746,1,"3,219.00",STRATEGIC (NON CYCLICAL),24/06/13,"3,219.00"
190613C,WM ENGINEERING SERVICES LTD===,I-4521,1,"1,783.00",STRATEGIC (NON CYCLICAL),24/06/13,"1,783.00"
200613G,CHILDCARE VOUCHERS LTD========,INS07205160 / 285675,1,657.11,CHILDCARE,24/06/13,657.11
190613C,ESTEEM SYSTEMS LTD============,OP/I073618,1,"7,035.00",MAINTENANCE & SUPPORT,24/06/13,"7,035.00"
800021020,ALLSTAR BUSINESS SOLUTIONS LTD,P2001019572,1,"1,038.70",FUEL,24/06/13,"23,169.47"
800021020,ALLSTAR BUSINESS SOLUTIONS LTD,P2001019572,2,820.88,FUEL,24/06/13,
800021020,ALLSTAR BUSINESS SOLUTIONS LTD,P2001019572,3,718.01,FUEL,24/06/13,
800021020,ALLSTAR BUSINESS SOLUTIONS LTD,P2001019572,4,715.92,FUEL,24/06/13,
800021020,ALLSTAR BUSINESS SOLUTIONS LTD,P2001019572,5,546.40,FUEL,24/06/13,
800021020,ALLSTAR BUSINESS SOLUTIONS LTD,P2001019572,6,526.74,FUEL,24/06/13,
800021020,ALLSTAR BUSINESS SOLUTIONS LTD,P2001019572,7,501.32,FUEL,24/06/13,
800021020,ALLSTAR BUSINESS SOLUTIONS LTD,P2001019572,8,489.34,FUEL,24/06/13,
800021020,ALLSTAR BUSINESS SOLUTIONS LTD,P2001019572,9,447.92,FUEL,24/06/13,
800021020,ALLSTAR BUSINESS SOLUTIONS LTD,P2001019572,10,375.78,FUEL,24/06/13,
800021020,ALLSTAR BUSINESS SOLUTIONS LTD,P2001019572,11,363.03,FUEL,24/06/13,
800021020,ALLSTAR BUSINESS SOLUTIONS LTD,P2001019572,12,339.87,FUEL,24/06/13,
800021020,ALLSTAR BUSINESS SOLUTIONS LTD,P2001019572,13,334.56,FUEL,24/06/13,
800021020,ALLSTAR BUSINESS SOLUTIONS LTD,P2001019572,14,328.46,FUEL,24/06/13,
800021020,ALLSTAR BUSINESS SOLUTIONS LTD,P2001019572,15,328.00,FUEL,24/06/13,
800021020,ALLSTAR BUSINESS SOLUTIONS LTD,P2001019572,16,325.60,FUEL,24/06/13,
800021020,ALLSTAR BUSINESS SOLUTIONS LTD,P2001019572,17,297.31,FUEL,24/06/13,
800021020,ALLSTAR BUSINESS SOLUTIONS LTD,P2001019572,18,293.32,FUEL,24/06/13,
800021020,ALLSTAR BUSINESS SOLUTIONS LTD,P2001019572,19,285.85,FUEL,24/06/13,
800021020,ALLSTAR BUSINESS SOLUTIONS LTD,P2001019572,20,277.94,FUEL,24/06/13,
800021020,ALLSTAR BUSINESS SOLUTIONS LTD,P2001019572,21,268.81,FUEL,24/06/13,
800021020,ALLSTAR BUSINESS SOLUTIONS LTD,P2001019572,22,268.12,FUEL,24/06/13,
800021020,ALLSTAR BUSINESS SOLUTIONS LTD,P2001019572,23,265.12,FUEL,24/06/13,
800021020,ALLSTAR BUSINESS SOLUTIONS LTD,P2001019572,24,264.06,FUEL,24/06/13,
800021020,ALLSTAR BUSINESS SOLUTIONS LTD,P2001019572,25,261.88,FUEL,24/06/13,
800021020,ALLSTAR BUSINESS SOLUTIONS LTD,P2001019572,26,260.09,FUEL,24/06/13,
800021020,ALLSTAR BUSINESS SOLUTIONS LTD,P2001019572,27,253.59,FUEL,24/06/13,
800021020,ALLSTAR BUSINESS SOLUTIONS LTD,P2001019572,28,250.34,FUEL,24/06/13,
800021020,ALLSTAR BUSINESS SOLUTIONS LTD,P2001019572,29,245.03,FUEL,24/06/13,
800021020,ALLSTAR BUSINESS SOLUTIONS LTD,P2001019572,30,244.55,FUEL,24/06/13,
